Workbook

Sheet Project-ID
C5: SEMESTER: | D5: =IF(MONTH(TODAY())<6, "Spring", IF(MONTH(TODAY())<9,"Summer","Fall"))&" "&YEAR(TODAY()) -> Fall 2019
C7: PROJECT TITLE: | D7: AD715Ggroup 9
C9: PROJECT LOCATION: | D9: BOSTON
C11: STUDENT NAME: | D11: YI ZHU
C14: ADVISOR: | D14: Dr. Vladimir Zlatev
C16: DATE OF SUBMISSION: | D16: 2019-11-13

Sheet Title-Page
B9: SEMESTER: | C9: =Semester -> Fall 2019
B14: PROJECT TITLE: | C14: =IF(ProjectTitle="","",ProjectTitle) -> AD715Ggroup 9
B17: LOCATION: | C17: =IF(projectlocation="","",projectlocation) -> BOSTON
B26: STUDENT NAME: | C26: =IF(StudentName="","",StudentName) -> YI ZHU
B31: ADVISOR: | C31: =Advisor -> Dr. Vladimir Zlatev
B35: DATE OF SUBMISSION: | C35: =IF(Date="","",Date) -> 2019-11-13
A47: Copyright:
A49: Disclaimer:

Sheet Help
B1: Help Menu
A3: A. Navigation within the business simulation | H3: E. Page '36-Mo-Fin-Pr' | O3: H. Page 'Mktg-Mgt' | U3: test
O6: I. Page 'Inn-Mgt'
H7: F. Page 'Performance'
A10: B. Introduction to the business simulation | O10: J. Page 'Oper-Mgt'
C11: Tutorial to the Business Simulation 'Strategies and Decision Support in Organizations'
H12: G. Page 'D-Analysis'
A14: C. Page 'Project-ID' | O14: K. Page 'Fin-Mgt'
C15: Yellow | D15: cells indicate fields you should edit; others are not editable.
O16: L. Page 'Org-Mgt'
A17: D. Page 'Project-Start'
A35: A. Navigation within the business simulation
A36: 1. | B36: Simulation software: installation requirements
A53: 2. | B53: Layouts
A72: 3. | B72: Tab ‘Sim-Navigator’
A129: 4. | B129: Task List
A133: 5. | B133: Force Calculation
A137: 6. | B137: Submit Results
A141: 7. | B141: Choose cycle to calculate
A145: 8. | B145: Export
A149: 9. | B149: Go Back to ‘Sim-Navigator’
A153: 10. | B153: Indicator: Current Cycle
A157: 11. | B157: Help
A179: D. Page 'Project-Start'
A180: 1. | B180: Critical Success Factors (CSF)
A189: 2. | B189: Key Performance Indicators (KPI)
A237: E. Page '36-Mo-Fin-Pr'
A242: 1. | B242: Sales Projection
A245: 2. | B245: Prices and Variable Costs per product
A248: 3. | B248: Annual fixed costs
A251: 4. | B251: 12 month Proforma
A255: 5. | B255: Financial summary: per FY and overall
A274: F. Page 'Performance'
A278: 1. | B278: Key Success Indicators
A285: 2. | B285: Key Performance Indicators
A295: 3. | B295: Efficiency Ratios
A303: 4. | B303: Trend Analysis
A325: G. Page 'D-Analysis'
A326: 1. | B326: Break-Even Analysis
A329: 2. | B329: What-if Analysis
A333: 3. | B333: Sensitivity Analysis
B334: *LINK TO TUTORIAL HERE*
A336: 4. | B336: Optimization Analysis
B337: *LINK TO TUTORIAL HERE*
A339: 5. | B339: Risk Analysis
A356: H. Page 'Mktg-Mgt'
A357: 1. | B357: Marketing Costs
A364: 2. | B364: Product Description
A385: 3. | B385: Targeted Market Size
A396: 4. | B396: Sales Projections
A420: I. Page 'Inn-Mgt'
A421: 1. | B421: Product Name & Description
A439: J. Page 'Oper-Mgt'
A443: 1. | B443: Forecast for the nest three years
A451: 2. | B451: Targeted Market Size
A454: 3. | B454: Sales Projection
A477: K. Page 'Fin-Mgt'
A478: 1. | B478: Miscellaneous Factors
A485: 2. | B485: Debt
A510: L. Page 'Org-Mgt'
A511: 1. | B511: Employess
A520: 2. | B520: Employee Compensation

Sheet Sim-Navigator
R1: current cycle
R2: 8
R3: Permission for next Cycle
R4: No
G5: Current Decision Cycle | R5: Conformation Last cycle end
G6: ="C = "&CurrentCycle -> C = 8 | R6: Yes
G7: Current Input Parameters table | R7: Which Section in change
G8: ="table in process is " -> table in process is
G9: =Section -> 0 | R9: Cycle In calculation
R10: 8
R11: Permision to create printouts
R12: No
R13: Passwords
R14: VZ-Start
R15: VZ-MCS
R17: Chosen underlying cycle
R18: 7
R30: comments:
R41: Inputs from MS Excel
R42: to be used for MS Project
R43: (we will provide a demo)
R44: OPTIONAL for students
R45: Check

Sheet Project-Start
A5: 1 | B5: OVERALL BUSINESS PARAMETERS OF THE PROJECT (BUSINESS UNIT: next 36 Months of Operations)
A6: 1.1 | B6: Critical Success Factors
G7: FY-0 | H7: FY-1 | I7: FY-2 | J7: FY-3 | K7: FY1+FY2+FY3
A8: CSF 1: | B8: Introducing an individually controlled brand (utilization in %) | F8: [%] | H8: =H$22/H$28 -> 0.70588484 | I8: =I$22/I$28 -> 0.7249628087 | J8: =J$22/J$28 -> 0.763118746 | K8: =K22/SUM(H28:J28) -> 0.6359322883
A9: CSF 2: | B9: Retention of critical technology personnel | F9: [number] | H9: 1 | I9: 1 | J9: 1
A10: CSF 3: | B10: Retention of critical marketing personnel | F10: [number] | H10: 1 | I10: 1 | J10: 2
A12: 1.2 | B12: Key Performance Indicators
G14: FY-0 | H14: FY-1 | I14: FY-2 | J14: FY-3 | K14: FY1+FY2+FY3
A15: KPI 1: | B15: Actual size of the local market | F15: [units] | G15: 7621849 | H15: 1.03 | I15: 1.06 | J15: 1.1
A16: KPI 2: | B16: Number of customers- existing business | F16: [customers] | G16: 103587
A17: KPI 3: | B17: Average consumption per existing customer | F17: [units] | G17: 1.2
A18: KPI 4: | B18: Size of the penetrated market - without new project | F18: [%] | H18: 1.08 | I18: 1.16 | J18: 1.24
B19: * | F19: [units] | G19: =G17*G16 -> 124304.4 | H19: =G19*H18 -> 134248.752 | I19: =G19*I18 -> 144193.104 | J19: =G19*J18 -> 154137.456 | K19: =SUM(H19:J19) -> 432579.312
A20: KPI 5: | B20: Projected increase of the penetrated market - with new project | F20: [%] | K20: 2.1
A21: KPI 6: | B21: Projected structure of the annual sales, new penetr. market | F21: [%] | H21: 0.37 | I21: 0.38 | J21: 0.4 | K21: =H21+I21+J21 -> 1.15
B22: Projected sales, new brand | F22: [units] | H22: =H$21*$K$22 -> 336114.1254 | I22: =I$21*$K$22 -> 345198.291 | J22: =J$21*$K$22 -> 363366.6221 | K22: =K19*K20 -> 908416.5552
A23: KPI 7: | B23: Projected consumption in the existing business, new brand only | F23: [%] | H23: 0.28 | I23: 0.3 | J23: 0.32 | K23: =K24/K22 -> 0.3456
B24: ** | F24: [units] | H24: =H22*H23 -> 94111.95512 | I24: =I22*I23 -> 103559.4873 | J24: =J22*J23 -> 116277.3191 | K24: =SUM(H24:J24) -> 313948.7615
B25: Projected beer consumption (new brand % of all) | F25: [%] | H25: =H24/H19 -> 0.7010266667 | I25: =I24/I19 -> 0.7182 | J25: =J24/J19 -> 0.7543741935
B26: Wholesale distribution (new brand) | F26: [%] | H26: =1-H23 -> 0.72 | I26: =1-I23 -> 0.7 | J26: =1-J23 -> 0.68 | K26: =K27/K22 -> 0.8044
B27: *** | F27: [units] | H27: =H26*H22 -> 242002.1703 | I27: =I26*I22 -> 241638.8037 | J27: =J26*J22 -> 247089.303 | K27: =SUM(H27:J27) -> 730730.277
A28: KPI 8: | B28: Capacity of the new technology (max units/year) | F28: [units] | G28: 476160 | H28: 476160 | I28: 476160 | J28: 476160
A33: 2 | B33: FIXED-COST
A35: ="2.0" -> 2.0 | B35: Initial Investment
B36: Equipment | D36: 150000
B38: Total | D38: =SUM(D36:D37) -> 150000
A41: 2.1 | B41: Employees
F42: Salary increase
B43: Position | D43: Budget | E43: Number | F43: FY-2 | G43: FY-3
B44: Office Assistants | D44: 25000 | E44: 1 | F44: 1.11 | G44: 1.2
B45: Salesmen | D45: 67500 | E45: 1.5 | F45: 1.11 | G45: 1.2
B46: Executive Salaries | D46: 32500 | E46: 0.5 | F46: 1.11 | G46: 1.2
B47: Miscellaneous (Consultants) | D47: 5000 | F47: 1.11 | G47: 1.2
D48: FY-1 | E48: FY-2 | F48: FY-3
B49: Total | D49: =SUM(D44:D47) -> 130000 | E49: =SUMPRODUCT(D44:D47,F44:F47) -> 144300 | F49: =SUMPRODUCT(D44:D47,G44:G47,F44:F47) -> 173160
A53: 2.2 | B53: Range of compensations for critical workers
B55: Position | C55: Importance | D55: Min | E55: Base | F55: Market Research | G55: Max
B56: Salesmen | C56: Critical | D56: 26000 | E56: 30000 | F56: 28000 | G56: 32000
B57: Salesmen | D57: 23000 | E57: 24000 | F57: 25000 | G57: 27000
B58: Worker | C58: Critical | D58: 25000 | E58: 30000 | F58: 29000 | G58: 32000
B59: Worker | D59: 15000 | E59: 20000 | F59: 20000 | G59: 22000
A62: 2.3 | B62: Utilities, Supplies and others
D63: Payment | E63: Payment increase
D64: FY-1 | E64: FY-2 | F64: FY-3
B65: Leasing of cars, computers, etc | D65: 8000 | E65: 1.11 | F65: 1.2
B66: Office Supply | D66: 4000 | E66: 1.11 | F66: 1.2
B67: Heat, Light, Phone | D67: 7000 | E67: 1.11 | F67: 1.2
B68: Insurance | D68: 7000 | E68: 1.11 | F68: 1.2
B69: Depreciation | D69: =D103*D36 -> 7500 | E69: =E103/D103 -> 1.9 | F69: =F103/E103 -> 0.9
D71: FY-1 | E71: FY-2 | F71: FY-3
B72: Total | D72: =SUM(D65:D70) -> 33500 | E72: =SUMPRODUCT(D65:D70,E65:E70) -> 43110 | F72: =SUMPRODUCT(E65:E70,F65:F70,D65:D70) -> 47457
A75: 2.4 | B75: Marketing costs
D76: Payment | E76: Payment increase
D77: FY-1 | E77: FY-2 | F77: FY-3
B78: Local Advertising | D78: 35000 | E78: 1.11 | F78: 1.2
B79: Trade Shows | D79: 3000 | E79: 1.11 | F79: 1.2
B81: Total | D81: =SUM(D78:D80) -> 38000 | E81: =SUMPRODUCT(D78:D80,E78:E80) -> 42180 | F81: =SUMPRODUCT(D78:D80,E78:E80,F78:F80) -> 50616
A84: 2.5 | B84: Rent
F85: Payment increase
D86: Payment | E86: Space (ft^2) | F86: FY-2 | G86: FY-3
B87: Office | D87: 5000 | E87: 200 | F87: 1.11 | G87: 1.2
B88: Warehouse
D90: FY-1 | E90: FY-2 | F90: FY-3
B91: Total | D91: =SUM(D87:D89) -> 5000 | E91: =SUMPRODUCT(D87:D89,F87:F89) -> 5550 | F91: =SUMPRODUCT(D87:D89,G87:G89,F87:F89) -> 6660
A94: 2.6 | B94: Debt
B95: Loan | D95: Amount | E95: Interest rate | F95: length (months) | G95: payments/year | H95: Date start
B96: Bank of America | D96: 40000 | E96: 0.1 | F96: 36 | G96: 12 | H96: FY-1 Jan
D98: FY-1 | E98: FY-2 | F98: FY-3 | G98: Total Debt
B99: Total | D99: =debtAnnualPaymentsFY1(DebtRange) ->  | E99: =debtAnnualPaymentsFY2(DebtRange) ->  | F99: =debtAnnualPaymentsFY3(DebtRange) ->  | G99: =SUM(D96:D97) -> 40000
A102: 2.7 | B102: Depreciation | D102: FY-1 | E102: FY-2 | F102: FY-3
B103: MACRS (15 yr schedule) | D103: 0.05 | E103: 0.095 | F103: 0.0855
B104: Tax Shelter | D104: =D113*D38*D103 -> 2625 | E104: =D113*D38*E103 -> 4987.5 | F104: =D113*D38*F103 -> 4488.75
A106: 2.8 | B106: Financial Market Indicators | E106: Percentage
B107: Expected Return on Investment | E107: 0.05
B108: Risk-Free Interest rate | E108: 0.01
A110: 3 | B110: TAXES & FEES
A111: 3.1 | B111: Taxes
B112: Taxes type | D112: Percentage
B113: Profit | D113: 0.35
A116: 3.2 | B116: Fees
B117: Type | D117: Ammount
B118: license to sell alcohol
B120: Total | D120: =IF(SUM(D118:D119)=0,"",SUM(D118:D119)) -> 
A123: 4 | B123: PRODUCT DESCRIPTION
A124: 4.1. | B124: Product Name & Description
E125: Variable Costs
E126: Material | F126: Labor | G126: Others | H126: Price | I126: Units | J126: Cut off point | K126: Weight | L126: Weight (full) | M126: Height | N126: Diameter
B127: Product ID | C127: Distribution | D127: Name | E127: (per unit) | F127: (per unit) | G127: (per unit) | H127: (per unit) | I127: (Pints) | K127: (lb) | L127: (lb) | M127: (inches) | N127: (inches)
B128: BR01-01 | C128: [retail] | D128: Pilsner | E128: 0.56 | F128: 0.3 | G128: 0.3 | H128: 4 | I128: 1 | J128: 0.8 | K128: 1.05 | L128: 1.3 | M128: 0 | N128: 0 | Q128: NOTES:
B129: BR01-02 | C129: [retail] | D129: Bavarian Lager | E129: 0.5 | F129: 0.3 | G129: 0.3 | H129: 4 | I129: 1 | J129: =cutoff -> 0.8 | K129: 1.05 | L129: 1.3 | M129: 0 | N129: 0 | P129: (i) | Q129: one pint = 16 oz = 473.1765 ml
B130: BR01-03 | C130: [retail] | D130: Light Wheat | E130: 0.5 | F130: 0.3 | G130: 0.3 | H130: 3.5 | I130: 1 | J130: 0.8 | K130: 1.05 | L130: 1.3 | M130: 0 | N130: 0 | P130: (ii) | Q130: one keg = 124 pints
B131: BR01-04 | C131: [retail] | D131: Red Wheat | E131: 0.5 | F131: 0.3 | G131: 0.3 | H131: 3.5 | I131: 1 | J131: 0.8 | K131: 1.05 | L131: 1.3 | M131: 0 | N131: 0 | P131: (iii) | Q131: one barrel = 31 gallons
B132: BR01-05 | C132: [retail] | D132: Pale Ale | E132: 0.5 | F132: 0.3 | G132: 0.3 | H132: 3.5 | I132: 1 | J132: 0.8 | K132: 1.05 | L132: 1.3 | M132: 0 | N132: 0
B133: BR01-06 | C133: [retail] | D133: Bock Dark | E133: 0.5 | F133: 0.3 | G133: 0.3 | H133: 3.5 | I133: 1 | J133: 0.8 | K133: 1.05 | L133: 1.3 | M133: 0 | N133: 0
B134: BR01-07 | C134: [wholesale] | D134: Pilsner | E134: 0.56 | F134: 0.24 | G134: 0.26 | H134: 1.25 | I134: 124 | J134: 0.8 | K134: 130.8 | L134: 160.5 | M134: 23,3 | N134: 16
B135: BR01-08 | C135: [wholesale] | D135: Bavarian Lager | E135: 0.56 | F135: 0.24 | G135: 0.26 | H135: 1.28 | I135: 124 | J135: 0.8 | K135: 130.8 | L135: 160.5 | M135: 23.3 | N135: 16
B136: BR01-09 | C136: [retail] | D136: Special Offer | E136: =AVERAGE(E128:E135) -> 0.5225 | F136: =AVERAGE(F128:F135) -> 0.285 | G136: =AVERAGE(G128:G135) -> 0.29 | H136: =MIN(H128:H135) -> 1.25 | I136: 1 | J136: 1 | K136: 1.05 | L136: 1.3 | M136: 0 | N136: 0
P137: (iv) | Q137: half barrel = one keg = 15.5 gallons
A140: 5 | B140: TARGETED MARKET SIZE (PER PRODUCTS AND FYs)
E142: FY-1 | I142: FY-2 | M142: FY-3
C143: Retail | D143: =SUM(D146:D156) -> 1 | E143: =H24 -> 94111.95512 | H143: =SUM(H146:H156) -> 1 | I143: =I24 -> 103559.4873 | L143: =SUM(L146:L156) -> 1 | M143: =J24 -> 116277.3191
C144: Wholesale | F144: =SUM(F146:F156) -> 1 | G144: =H27 -> 242002.1703 | J144: =SUM(J146:J156) -> 1 | K144: =I27 -> 241638.8037 | N144: =SUM(N146:N156) -> 1 | O144: =J27 -> 247089.303
B145: Product ID | C145: Distribution
B146: =B128 -> BR01-01 | C146: [retail] | D146: 0.23 | E146: =E143*D146 -> 21645.74968 | H146: 0.24 | I146: =$I$143*H146 -> 24854.27695 | L146: 0.23 | M146: =M143*L146 -> 26743.78339
B147: =B129 -> BR01-02 | C147: [retail] | D147: 0.25 | E147: =E143*D147 -> 23527.98878 | H147: 0.23 | I147: =I143*H147 -> 23818.68208 | L147: 0.22 | M147: =M143*L147 -> 25581.01019
B148: BR01-03 | C148: [retail] | D148: 0.14 | E148: =E143*D148 -> 13175.67372 | H148: 0.14 | I148: =I143*H148 -> 14498.32822 | L148: 0.15 | M148: =M143*L148 -> 17441.59786
B149: BR01-04 | C149: [retail] | D149: 0.12 | E149: =E143*D149 -> 11293.43461 | H149: 0.13 | I149: =I143*H149 -> 13462.73335 | L149: 0.13 | M149: =M143*L149 -> 15116.05148
B150: BR01-05 | C150: [retail] | D150: 0.12 | E150: =E143*D150 -> 11293.43461 | H150: 0.13 | I150: =I143*H150 -> 13462.73335 | L150: 0.13 | M150: =M143*L150 -> 15116.05148
B151: BR01-06 | C151: [retail] | D151: 0.14 | E151: =E143*D151 -> 13175.67372 | H151: 0.13 | I151: =I143*H151 -> 13462.73335 | L151: 0.14 | M151: =M143*L151 -> 16278.82467
B152: BR01-07 | C152: [wholesale] | F152: 0.45 | G152: =G144*F152 -> 108900.9766 | J152: 0.48 | K152: =K144*J152 -> 115986.6258 | N152: 0.5 | O152: =O144*N152 -> 123544.6515
B153: BR01-08 | C153: [wholesale] | F153: =100%-F152 -> 0.55 | G153: =G144*F153 -> 133101.1937 | J153: 0.52 | K153: =K144*J153 -> 125652.1779 | N153: 0.5 | O153: =O144*N153 -> 123544.6515
B154: BR01-09 | C154: [retail] | D154: 0 | E154: =E143*D154 -> 0 | H154: 0 | I154: =I144*H136 -> 0 | L154: 0 | M154: =M144*L136 -> 0
A156: 6 | B156: SALES PROJECTIONS (BUSINESS UNIT: next 36 Months of Operations)
B158: Keg | C158: [units] | D158: 124 | E158: Cutoff Point | F158: 0.8
B160: Year/Month | D160: =B128 -> BR01-01 | E160: =IF(B129="","",B129) -> BR01-02 | F160: =IF(B130="","",B130) -> BR01-03 | G160: =IF(B131="","",B131) -> BR01-04 | H160: =IF(B132="","",B132) -> BR01-05 | I160: =IF(B133="","",B133) -> BR01-06 | J160: =IF(B134="","",B134) -> BR01-07 | K160: =IF(B135="","",B135) -> BR01-08 | L160: =IF(B136="","",B136) -> BR01-09
D161: =C128 -> [retail] | E161: =C129 -> [retail] | F161: =C130 -> [retail] | G161: =C131 -> [retail] | H161: =C132 -> [retail] | I161: =C133 -> [retail] | J161: =C134 -> [wholesale] | K161: =C135 -> [wholesale] | L161: =C136 -> [retail]
B162: FY-1 | D162: Percent Monthly Demand by Year
B163: Jan | D163: 0.07 | E163: 0.06 | F163: 0.05 | G163: 0.05 | H163: 0.05 | I163: 0.05 | J163: 0.05 | K163: 0.05
B164: Feb | D164: 0.07 | E164: 0.06 | F164: 0.05 | G164: 0.05 | H164: 0.05 | I164: 0.05 | J164: 0.05 | K164: 0.05
B165: Mar | D165: 0.07 | E165: 0.06 | F165: 0.06 | G165: 0.06 | H165: 0.06 | I165: 0.06 | J165: 0.06 | K165: 0.06
B166: Apr | D166: 0.07 | E166: 0.07 | F166: 0.07 | G166: 0.07 | H166: 0.07 | I166: 0.07 | J166: 0.07 | K166: 0.07
B167: May | D167: 0.08 | E167: 0.08 | F167: 0.08 | G167: 0.08 | H167: 0.08 | I167: 0.08 | J167: 0.08 | K167: 0.08
B168: Jun | D168: 0.1 | E168: 0.1 | F168: 0.1 | G168: 0.1 | H168: 0.1 | I168: 0.1 | J168: 0.1 | K168: 0.1
B169: Jul | D169: 0.1 | E169: 0.1 | F169: 0.1 | G169: 0.1 | H169: 0.1 | I169: 0.1 | J169: 0.1 | K169: 0.1
B170: Aug | D170: 0.1 | E170: 0.11 | F170: 0.12 | G170: 0.12 | H170: 0.12 | I170: 0.12 | J170: 0.12 | K170: 0.12
B171: Sep | D171: 0.1 | E171: 0.11 | F171: 0.12 | G171: 0.12 | H171: 0.12 | I171: 0.12 | J171: 0.12 | K171: 0.12
B172: Oct | D172: 0.1 | E172: 0.11 | F172: 0.11 | G172: 0.11 | H172: 0.11 | I172: 0.11 | J172: 0.11 | K172: 0.11
B173: Nov | D173: 0.07 | E173: 0.07 | F173: 0.07 | G173: 0.07 | H173: 0.07 | I173: 0.07 | J173: 0.07 | K173: 0.07
B174: Dec | D174: 0.07 | E174: 0.07 | F174: 0.07 | G174: 0.07 | H174: 0.07 | I174: 0.07 | J174: 0.07 | K174: 0.06
B175: Tot | D175: =SUM(D163:D174) -> 1 | E175: =SUM(E163:E174) -> 1 | F175: 1 | G175: 1 | H175: 1 | I175: 1 | J175: 1 | K175: 0.99 | L175: =SUM(L163:L174) -> 0
D176: Demanded Quantity per Month
B177: Jan | D177: =D189*D163 -> 1515.202477 | E177: =E189*E163 -> 1411.679327 | F177: 658.7836858 | G177: 564.6717307 | H177: 564.6717307 | I177: 658.7836858 | J177: 5445.048832 | K177: 6655.059683 | L177: =L189*L163 -> 0
B178: Feb | D178: =D189*D164 -> 1515.202477 | E178: =E189*E164 -> 1411.679327 | F178: 658.7836858 | G178: 564.6717307 | H178: 564.6717307 | I178: 658.7836858 | J178: 5445.048832 | K178: 6655.059683 | L178: =L189*L164 -> 0
B179: Mar | D179: =D189*D165 -> 1515.202477 | E179: =E189*E165 -> 1411.679327 | F179: 790.540423 | G179: 677.6060769 | H179: 677.6060769 | I179: 790.540423 | J179: 6534.058598 | K179: 7986.07162 | L179: =L189*L165 -> 0
B180: Apr | D180: =D189*D166 -> 1515.202477 | E180: =E189*E166 -> 1646.959215 | F180: 922.2971602 | G180: 790.540423 | H180: 790.540423 | I180: 922.2971602 | J180: 7623.068365 | K180: 9317.083557 | L180: =L189*L166 -> 0
B181: May | D181: =D189*D167 -> 1731.659974 | E181: =E189*E167 -> 1882.239102 | F181: 1054.053897 | G181: 903.4747691 | H181: 903.4747691 | I181: 1054.053897 | J181: 8712.078131 | K181: 10648.09549 | L181: =L189*L167 -> 0
B182: Jun | D182: =D189*D168 -> 2164.574968 | E182: =E189*E168 -> 2352.798878 | F182: 1317.567372 | G182: 1129.343461 | H182: 1129.343461 | I182: 1317.567372 | J182: 10890.09766 | K182: 13310.11937 | L182: =L189*L168 -> 0
B183: Jul | D183: =D189*D169 -> 2164.574968 | E183: =E189*E169 -> 2352.798878 | F183: 1317.567372 | G183: 1129.343461 | H183: 1129.343461 | I183: 1317.567372 | J183: 10890.09766 | K183: 13310.11937 | L183: =L189*L169 -> 0
B184: Aug | D184: =D189*D170 -> 2164.574968 | E184: =E189*E170 -> 2588.078766 | F184: 1581.080846 | G184: 1355.212154 | H184: 1355.212154 | I184: 1581.080846 | J184: 13068.1172 | K184: 15972.14324 | L184: =L189*L170 -> 0
B185: Sep | D185: =D189*D171 -> 2164.574968 | E185: =E189*E171 -> 2588.078766 | F185: 1581.080846 | G185: 1355.212154 | H185: 1355.212154 | I185: 1581.080846 | J185: 13068.1172 | K185: 15972.14324 | L185: =L189*L171 -> 0
B186: Oct | D186: =D189*D172 -> 2164.574968 | E186: =E189*E172 -> 2588.078766 | F186: 1449.324109 | G186: 1242.277808 | H186: 1242.277808 | I186: 1449.324109 | J186: 11979.10743 | K186: 14641.1313 | L186: =L189*L172 -> 0
B187: Nov | D187: =D189*D173 -> 1515.202477 | E187: =E189*E173 -> 1646.959215 | F187: 922.2971602 | G187: 790.540423 | H187: 790.540423 | I187: 922.2971602 | J187: 7623.068365 | K187: 9317.083557 | L187: =L189*L173 -> 0
B188: Dec | D188: =D189*D174 -> 1515.202477 | E188: =E189*E174 -> 1646.959215 | F188: 922.2971602 | G188: 790.540423 | H188: 790.540423 | I188: 922.2971602 | J188: 7623.068365 | K188: 7986.07162 | L188: =L189*L174 -> 0
B189: Tot | D189: =VLOOKUP(D160,TargetedMS,IF(D161="[retail]",4,6),FALSE) -> 21645.74968 | E189: =VLOOKUP(E160,TargetedMS,IF(E161="[retail]",4,6),FALSE) -> 23527.98878 | F189: 13175.67372 | G189: 11293.43461 | H189: 11293.43461 | I189: 13175.67372 | J189: 108900.9766 | K189: 133101.1937 | L189: =VLOOKUP(L160,TargetedMS,IF(L161="[retail]",4,6),FALSE) -> 0
B190: [kegs] | D190: =IF(D161="[wholesale]",D189/capacity,"") ->  | J190: 87.82336826 | K190: 107.3396723 | L190: =IF(L161="[wholesale]",L189/capacity,"") -> 
C191: Total | D191: Number of Tanks to Produce and Serve
B192: Jan | C192: =SUM(D192:Z192) ->  | D192: =ProductionFY1(1,D160,VLOOKUP(D160,ProductsRange,3,FALSE),D177) -> 
B193: Feb | C193: =SUM(D193:Z193) ->  | D193: =ProductionFY1(2,D160,VLOOKUP(D160,ProductsRange,3,FALSE),D178) ->  | E193: =ProductionFY1(2,E160,VLOOKUP(E160,ProductsRange,3,FALSE),E178) -> 
B194: Mar | D194: =ProductionFY1(3,D160,VLOOKUP(D160,ProductsRange,3,FALSE),D179) ->  | E194: =ProductionFY1(3,E160,VLOOKUP(E160,ProductsRange,3,FALSE),E179) -> 
B195: Apr | D195: =ProductionFY1(4,D160,VLOOKUP(D160,ProductsRange,3,FALSE),D180) ->  | E195: =ProductionFY1(4,E160,VLOOKUP(E160,ProductsRange,3,FALSE),E180) -> 
B196: May | D196: =ProductionFY1(5,D160,VLOOKUP(D160,ProductsRange,3,FALSE),D181) ->  | E196: =ProductionFY1(5,E160,VLOOKUP(E160,ProductsRange,3,FALSE),E181) -> 
B197: Jun | D197: =ProductionFY1(6,D160,VLOOKUP(D160,ProductsRange,3,FALSE),D182) ->  | E197: =ProductionFY1(6,E160,VLOOKUP(E160,ProductsRange,3,FALSE),E182) -> 
B198: Jul | D198: =ProductionFY1(7,D160,VLOOKUP(D160,ProductsRange,3,FALSE),D183) ->  | E198: =ProductionFY1(7,E160,VLOOKUP(E160,ProductsRange,3,FALSE),E183) -> 
B199: Aug | D199: =ProductionFY1(8,D160,VLOOKUP(D160,ProductsRange,3,FALSE),D184) ->  | E199: =ProductionFY1(8,E160,VLOOKUP(E160,ProductsRange,3,FALSE),E184) -> 
B200: Sep | D200: =ProductionFY1(9,D160,VLOOKUP(D160,ProductsRange,3,FALSE),D185) ->  | E200: =ProductionFY1(9,E160,VLOOKUP(E160,ProductsRange,3,FALSE),E185) -> 
B201: Oct | D201: =ProductionFY1(10,D160,VLOOKUP(D160,ProductsRange,3,FALSE),D186) ->  | E201: =ProductionFY1(10,E160,VLOOKUP(E160,ProductsRange,3,FALSE),E186) -> 
B202: Nov | D202: =ProductionFY1(11,D160,VLOOKUP(D160,ProductsRange,3,FALSE),D187) ->  | E202: =ProductionFY1(11,E160,VLOOKUP(E160,ProductsRange,3,FALSE),E187) -> 
B203: Dec | D203: =ProductionFY1(12,D160,VLOOKUP(D160,ProductsRange,3,FALSE),D188) ->  | E203: =ProductionFY1(12,E160,VLOOKUP(E160,ProductsRange,3,FALSE),E188) -> 
A204: Total Demand | C204: [units] | D204: =SUM(D177:D188) -> 21645.74968 | E204: 23527.98878 | F204: 13175.67372 | G204: 11293.43461 | H204: 11293.43461 | I204: 13175.67372 | J204: =J189 -> 108900.9766 | K204: =K189 -> 133101.1937 | L204: =L189 -> 0
A205: Total Supply | C205: [units] | D205: =SUM(D192:D203)*capacity ->  | L205: =SUM(L192:L203)*capacity -> 
A206: Excess Demand | C206: [units] | D206: =D204-D205 ->  | L206: =L204-L205 -> 
B207: FY-2 | D207: Percent Monthly Demand by Year
B208: Jan | D208: 0.07 | E208: 0.06 | F208: 0.05 | G208: 0.05 | H208: 0.05 | I208: 0.05 | J208: 0.05 | K208: 0.05
B209: Feb | D209: 0.07 | E209: 0.06 | F209: 0.05 | G209: 0.05 | H209: 0.05 | I209: 0.05 | J209: 0.05 | K209: 0.05
B210: Mar | D210: 0.07 | E210: 0.06 | F210: 0.06 | G210: 0.06 | H210: 0.06 | I210: 0.06 | J210: 0.06 | K210: 0.06
B211: Apr | D211: 0.07 | E211: 0.07 | F211: 0.07 | G211: 0.07 | H211: 0.07 | I211: 0.07 | J211: 0.07 | K211: 0.07
B212: May | D212: 0.08 | E212: 0.08 | F212: 0.08 | G212: 0.08 | H212: 0.08 | I212: 0.08 | J212: 0.08 | K212: 0.08
B213: Jun | D213: 0.1 | E213: 0.1 | F213: 0.1 | G213: 0.1 | H213: 0.1 | I213: 0.1 | J213: 0.1 | K213: 0.1
B214: Jul | D214: 0.1 | E214: 0.1 | F214: 0.1 | G214: 0.1 | H214: 0.1 | I214: 0.1 | J214: 0.1 | K214: 0.1
B215: Aug | D215: 0.1 | E215: 0.11 | F215: 0.12 | G215: 0.12 | H215: 0.12 | I215: 0.12 | J215: 0.12 | K215: 0.12
B216: Sep | D216: 0.1 | E216: 0.11 | F216: 0.12 | G216: 0.12 | H216: 0.12 | I216: 0.12 | J216: 0.12 | K216: 0.12
B217: Oct | D217: 0.1 | E217: 0.11 | F217: 0.11 | G217: 0.11 | H217: 0.11 | I217: 0.11 | J217: 0.11 | K217: 0.11
B218: Nov | D218: 0.07 | E218: 0.07 | F218: 0.07 | G218: 0.07 | H218: 0.07 | I218: 0.07 | J218: 0.07 | K218: 0.07
B219: Dec | D219: 0.07 | E219: 0.07 | F219: 0.07 | G219: 0.07 | H219: 0.07 | I219: 0.07 | J219: 0.07 | K219: 0.07
B220: Tot | D220: =SUM(D208:D219) -> 1 | E220: =SUM(E208:E219) -> 1 | F220: 1 | G220: 1 | H220: 1 | I220: 1 | J220: 1 | K220: 1 | L220: =SUM(L208:L219) -> 0
D221: Demanded Quantity per Month
B222: Jan | D222: =D208*D234 -> 1739.799387 | E222: =E208*E234 -> 1429.120925 | F222: =F208*F234 -> 724.916411 | G222: 673.1366674 | H222: 673.1366674 | I222: 673.1366674 | J222: 5799.331288 | K222: 6282.608896 | L222: =L208*L234 -> 0
B223: Feb | D223: =D209*D234 -> 1739.799387 | E223: =E209*E234 -> 1429.120925 | F223: 724.916411 | G223: 673.1366674 | H223: 673.1366674 | I223: 673.1366674 | J223: 5799.331288 | K223: 6282.608896 | L223: =L209*L234 -> 0
B224: Mar | D224: =D210*D234 -> 1739.799387 | E224: =E210*E234 -> 1429.120925 | F224: 869.8996933 | G224: 807.7640009 | H224: 807.7640009 | I224: 807.7640009 | J224: 6959.197546 | K224: 7539.130675 | L224: =L210*L234 -> 0
B225: Apr | D225: =D211*D234 -> 1739.799387 | E225: =E211*E234 -> 1667.307745 | F225: 1014.882975 | G225: 942.3913344 | H225: 942.3913344 | I225: 942.3913344 | J225: 8119.063804 | K225: 8795.652454 | L225: =L211*L234 -> 0
B226: May | D226: =D212*D234 -> 1988.342156 | E226: =E212*E234 -> 1905.494566 | F226: 1159.866258 | G226: 1077.018668 | H226: 1077.018668 | I226: 1077.018668 | J226: 9278.930061 | K226: 10052.17423 | L226: =L212*L234 -> 0
B227: Jun | D227: =D213*D234 -> 2485.427695 | E227: =E213*E234 -> 2381.868208 | F227: 1449.832822 | G227: 1346.273335 | H227: 1346.273335 | I227: 1346.273335 | J227: 11598.66258 | K227: 12565.21779 | L227: =L213*L$232 -> 0
B228: Jul | D228: =D214*D234 -> 2485.427695 | E228: =E214*E234 -> 2381.868208 | F228: 1449.832822 | G228: 1346.273335 | H228: 1346.273335 | I228: 1346.273335 | J228: 11598.66258 | K228: 12565.21779 | L228: =L214*L234 -> 0
B229: Aug | D229: =D215*D234 -> 2485.427695 | E229: =E215*E234 -> 2620.055029 | F229: 1739.799387 | G229: 1615.528002 | H229: 1615.528002 | I229: 1615.528002 | J229: 13918.39509 | K229: 15078.26135 | L229: =L215*L234 -> 0
B230: Sep | D230: =D216*D234 -> 2485.427695 | E230: =E216*E234 -> 2620.055029 | F230: 1739.799387 | G230: 1615.528002 | H230: 1615.528002 | I230: 1615.528002 | J230: 13918.39509 | K230: 15078.26135 | L230: =L216*L234 -> 0
B231: Oct | D231: =D217*D234 -> 2485.427695 | E231: =E217*E234 -> 2620.055029 | F231: 1594.816104 | G231: 1480.900668 | H231: 1480.900668 | I231: 1480.900668 | J231: 12758.52883 | K231: 13821.73957 | L231: =L217*L234 -> 0
B232: Nov | D232: =D218*D234 -> 1739.799387 | E232: =E218*E234 -> 1667.307745 | F232: 1014.882975 | G232: 942.3913344 | H232: 942.3913344 | I232: 942.3913344 | J232: 8119.063804 | K232: 8795.652454 | L232: =L218*L234 -> 0
B233: Dec | D233: =D219*D234 -> 1739.799387 | E233: =E219*E234 -> 1667.307745 | F233: 1014.882975 | G233: 942.3913344 | H233: 942.3913344 | I233: 942.3913344 | J233: 8119.063804 | K233: 8795.652454 | L233: =L219*L234 -> 0
B234: Tot | D234: =VLOOKUP(D160,TargetedMS,IF(D161="[retail]",8,10),FALSE) -> 24854.27695 | E234: 23818.68208 | F234: 14498.32822 | G234: 13462.73335 | H234: 13462.73335 | I234: 13462.73335 | J234: 115986.6258 | K234: 125652.1779 | L234: 0
B235: [kegs] | D235: =IF(D161="[wholesale]",D234/capacity,"") ->  | J235: 93.53760143 | K235: 101.3324015
C236: Total | D236: Number of Tanks to Produce and Serve
B237: Jan | C237: =SUM(D237:Z237) ->  | D237: =ProductionFY2(1,D160,VLOOKUP(D160,ProductsRange,3,FALSE),D222) ->  | E237: =ProductionFY2(1,E160,VLOOKUP(E160,ProductsRange,3,FALSE),E222) ->  | L237: =ProductionFY2(1,L160,VLOOKUP(L160,ProductsRange,3,FALSE),L222) -> 
B238: Feb | D238: =ProductionFY2(2,D160,VLOOKUP(D160,ProductsRange,3,FALSE),D223) ->  | E238: =ProductionFY2(2,E160,VLOOKUP(E160,ProductsRange,3,FALSE),E223) ->  | F238: =ProductionFY2(2,F160,VLOOKUP(F160,ProductsRange,3,FALSE),F223) -> 
B239: Mar | D239: =ProductionFY2(3,D160,VLOOKUP(D160,ProductsRange,3,FALSE),D224) ->  | E239: =ProductionFY2(3,E160,VLOOKUP(E160,ProductsRange,3,FALSE),E224) -> 
B240: Apr | D240: =ProductionFY2(4,D160,VLOOKUP(D160,ProductsRange,3,FALSE),D225) ->  | E240: =ProductionFY2(4,E160,VLOOKUP(E160,ProductsRange,3,FALSE),E225) -> 
B241: May | D241: =ProductionFY2(5,D160,VLOOKUP(D160,ProductsRange,3,FALSE),D226) ->  | E241: =ProductionFY2(5,E160,VLOOKUP(E160,ProductsRange,3,FALSE),E226) -> 
B242: Jun | D242: =ProductionFY2(6,D160,VLOOKUP(D160,ProductsRange,3,FALSE),D227) ->  | E242: =ProductionFY2(6,E160,VLOOKUP(E160,ProductsRange,3,FALSE),E227) -> 
B243: Jul | D243: =ProductionFY2(7,D160,VLOOKUP(D160,ProductsRange,3,FALSE),D228) ->  | E243: =ProductionFY2(7,E160,VLOOKUP(E160,ProductsRange,3,FALSE),E228) -> 
B244: Aug | D244: =ProductionFY2(8,D160,VLOOKUP(D160,ProductsRange,3,FALSE),D229) ->  | E244: =ProductionFY2(8,E160,VLOOKUP(E160,ProductsRange,3,FALSE),E229) -> 
B245: Sep | D245: =ProductionFY2(9,D160,VLOOKUP(D160,ProductsRange,3,FALSE),D230) ->  | E245: =ProductionFY2(9,E160,VLOOKUP(E160,ProductsRange,3,FALSE),E230) -> 
... 107 more rows

Sheet 36-Mo-Fin-Pr
K1: ="Current Cycle "&CurrentCycle -> Current Cycle 8 | L1: ="Cycle in Calculation "&CycleInCalculation -> Cycle in Calculation 8
A5: 1 | B5: Sales Projections
D6: Sales Projections: Products sold per month (for FY-1, FY-2, and FY-3)
B8: Products | D8: Jan | E8: Feb | F8: Mar | G8: Apr | H8: May | I8: Jun | J8: Jul | K8: Aug | L8: Sep | M8: Oct | N8: Nov | O8: Dec | P8: Overall
B10: BR01-01, | C10: FY-1 | D10: 1122.586605 | E10: 1676.818182 | F10: 1303.163539 | G10: 1248.493151 | H10: 1471.186441 | I10: 1724.503311 | J10: 1724.503311 | K10: 1724.503311 | L10: 1694.015192 | M10: 1461.894737 | N10: 1505.791282 | O10: 1249.271028 | P10: =SUM(D10:O10) -> 17906.73009 | Q10: FY-1
C11: FY-2 | D11: 1240 | E11: 1829.508197 | F11: 1340.540541 | G11: 1282.758621 | H11: 1809.72973 | I11: 1754.716981 | J11: 1754.716981 | K11: 1754.716981 | L11: 1757.480315 | M11: 1656.951797 | N11: 1550 | O11: 1403.773585 | P11: 19134.89373 | Q11: FY-2
C12: FY-3 | D12: 1389.234136 | E12: 2026.666667 | F12: 1578.181818 | G12: 1562.958199 | H12: 1882.88225 | I12: 2325.546381 | J12: 2325.546381 | K12: 2325.546381 | L12: 1994.226804 | M12: 1767.920792 | N12: 1785.194274 | O12: 1594.911661 | P12: 22558.81574 | Q12: FY-3
B13: BR01-02, | C13: FY-1 | D13: 0 | E13: 0 | F13: 1240 | G13: 1240 | H13: 2258.686923 | I13: 2751.18859 | J13: 2751.18859 | K13: 2751.18859 | L13: 940.7872219 | M13: 940.7872219 | N13: 0 | O13: 0 | P13: 14873.82714 | Q13: FY-1
C14: FY-2 | D14: 0 | E14: 1035.594873 | F14: 1240 | G14: 1240 | H14: 2455.92233 | I14: 2991.534989 | J14: 2991.534989 | K14: 2991.534989 | L14: 1032.059186 | M14: 1032.059186 | N14: 1035.594873 | O14: 0 | P14: 18045.83541 | Q14: FY-2
C15: FY-3 | D15: 0 | E15: 1162.773191 | F15: 1240 | G15: 2325.546381 | H15: 2758.936605 | I15: 3355.727003 | J15: 3355.727003 | K15: 3355.727003 | L15: 1162.773191 | M15: 1162.773191 | N15: 1162.773191 | O15: 0 | P15: 21042.75676 | Q15: FY-3
B16: BR01-03, | C16: FY-1 | D16: 0 | E16: 0 | F16: 1240 | G16: 1240 | H16: 1240 | I16: 1240 | J16: 1240 | K16: 1240 | L16: 1240 | M16: 0 | N16: 0 | O16: 0 | P16: 8680 | Q16: FY-1
C17: FY-2 | D17: 0 | E17: 0 | F17: 1240 | G17: 2174.749233 | H17: 2174.749233 | I17: 1240 | J17: 1240 | K17: 1240 | L17: 1240 | M17: 0 | N17: 0 | O17: 0 | P17: 10549.49847 | Q17: FY-2
C18: FY-3 | D18: 0 | E18: 0 | F18: 1240 | G18: 2441.8237 | H18: 2441.8237 | I18: 1240 | J18: 1240 | K18: 1240 | L18: 1240 | M18: 0 | N18: 0 | O18: 0 | P18: 11083.6474 | Q18: FY-3
B19: BR01-04, | C19: FY-1 | D19: 0 | E19: 922.2971602 | F19: 1240 | G19: 1240 | H19: 1240 | I19: 1054.053897 | J19: 1185.810634 | K19: 1240 | L19: 1054.053897 | M19: 1054.053897 | N19: 790.540423 | O19: 0 | P19: 11020.80991 | Q19: FY-1
C20: FY-2 | D20: 0 | E20: 1014.882975 | F20: 1240 | G20: 1240 | H20: 1240 | I20: 1159.866258 | J20: 1240 | K20: 1240 | L20: 1159.866258 | M20: 1159.866258 | N20: 869.8996933 | O20: 0 | P20: 11564.38144 | Q20: FY-2
C21: FY-3 | D21: 0 | E21: 1139.517727 | F21: 1240 | G21: 1240 | H21: 2116.247207 | I21: 1240 | J21: 1240 | K21: 1240 | L21: 1240 | M21: 1240 | N21: 976.7294802 | O21: 0 | P21: 12912.49441 | Q21: FY-3
B22: BR01-05, | C22: FY-1 | D22: 2371.621269 | E22: 2371.621269 | F22: 0 | G22: 0 | H22: 0 | I22: 0 | J22: 0 | K22: 0 | L22: 1054.053897 | M22: 1240 | N22: 1240 | O22: 1240 | P22: 9517.296435 | Q22: FY-1
C23: FY-2 | D23: 2480 | E23: 2480 | F23: 0 | G23: 0 | H23: 0 | I23: 0 | J23: 0 | K23: 0 | L23: 1159.866258 | M23: 1240 | N23: 1240 | O23: 2174.749233 | P23: 10774.61549 | Q23: FY-2
C24: FY-3 | D24: 2480 | E24: 2480 | F24: 813.9412335 | G24: 0 | H24: 0 | I24: 0 | J24: 0 | K24: 0 | L24: 1240 | M24: 1240 | N24: 2116.247207 | O24: 2441.8237 | P24: 12812.01214 | Q24: FY-3
B25: BR01-06, | C25: FY-1 | D25: 1240 | E25: 1240 | F25: 1240 | G25: 2480 | H25: 2480 | I25: 0 | J25: 0 | K25: 0 | L25: 0 | M25: 1016.409115 | N25: 1016.409115 | O25: 1185.810634 | P25: 11898.62887 | Q25: FY-1
C26: FY-2 | D26: 1240 | E26: 1240 | F26: 2423.292003 | G26: 2480 | H26: 2480 | I26: 0 | J26: 0 | K26: 0 | L26: 0 | M26: 1118.442463 | N26: 1118.442463 | O26: 1240 | P26: 13340.17693 | Q26: FY-2
C27: FY-3 | D27: 1240 | E27: 1240 | F27: 2480 | G27: 3720 | H27: 2480 | I27: 1046.495872 | J27: 0 | K27: 0 | L27: 1046.495872 | M27: 1240 | N27: 1240 | O27: 1240 | P27: 16972.99174 | Q27: FY-3
B28: BR01-07, | C28: FY-1 | D28: 16237.41339 | E28: 19403.18182 | F28: 8616.836461 | G28: 6191.506849 | H28: 4728.813559 | I28: 1995.496689 | J28: 1995.496689 | K28: 1995.496689 | L28: 13068.1172 | M28: 8458.105263 | N28: 10890.09766 | O28: 12390.72897 | P28: 105971.2912 | Q28: FY-1
C29: FY-2 | D29: 17360 | E29: 20490.4918 | F29: 8579.459459 | G29: 6157.241379 | H29: 5630.27027 | I29: 1965.283019 | J29: 1965.283019 | K29: 1965.283019 | L29: 13122.51969 | M29: 9278.930061 | N29: 10850 | O29: 13476.22642 | P29: 110840.9881 | Q29: FY-2
C30: FY-3 | D30: 18450.76586 | E30: 21533.33333 | F30: 9581.818182 | G30: 7117.041801 | H30: 5557.11775 | I30: 2470.89303 | J30: 2470.89303 | K30: 2470.89303 | L30: 14125.7732 | M30: 9392.079208 | N30: 11854.80573 | O30: 14525.08834 | P30: 119550.5025 | Q30: FY-3
B31: BR01-08, | C31: FY-1 | D31: 0 | E31: 0 | F31: 0 | G31: 0 | H31: 19965.17905 | I31: 22048.81141 | J31: 22048.81141 | K31: 22048.81141 | L31: 22619.21278 | M31: 22619.21278 | N31: 0 | O31: 0 | P31: 131350.0388 | Q31: FY-1
C32: FY-2 | D32: 0 | E32: 0 | F32: 0 | G32: 0 | H32: 18624.07767 | I32: 20568.46501 | J32: 20568.46501 | K32: 20568.46501 | L32: 21287.94081 | M32: 21287.94081 | N32: 0 | O32: 0 | P32: 122905.3543 | Q32: FY-2
C33: FY-3 | D33: 0 | E33: 0 | F33: 0 | G33: 0 | H33: 18321.06339 | I33: 20204.273 | J33: 20204.273 | K33: 20204.273 | L33: 21002.59076 | M33: 21002.59076 | N33: 0 | O33: 0 | P33: 120939.0639 | Q33: FY-3
B34: BR01-09, | C34: FY-1 | D34: 108.378731 | E34: 54.1893655 | F34: 0 | G34: 0 | H34: 96.13402697 | I34: 185.9461027 | J34: 54.1893655 | K34: 0 | L34: 489.7598167 | M34: 409.5369874 | N34: 677.1615161 | O34: 54.1893655 | P34: 2129.485277 | Q34: FY-1
C35: FY-2 | D35: 0 | E35: 429.5221516 | F35: 56.70799735 | G35: 305.2507669 | H35: 305.2507669 | I35: 80.13374232 | J35: 0 | K35: 0 | L35: 160.2674846 | M35: 425.8094214 | N35: 696.0629711 | O35: 305.2507669 | P35: 2764.256069 | Q35: FY-2
C36: FY-3 | D36: 0 | E36: 177.7090825 | F36: 426.0587665 | G36: 192.6299183 | H36: 401.9290926 | I36: 357.064717 | J36: 163.5605885 | K36: 163.5605885 | L36: 348.1401815 | M36: 154.6360531 | N36: 704.2501222 | O36: 38.17629962 | P36: 3127.71541 | Q36: FY-3
B38: Total Products | C38: FY-1 | D38: =SUMIF(SalesByYear,"FY-1",SalesJan) -> 21080 | E38: =SUMIF(SalesByYear,"FY-1",SalesFeb) -> 25668.10779 | F38: =SUMIF(SalesByYear,"FY-1",SalesMar) -> 14880 | G38: =SUMIF(SalesByYear,"FY-1",SalesApr) -> 13640 | H38: =SUMIF(SalesByYear,"FY-1",SalesMay) -> 33480 | I38: =SUMIF(SalesByYear,"FY-1",SalesJun) -> 31000 | J38: =SUMIF(SalesByYear,"FY-1",SalesJul) -> 31000 | K38: =SUMIF(SalesByYear,"FY-1",SalesAug) -> 31000 | L38: =SUMIF(SalesByYear,"FY-1",SalesSep) -> 42160 | M38: =SUMIF(SalesByYear,"FY-1",SalesOct) -> 37200 | N38: =SUMIF(SalesByYear,"FY-1",SalesNov) -> 16120 | O38: =SUMIF(SalesByYear,"FY-1",SalesDec) -> 16120 | P38: =SUM(D38:O38) -> 313348.1078 | Q38: FY-1
B39: per Months | C39: FY-2 | D39: =SUMIF(SalesByYear,"FY-2",SalesJan) -> 22320 | E39: =SUMIF(SalesByYear,"FY-2",SalesFeb) -> 28520 | F39: =SUMIF(SalesByYear,"FY-2",SalesMar) -> 16120 | G39: =SUMIF(SalesByYear,"FY-2",SalesApr) -> 14880 | H39: =SUMIF(SalesByYear,"FY-2",SalesMay) -> 34720 | I39: =SUMIF(SalesByYear,"FY-2",SalesJun) -> 29760 | J39: =SUMIF(SalesByYear,"FY-2",SalesJul) -> 29760 | K39: =SUMIF(SalesByYear,"FY-2",SalesAug) -> 29760 | L39: =SUMIF(SalesByYear,"FY-2",SalesSep) -> 40920 | M39: =SUMIF(SalesByYear,"FY-2",SalesOct) -> 37200 | N39: =SUMIF(SalesByYear,"FY-2",SalesNov) -> 17360 | O39: =SUMIF(SalesByYear,"FY-2",SalesDec) -> 18600 | P39: =SUM(D39:O39) -> 319920 | Q39: FY-2
C40: FY-3 | D40: =SUMIF(SalesByYear,"FY-3",SalesJan) -> 23560 | E40: =SUMIF(SalesByYear,"FY-3",SalesFeb) -> 29760 | F40: =SUMIF(SalesByYear,"FY-3",SalesMar) -> 18600 | G40: =SUMIF(SalesByYear,"FY-3",SalesApr) -> 18600 | H40: =SUMIF(SalesByYear,"FY-3",SalesMay) -> 35960 | I40: =SUMIF(SalesByYear,"FY-3",SalesJun) -> 32240 | J40: =SUMIF(SalesByYear,"FY-3",SalesJul) -> 31000 | K40: =SUMIF(SalesByYear,"FY-3",SalesAug) -> 31000 | L40: =SUMIF(SalesByYear,"FY-3",SalesSep) -> 43400 | M40: =SUMIF(SalesByYear,"FY-3",SalesOct) -> 37200 | N40: =SUMIF(SalesByYear,"FY-3",SalesNov) -> 19840 | O40: =SUMIF(SalesByYear,"FY-3",SalesDec) -> 19840 | P40: =SUM(D40:O40) -> 341000 | Q40: FY-3
P41: =SUM(P38:P40) -> 974268.1078 | Q41: Overall
A45: 2 | B45: Prices and Variable Costs per product
E48: Variable Costs per Unit
B49: Product ID | C49: Distribution | D49: Name | E49: Materials | F49: Labor | G49: Others | H49: Overall | I49: Prices
B50: BR01-01, | C50: [retail] | D50: Pilsner | E50: 0.36 | F50: 0.2 | G50: 0.26 | H50: =SUM(E50:G50) -> 0.82 | I50: 5
B51: BR01-02, | C51: [retail] | D51: Bavarian Lager | E51: 0.36 | F51: 0.2 | G51: 0.26 | H51: 0.82 | I51: 5
B52: BR01-03, | C52: [retail] | D52: Light Wheat | E52: 0.36 | F52: 0.2 | G52: 0.26 | H52: 0.82 | I52: 5
B53: BR01-04, | C53: [retail] | D53: Red Wheat | E53: 0.36 | F53: 0.2 | G53: 0.26 | H53: 0.82 | I53: 5
B54: BR01-05, | C54: [retail] | D54: Pale Ale | E54: 0.36 | F54: 0.2 | G54: 0.26 | H54: 0.82 | I54: 5
B55: BR01-06, | C55: [retail] | D55: Bock Dark | E55: 0.36 | F55: 0.2 | G55: 0.26 | H55: 0.82 | I55: 1.3
B56: BR01-07, | C56: [wholesale] | D56: Pilsner | E56: 0.36 | F56: 0.2 | G56: 0.26 | H56: 0.82 | I56: 1.3
B57: BR01-08, | C57: [wholesale] | D57: Bavarian Lager | E57: 0.36 | F57: 0.2 | G57: 0.26 | H57: 0.82 | I57: 5
B58: BR01-09, | C58: [retail] | D58: Special Offer | E58: 0.36 | F58: 0.2 | G58: 0.26 | H58: 0.82 | I58: 2.5
A61: 3 | B61: Annual Fixed Costs
C64: FY-1 | D64: FY-2 | E64: FY-3
B65: Employees salaries | C65: =VLOOKUP(2.11,'Sim-Report'!1:1048576,3+CycleInCalculation,FALSE) -> 115000 | D65: =VLOOKUP(2.12,'Sim-Report'!1:1048576,3+CycleInCalculation,FALSE) -> 125750 | E65: =VLOOKUP(2.13,'Sim-Report'!1:1048576,3+CycleInCalculation,FALSE) -> 137537.5
B66: Utilities&Other | C66: =VLOOKUP(2.31,'Sim-Report'!1:1048576,3+CycleInCalculation,FALSE) -> 31500 | D66: =VLOOKUP(2.32,'Sim-Report'!1:1048576,3+CycleInCalculation,FALSE) -> 38650 | E66: =VLOOKUP(2.33,'Sim-Report'!1:1048576,3+CycleInCalculation,FALSE) -> 38345
B67: Marketing Costs | C67: =VLOOKUP(2.41,'Sim-Report'!1:1048576,3+CycleInCalculation,FALSE) -> 83000 | D67: =VLOOKUP(2.42,'Sim-Report'!1:1048576,3+CycleInCalculation,FALSE) -> 83830 | E67: =VLOOKUP(2.43,'Sim-Report'!1:1048576,3+CycleInCalculation,FALSE) -> 93096
B68: Rent | C68: =VLOOKUP(2.51,'Sim-Report'!1:1048576,3+CycleInCalculation,FALSE) -> 22000 | D68: =VLOOKUP(2.52,'Sim-Report'!1:1048576,3+CycleInCalculation,FALSE) -> 24200 | E68: =VLOOKUP(2.53,'Sim-Report'!1:1048576,3+CycleInCalculation,FALSE) -> 29040
B69: Loans Payments | C69: =VLOOKUP(2.61,'Sim-Report'!1:1048576,3+CycleInCalculation,FALSE) -> 14362.11 | D69: =VLOOKUP(2.62,'Sim-Report'!1:1048576,3+CycleInCalculation,FALSE) -> 14362.11 | E69: =VLOOKUP(2.63,'Sim-Report'!1:1048576,3+CycleInCalculation,FALSE) -> 14362.11
B71: Total Fixed Costs | C71: =SUM(C65:C70) -> 265862.11 | D71: =SUM(D65:D70) -> 286792.11 | E71: =SUM(E65:E70) -> 312380.61
B73: Total Current Assets | C73: =VLOOKUP(2.64,'Sim-Report'!1:1048576,3+CycleInCalculation,FALSE) -> 40000
B74: Private Investment | C74: =VLOOKUP(2,'Sim-Report'!1:1048576,3+CycleInCalculation,FALSE) -> 150000
A76: 4 | B76: 12 Month Proforma: FY-1
B77: Year | D77: FY-1 | E77: FY-1 | F77: FY-1 | G77: FY-1 | H77: FY-1 | I77: FY-1 | J77: FY-1 | K77: FY-1 | L77: FY-1 | M77: FY-1 | N77: FY-1 | O77: FY-1 | P77: FY-1
B78: Month | D78: Jan | E78: Feb | F78: Mar | G78: Apr | H78: May | I78: Jun | J78: Jul | K78: Aug | L78: Sep | M78: Oct | N78: Nov | O78: Dec | P78: Total
B79: BR01-01, | C79: Price per unit | D79: =Price4_36MoPr(VarCostByProduct,B79) -> 
C80: Variable cost | D80: =Varcosts4_36MoPr(VarCostByProduct,B79) -> 
C81: Sales Volume | D81: =Sales4_36MoPr(SalesJan,"FY-1",$B79) ->  | E81: =Sales4_36MoPr(SalesFeb,"FY-1",$B79) ->  | F81: =Sales4_36MoPr(SalesMar,"FY-1",$B79) ->  | G81: =Sales4_36MoPr(SalesApr,"FY-1",$B79) ->  | H81: =Sales4_36MoPr(SalesMay,"FY-1",$B79) ->  | I81: =Sales4_36MoPr(SalesJun,"FY-1",$B79) ->  | J81: =Sales4_36MoPr(SalesJul,"FY-1",$B79) ->  | K81: =Sales4_36MoPr(SalesAug,"FY-1",$B79) ->  | L81: =Sales4_36MoPr(SalesSep,"FY-1",$B79) ->  | M81: =Sales4_36MoPr(SalesOct,"FY-1",$B79) ->  | N81: =Sales4_36MoPr(SalesNov,"FY-1",$B79) ->  | O81: =Sales4_36MoPr(SalesDec,"FY-1",$B79) ->  | P81: =SUM(D81:O81) -> 
C82: Revenue | D82: =D81*$D79 ->  | P82: =SUM(D82:O82) -> 
C83: Expenses | D83: =D81*$D$80 ->  | E83: =E81*$D$80 ->  | F83: =F81*$D80 ->  | P83: =SUM(D83:O83) -> 
C84: Contribution | D84: =D82-D83 ->  | E84: =E82-E83 ->  | P84: =SUM(D84:O84) -> 
B85: BR01-02, | C85: Price per unit | D85: =Price4_36MoPr(VarCostByProduct,B85) -> 
C86: Variable cost | D86: =Varcosts4_36MoPr(VarCostByProduct,B85) -> 
C87: Sales Volume | D87: =Sales4_36MoPr(SalesJan,"FY-1",$B85) ->  | E87: =Sales4_36MoPr(SalesFeb,"FY-1",$B85) ->  | F87: =Sales4_36MoPr(SalesMar,"FY-1",$B85) ->  | G87: =Sales4_36MoPr(SalesApr,"FY-1",$B85) ->  | H87: =Sales4_36MoPr(SalesMay,"FY-1",$B85) ->  | I87: =Sales4_36MoPr(SalesJun,"FY-1",$B85) ->  | J87: =Sales4_36MoPr(SalesJul,"FY-1",$B85) ->  | K87: =Sales4_36MoPr(SalesAug,"FY-1",$B85) ->  | L87: =Sales4_36MoPr(SalesSep,"FY-1",$B85) ->  | M87: =Sales4_36MoPr(SalesOct,"FY-1",$B85) ->  | N87: =Sales4_36MoPr(SalesNov,"FY-1",$B85) ->  | O87: =Sales4_36MoPr(SalesDec,"FY-1",$B85) ->  | P87: =SUM(D87:O87) -> 
C88: Revenue | D88: =D87*$D85 ->  | P88: =SUM(D88:O88) -> 
C89: Expenses | D89: =D87*$D$80 ->  | E89: =E87*$D$80 ->  | F89: =F87*$D86 ->  | P89: =SUM(D89:O89) -> 
C90: Contribution | D90: =D88-D89 ->  | E90: =E88-E89 ->  | P90: =SUM(D90:O90) -> 
B91: BR01-03, | C91: Price per unit | D91: =Price4_36MoPr(VarCostByProduct,B91) -> 
C92: Variable cost | D92: =Varcosts4_36MoPr(VarCostByProduct,B91) -> 
C93: Sales Volume | D93: =Sales4_36MoPr(SalesJan,"FY-1",$B91) ->  | E93: =Sales4_36MoPr(SalesFeb,"FY-1",$B91) ->  | F93: =Sales4_36MoPr(SalesMar,"FY-1",$B91) ->  | G93: =Sales4_36MoPr(SalesApr,"FY-1",$B91) ->  | H93: =Sales4_36MoPr(SalesMay,"FY-1",$B91) ->  | I93: =Sales4_36MoPr(SalesJun,"FY-1",$B91) ->  | J93: =Sales4_36MoPr(SalesJul,"FY-1",$B91) ->  | K93: =Sales4_36MoPr(SalesAug,"FY-1",$B91) ->  | L93: =Sales4_36MoPr(SalesSep,"FY-1",$B91) ->  | M93: =Sales4_36MoPr(SalesOct,"FY-1",$B91) ->  | N93: =Sales4_36MoPr(SalesNov,"FY-1",$B91) ->  | O93: =Sales4_36MoPr(SalesDec,"FY-1",$B91) ->  | P93: =SUM(D93:O93) -> 
C94: Revenue | D94: =D93*$D91 ->  | P94: =SUM(D94:O94) -> 
C95: Expenses | D95: =D93*$D$80 ->  | E95: =E93*$D$80 ->  | F95: =F93*$D92 ->  | P95: =SUM(D95:O95) -> 
C96: Contribution | D96: =D94-D95 ->  | E96: =E94-E95 ->  | P96: =SUM(D96:O96) -> 
B97: BR01-04, | C97: Price per unit | D97: =Price4_36MoPr(VarCostByProduct,B97) -> 
C98: Variable cost | D98: =Varcosts4_36MoPr(VarCostByProduct,B97) -> 
C99: Sales Volume | D99: =Sales4_36MoPr(SalesJan,"FY-1",$B97) ->  | E99: =Sales4_36MoPr(SalesFeb,"FY-1",$B97) ->  | F99: =Sales4_36MoPr(SalesMar,"FY-1",$B97) ->  | G99: =Sales4_36MoPr(SalesApr,"FY-1",$B97) ->  | H99: =Sales4_36MoPr(SalesMay,"FY-1",$B97) ->  | I99: =Sales4_36MoPr(SalesJun,"FY-1",$B97) ->  | J99: =Sales4_36MoPr(SalesJul,"FY-1",$B97) ->  | K99: =Sales4_36MoPr(SalesAug,"FY-1",$B97) ->  | L99: =Sales4_36MoPr(SalesSep,"FY-1",$B97) ->  | M99: =Sales4_36MoPr(SalesOct,"FY-1",$B97) ->  | N99: =Sales4_36MoPr(SalesNov,"FY-1",$B97) ->  | O99: =Sales4_36MoPr(SalesDec,"FY-1",$B97) ->  | P99: =SUM(D99:O99) -> 
C100: Revenue | D100: =D99*$D97 ->  | P100: =SUM(D100:O100) -> 
C101: Expenses | D101: =D99*$D$80 ->  | E101: =E99*$D$80 ->  | F101: =F99*$D98 ->  | P101: =SUM(D101:O101) -> 
C102: Contribution | D102: =D100-D101 ->  | E102: =E100-E101 ->  | P102: =SUM(D102:O102) -> 
B103: BR01-05, | C103: Price per unit | D103: =Price4_36MoPr(VarCostByProduct,B103) -> 
C104: Variable cost | D104: =Varcosts4_36MoPr(VarCostByProduct,B103) -> 
C105: Sales Volume | D105: =Sales4_36MoPr(SalesJan,"FY-1",$B103) ->  | E105: =Sales4_36MoPr(SalesFeb,"FY-1",$B103) ->  | F105: =Sales4_36MoPr(SalesMar,"FY-1",$B103) ->  | G105: =Sales4_36MoPr(SalesApr,"FY-1",$B103) ->  | H105: =Sales4_36MoPr(SalesMay,"FY-1",$B103) ->  | I105: =Sales4_36MoPr(SalesJun,"FY-1",$B103) ->  | J105: =Sales4_36MoPr(SalesJul,"FY-1",$B103) ->  | K105: =Sales4_36MoPr(SalesAug,"FY-1",$B103) ->  | L105: =Sales4_36MoPr(SalesSep,"FY-1",$B103) ->  | M105: =Sales4_36MoPr(SalesOct,"FY-1",$B103) ->  | N105: =Sales4_36MoPr(SalesNov,"FY-1",$B103) ->  | O105: =Sales4_36MoPr(SalesDec,"FY-1",$B103) ->  | P105: =SUM(D105:O105) -> 
C106: Revenue | D106: =D105*$D103 ->  | P106: =SUM(D106:O106) -> 
C107: Expenses | D107: =D105*$D$80 ->  | E107: =E105*$D$80 ->  | F107: =F105*$D104 ->  | P107: =SUM(D107:O107) -> 
C108: Contribution | D108: =D106-D107 ->  | E108: =E106-E107 ->  | P108: =SUM(D108:O108) -> 
B109: BR01-06, | C109: Price per unit | D109: =Price4_36MoPr(VarCostByProduct,B109) -> 
C110: Variable cost | D110: =Varcosts4_36MoPr(VarCostByProduct,B109) -> 
C111: Sales Volume | D111: =Sales4_36MoPr(SalesJan,"FY-1",$B109) ->  | E111: =Sales4_36MoPr(SalesFeb,"FY-1",$B109) ->  | F111: =Sales4_36MoPr(SalesMar,"FY-1",$B109) ->  | G111: =Sales4_36MoPr(SalesApr,"FY-1",$B109) ->  | H111: =Sales4_36MoPr(SalesMay,"FY-1",$B109) ->  | I111: =Sales4_36MoPr(SalesJun,"FY-1",$B109) ->  | J111: =Sales4_36MoPr(SalesJul,"FY-1",$B109) ->  | K111: =Sales4_36MoPr(SalesAug,"FY-1",$B109) ->  | L111: =Sales4_36MoPr(SalesSep,"FY-1",$B109) ->  | M111: =Sales4_36MoPr(SalesOct,"FY-1",$B109) ->  | N111: =Sales4_36MoPr(SalesNov,"FY-1",$B109) ->  | O111: =Sales4_36MoPr(SalesDec,"FY-1",$B109) ->  | P111: =SUM(D111:O111) -> 
C112: Revenue | D112: =D111*$D109 ->  | P112: =SUM(D112:O112) -> 
C113: Expenses | D113: =D111*$D$80 ->  | E113: =E111*$D$80 ->  | F113: =F111*$D110 ->  | P113: =SUM(D113:O113) -> 
C114: Contribution | D114: =D112-D113 ->  | E114: =E112-E113 ->  | P114: =SUM(D114:O114) -> 
B115: BR01-07, | C115: Price per unit | D115: =Price4_36MoPr(VarCostByProduct,B115) -> 
C116: Variable cost | D116: =Varcosts4_36MoPr(VarCostByProduct,B115) -> 
C117: Sales Volume | D117: =Sales4_36MoPr(SalesJan,"FY-1",$B115) ->  | E117: =Sales4_36MoPr(SalesFeb,"FY-1",$B115) ->  | F117: =Sales4_36MoPr(SalesMar,"FY-1",$B115) ->  | G117: =Sales4_36MoPr(SalesApr,"FY-1",$B115) ->  | H117: =Sales4_36MoPr(SalesMay,"FY-1",$B115) ->  | I117: =Sales4_36MoPr(SalesJun,"FY-1",$B115) ->  | J117: =Sales4_36MoPr(SalesJul,"FY-1",$B115) ->  | K117: =Sales4_36MoPr(SalesAug,"FY-1",$B115) ->  | L117: =Sales4_36MoPr(SalesSep,"FY-1",$B115) ->  | M117: =Sales4_36MoPr(SalesOct,"FY-1",$B115) ->  | N117: =Sales4_36MoPr(SalesNov,"FY-1",$B115) ->  | O117: =Sales4_36MoPr(SalesDec,"FY-1",$B115) ->  | P117: =SUM(D117:O117) -> 
C118: Revenue | D118: =D117*$D115 ->  | E118: =E117*$D115 ->  | P118: =SUM(D118:O118) -> 
C119: Expenses | D119: =D117*$D$80 ->  | E119: =E117*$D$80 ->  | F119: =F117*$D116 ->  | P119: =SUM(D119:O119) -> 
C120: Contribution | D120: =D118-D119 ->  | E120: =E118-E119 ->  | P120: =SUM(D120:O120) -> 
B121: BR01-08, | C121: Price per unit | D121: =Price4_36MoPr(VarCostByProduct,B121) -> 
C122: Variable cost | D122: =Varcosts4_36MoPr(VarCostByProduct,B121) -> 
C123: Sales Volume | D123: =Sales4_36MoPr(SalesJan,"FY-1",$B121) ->  | E123: =Sales4_36MoPr(SalesFeb,"FY-1",$B121) ->  | F123: =Sales4_36MoPr(SalesMar,"FY-1",$B121) ->  | G123: =Sales4_36MoPr(SalesApr,"FY-1",$B121) ->  | H123: =Sales4_36MoPr(SalesMay,"FY-1",$B121) ->  | I123: =Sales4_36MoPr(SalesJun,"FY-1",$B121) ->  | J123: =Sales4_36MoPr(SalesJul,"FY-1",$B121) ->  | K123: =Sales4_36MoPr(SalesAug,"FY-1",$B121) ->  | L123: =Sales4_36MoPr(SalesSep,"FY-1",$B121) ->  | M123: =Sales4_36MoPr(SalesOct,"FY-1",$B121) ->  | N123: =Sales4_36MoPr(SalesNov,"FY-1",$B121) ->  | O123: =Sales4_36MoPr(SalesDec,"FY-1",$B121) ->  | P123: =SUM(D123:O123) -> 
C124: Revenue | D124: =D123*$D121 ->  | P124: =SUM(D124:O124) -> 
C125: Expenses | D125: =D123*$D$80 ->  | E125: =E123*$D$80 ->  | F125: =F123*$D122 ->  | P125: =SUM(D125:O125) -> 
C126: Contribution | D126: =D124-D125 ->  | E126: =E124-E125 ->  | P126: =SUM(D126:O126) -> 
B127: BR01-09, | C127: Price per unit | D127: =Price4_36MoPr(VarCostByProduct,B127) -> 
C128: Variable cost | D128: =Varcosts4_36MoPr(VarCostByProduct,B127) -> 
C129: Sales Volume | D129: =Sales4_36MoPr(SalesJan,"FY-1",$B127) ->  | E129: =Sales4_36MoPr(SalesFeb,"FY-1",$B127) ->  | F129: =Sales4_36MoPr(SalesMar,"FY-1",$B127) ->  | G129: =Sales4_36MoPr(SalesApr,"FY-1",$B127) ->  | H129: =Sales4_36MoPr(SalesMay,"FY-1",$B127) ->  | I129: =Sales4_36MoPr(SalesJun,"FY-1",$B127) ->  | J129: =Sales4_36MoPr(SalesJul,"FY-1",$B127) ->  | K129: =Sales4_36MoPr(SalesAug,"FY-1",$B127) ->  | L129: =Sales4_36MoPr(SalesSep,"FY-1",$B127) ->  | M129: =Sales4_36MoPr(SalesOct,"FY-1",$B127) ->  | N129: =Sales4_36MoPr(SalesNov,"FY-1",$B127) ->  | O129: =Sales4_36MoPr(SalesDec,"FY-1",$B127) ->  | P129: =SUM(D129:O129) -> 
C130: Revenue | D130: =D129*$D127 ->  | P130: =SUM(D130:O130) -> 
C131: Expenses | D131: =D129*$D$80 ->  | E131: =E129*$D$80 ->  | F131: =F129*$D128 ->  | P131: =SUM(D131:O131) -> 
C132: Contribution | D132: =D130-D131 ->  | E132: =E130-E131 ->  | P132: =SUM(D132:O132) -> 
C134: Total Revenue | D134: =SUMIF($C79:$C133,"Revenue",D79:D133) ->  | P134: =SUM(D134:O134) -> 
C135: Total Expenses | D135: =SUMIF($C79:$C133,"Expenses",D79:D133) ->  | P135: =SUM(D135:O135) -> 
C136: Total Contribution | D136: =SUMIF($C79:$C133,"Contribution",D79:D133) ->  | P136: =SUM(D136:O136) -> 
B138: Fixed Costs | C138: FY-1 (Total)
C139: Employees salaries | D139: =C65/12 -> 9583.333333 | E139: =$D139 -> 9583.333333 | F139: 9583.333333 | G139: 9583.333333 | H139: 9583.333333 | I139: 9583.333333 | J139: 9583.333333 | K139: 9583.333333 | L139: 9583.333333 | M139: 9583.333333 | N139: 9583.333333 | O139: 9583.333333 | P139: =SUM(D139:O139) -> 115000
C140: Utilities&Other | D140: =C66/12 -> 2625 | E140: 2625 | F140: 2625 | G140: 2625 | H140: 2625 | I140: 2625 | J140: 2625 | K140: 2625 | L140: 2625 | M140: 2625 | N140: 2625 | O140: 2625 | P140: =SUM(D140:O140) -> 31500
C141: Marketing Costs | D141: =C67/12 -> 6916.666667 | E141: 6916.666667 | F141: 6916.666667 | G141: 6916.666667 | H141: 6916.666667 | I141: 6916.666667 | J141: 6916.666667 | K141: 6916.666667 | L141: 6916.666667 | M141: 6916.666667 | N141: 6916.666667 | O141: 6916.666667 | P141: =SUM(D141:O141) -> 83000
C142: Rent | D142: =C68/12 -> 1833.333333 | E142: =$D142 -> 1833.333333 | F142: 1833.333333 | G142: 1833.333333 | H142: 1833.333333 | I142: 1833.333333 | J142: 1833.333333 | K142: 1833.333333 | L142: 1833.333333 | M142: 1833.333333 | N142: 1833.333333 | O142: 1833.333333 | P142: =SUM(D142:O142) -> 22000
C144: Loan Payments | D144: =debtMonthlyPaymentsFY1(CycleInCalculation,1) ->  | E144: =debtMonthlyPaymentsFY1(CycleInCalculation,2) ->  | F144: =debtMonthlyPaymentsFY1(CycleInCalculation,3) ->  | G144: =debtMonthlyPaymentsFY1(CycleInCalculation,4) ->  | H144: =debtMonthlyPaymentsFY1(CycleInCalculation,5) ->  | I144: =debtMonthlyPaymentsFY1(CycleInCalculation,6) ->  | J144: =debtMonthlyPaymentsFY1(CycleInCalculation,7) ->  | K144: =debtMonthlyPaymentsFY1(CycleInCalculation,8) ->  | L144: =debtMonthlyPaymentsFY1(CycleInCalculation,9) ->  | M144: =debtMonthlyPaymentsFY1(CycleInCalculation,10) ->  | N144: =debtMonthlyPaymentsFY1(CycleInCalculation,11) ->  | O144: =debtMonthlyPaymentsFY1(CycleInCalculation,12) ->  | P144: =SUM(D144:O144) -> 
C146: Total Fixed Costs | D146: =SUM(D139:D145)+D148 ->  | E146: =SUM(E139:E145)+E148 ->  | P146: =SUM(D146:O146) -> 
C148: Depreciation | D148: =P148/12 -> 625 | E148: =P148/12 -> 625 | F148: =P148/12 -> 625 | G148: =P148/12 -> 625 | H148: =P148/12 -> 625 | I148: =P148/12 -> 625 | J148: =P148/12 -> 625 | K148: =P148/12 -> 625 | L148: =P148/12 -> 625 | M148: =P148/12 -> 625 | N148: =P148/12 -> 625 | O148: =P148/12 -> 625 | P148: =VLOOKUP(2.701,'Sim-Report'!1:1048576,3+CycleInCalculation,FALSE)*'Project-Start'!D36 -> 7500
C149: Profit (Before Taxes) | D149: =D136-D146 ->  | P149: =SUM(D149:O149) -> 
C150: Profit taxes | D150: =VLOOKUP(3.11,'Sim-Report'!1:1048576,3+CycleInCalculation,FALSE) -> 0.19
C151: Cumulative Profit | D151: =D149 ->  | E151: =D151+E149 -> 
C152: Ending Cash Balance | P152: =P153-C74 -> 
C153: Profit (After Taxes) | D153: =ProfitAfterTaxes(D149,D151,D150) ->  | E153: =ProfitAfterTaxes(E149,E151,D150) ->  | F153: =ProfitAfterTaxes(F149,F151,D150) ->  | G153: =ProfitAfterTaxes(G149,G151,D150) ->  | H153: =ProfitAfterTaxes(H149,H151,D150) ->  | I153: =ProfitAfterTaxes(I149,I151,D150) ->  | J153: =ProfitAfterTaxes(J149,J151,D150) ->  | K153: =ProfitAfterTaxes(K149,K151,D150) ->  | L153: =ProfitAfterTaxes(L149,L151,D150) ->  | M153: =ProfitAfterTaxes(M149,M151,D150) ->  | N153: =ProfitAfterTaxes(N149,N151,D150) ->  | O153: =ProfitAfterTaxes(O149,O151,D150) ->  | P153: =SUM(D153:O153) -> 
C154: Year | D154: FY-1 | E154: FY-1 | F154: FY-1 | G154: FY-1 | H154: FY-1 | I154: FY-1 | J154: FY-1 | K154: FY-1 | L154: FY-1 | M154: FY-1 | N154: FY-1 | O154: FY-1 | P154: FY-1
C155: Month | D155: Jan | E155: Feb | F155: Mar | G155: Apr | H155: May | I155: Jun | J155: Jul | K155: Aug | L155: Sep | M155: Oct | N155: Nov | O155: Dec | P155: Total
A157: 5 | B157: 12 Month Proforma: FY-2
B158: Year | D158: FY-2 | E158: FY-2 | F158: FY-2 | G158: FY-2 | H158: FY-2 | I158: FY-2 | J158: FY-2 | K158: FY-2 | L158: FY-2 | M158: FY-2 | N158: FY-2 | O158: FY-2 | P158: FY-2
B159: Month | D159: Jan | E159: Feb | F159: Mar | G159: Apr | H159: May | I159: Jun | J159: Jul | K159: Aug | L159: Sep | M159: Oct | N159: Nov | O159: Dec | P159: Total
B160: BR01-01, | C160: Price per unit | D160: =Price4_36MoPr(VarCostByProduct,B160) -> 
C161: Variable cost | D161: =Varcosts4_36MoPr(VarCostByProduct,B160) -> 
C162: Sales Volume | D162: =Sales4_36MoPr(SalesJan,"FY-2",$B160) ->  | E162: =Sales4_36MoPr(SalesFeb,"FY-2",$B160) ->  | F162: =Sales4_36MoPr(SalesMar,"FY-2",$B160) ->  | G162: =Sales4_36MoPr(SalesApr,"FY-2",$B160) ->  | H162: =Sales4_36MoPr(SalesMay,"FY-2",$B160) ->  | I162: =Sales4_36MoPr(SalesJun,"FY-2",$B160) ->  | J162: =Sales4_36MoPr(SalesJul,"FY-2",$B160) ->  | K162: =Sales4_36MoPr(SalesAug,"FY-2",$B160) ->  | L162: =Sales4_36MoPr(SalesSep,"FY-2",$B160) ->  | M162: =Sales4_36MoPr(SalesOct,"FY-2",$B160) ->  | N162: =Sales4_36MoPr(SalesNov,"FY-2",$B160) ->  | O162: =Sales4_36MoPr(SalesDec,"FY-2",$B160) ->  | P162: =SUM(D162:O162) -> 
C163: Revenue | D163: =D162*$D160 ->  | P163: =SUM(D163:O163) -> 
C164: Expenses | D164: =D162*$D$80 ->  | E164: =E162*$D$80 ->  | F164: =F162*$D161 ->  | P164: =SUM(D164:O164) -> 
C165: Contribution | D165: =D163-D164 ->  | E165: =E163-E164 ->  | P165: =SUM(D165:O165) -> 
B166: BR01-02, | C166: Price per unit | D166: =Price4_36MoPr(VarCostByProduct,B166) -> 
C167: Variable cost | D167: =Varcosts4_36MoPr(VarCostByProduct,B166) -> 
C168: Sales Volume | D168: =Sales4_36MoPr(SalesJan,"FY-2",$B166) ->  | E168: =Sales4_36MoPr(SalesFeb,"FY-2",$B166) ->  | F168: =Sales4_36MoPr(SalesMar,"FY-2",$B166) ->  | G168: =Sales4_36MoPr(SalesApr,"FY-2",$B166) ->  | H168: =Sales4_36MoPr(SalesMay,"FY-2",$B166) ->  | I168: =Sales4_36MoPr(SalesJun,"FY-2",$B166) ->  | J168: =Sales4_36MoPr(SalesJul,"FY-2",$B166) ->  | K168: =Sales4_36MoPr(SalesAug,"FY-2",$B166) ->  | L168: =Sales4_36MoPr(SalesSep,"FY-2",$B166) ->  | M168: =Sales4_36MoPr(SalesOct,"FY-2",$B166) ->  | N168: =Sales4_36MoPr(SalesNov,"FY-2",$B166) ->  | O168: =Sales4_36MoPr(SalesDec,"FY-2",$B166) ->  | P168: =SUM(D168:O168) -> 
C169: Revenue | D169: =D168*$D166 ->  | P169: =SUM(D169:O169) -> 
C170: Expenses | D170: =D168*$D$80 ->  | E170: =E168*$D$80 ->  | F170: =F168*$D167 ->  | P170: =SUM(D170:O170) -> 
C171: Contribution | D171: =D169-D170 ->  | E171: =E169-E170 ->  | P171: =SUM(D171:O171) -> 
B172: BR01-03, | C172: Price per unit | D172: =Price4_36MoPr(VarCostByProduct,B172) -> 
C173: Variable cost | D173: =Varcosts4_36MoPr(VarCostByProduct,B172) -> 
C174: Sales Volume | D174: =Sales4_36MoPr(SalesJan,"FY-2",$B172) ->  | E174: =Sales4_36MoPr(SalesFeb,"FY-2",$B172) ->  | F174: =Sales4_36MoPr(SalesMar,"FY-2",$B172) ->  | G174: =Sales4_36MoPr(SalesApr,"FY-2",$B172) ->  | H174: =Sales4_36MoPr(SalesMay,"FY-2",$B172) ->  | I174: =Sales4_36MoPr(SalesJun,"FY-2",$B172) ->  | J174: =Sales4_36MoPr(SalesJul,"FY-2",$B172) ->  | K174: =Sales4_36MoPr(SalesAug,"FY-2",$B172) ->  | L174: =Sales4_36MoPr(SalesSep,"FY-2",$B172) ->  | M174: =Sales4_36MoPr(SalesOct,"FY-2",$B172) ->  | N174: =Sales4_36MoPr(SalesNov,"FY-2",$B172) ->  | O174: =Sales4_36MoPr(SalesDec,"FY-2",$B172) ->  | P174: =SUM(D174:O174) -> 
C175: Revenue | D175: =D174*$D172 ->  | P175: =SUM(D175:O175) -> 
C176: Expenses | D176: =D174*$D$80 ->  | E176: =E174*$D$80 ->  | F176: =F174*$D173 ->  | P176: =SUM(D176:O176) -> 
C177: Contribution | D177: =D175-D176 ->  | E177: =E175-E176 ->  | P177: =SUM(D177:O177) -> 
B178: BR01-04, | C178: Price per unit | D178: =Price4_36MoPr(VarCostByProduct,B178) -> 
C179: Variable cost | D179: =Varcosts4_36MoPr(VarCostByProduct,B178) -> 
C180: Sales Volume | D180: =Sales4_36MoPr(SalesJan,"FY-2",$B178) ->  | E180: =Sales4_36MoPr(SalesFeb,"FY-2",$B178) ->  | F180: =Sales4_36MoPr(SalesMar,"FY-2",$B178) ->  | G180: =Sales4_36MoPr(SalesApr,"FY-2",$B178) ->  | H180: =Sales4_36MoPr(SalesMay,"FY-2",$B178) ->  | I180: =Sales4_36MoPr(SalesJun,"FY-2",$B178) ->  | J180: =Sales4_36MoPr(SalesJul,"FY-2",$B178) ->  | K180: =Sales4_36MoPr(SalesAug,"FY-2",$B178) ->  | L180: =Sales4_36MoPr(SalesSep,"FY-2",$B178) ->  | M180: =Sales4_36MoPr(SalesOct,"FY-2",$B178) ->  | N180: =Sales4_36MoPr(SalesNov,"FY-2",$B178) ->  | O180: =Sales4_36MoPr(SalesDec,"FY-2",$B178) ->  | P180: =SUM(D180:O180) -> 
C181: Revenue | D181: =D180*$D178 ->  | P181: =SUM(D181:O181) -> 
C182: Expenses | D182: =D180*$D$80 ->  | E182: =E180*$D$80 ->  | F182: =F180*$D179 ->  | P182: =SUM(D182:O182) -> 
C183: Contribution | D183: =D181-D182 ->  | E183: =E181-E182 ->  | P183: =SUM(D183:O183) -> 
B184: BR01-05, | C184: Price per unit | D184: =Price4_36MoPr(VarCostByProduct,B184) -> 
C185: Variable cost | D185: =Varcosts4_36MoPr(VarCostByProduct,B184) -> 
C186: Sales Volume | D186: =Sales4_36MoPr(SalesJan,"FY-2",$B184) ->  | E186: =Sales4_36MoPr(SalesFeb,"FY-2",$B184) ->  | F186: =Sales4_36MoPr(SalesMar,"FY-2",$B184) ->  | G186: =Sales4_36MoPr(SalesApr,"FY-2",$B184) ->  | H186: =Sales4_36MoPr(SalesMay,"FY-2",$B184) ->  | I186: =Sales4_36MoPr(SalesJun,"FY-2",$B184) ->  | J186: =Sales4_36MoPr(SalesJul,"FY-2",$B184) ->  | K186: =Sales4_36MoPr(SalesAug,"FY-2",$B184) ->  | L186: =Sales4_36MoPr(SalesSep,"FY-2",$B184) ->  | M186: =Sales4_36MoPr(SalesOct,"FY-2",$B184) ->  | N186: =Sales4_36MoPr(SalesNov,"FY-2",$B184) ->  | O186: =Sales4_36MoPr(SalesDec,"FY-2",$B184) ->  | P186: =SUM(D186:O186) -> 
C187: Revenue | D187: =D186*$D184 ->  | P187: =SUM(D187:O187) -> 
C188: Expenses | D188: =D186*$D$80 ->  | E188: =E186*$D$80 ->  | F188: =F186*$D185 ->  | P188: =SUM(D188:O188) -> 
C189: Contribution | D189: =D187-D188 ->  | E189: =E187-E188 ->  | P189: =SUM(D189:O189) -> 
B190: BR01-06, | C190: Price per unit | D190: =Price4_36MoPr(VarCostByProduct,B190) -> 
C191: Variable cost | D191: =Varcosts4_36MoPr(VarCostByProduct,B190) -> 
C192: Sales Volume | D192: =Sales4_36MoPr(SalesJan,"FY-2",$B190) ->  | E192: =Sales4_36MoPr(SalesFeb,"FY-2",$B190) ->  | F192: =Sales4_36MoPr(SalesMar,"FY-2",$B190) ->  | G192: =Sales4_36MoPr(SalesApr,"FY-2",$B190) ->  | H192: =Sales4_36MoPr(SalesMay,"FY-2",$B190) ->  | I192: =Sales4_36MoPr(SalesJun,"FY-2",$B190) ->  | J192: =Sales4_36MoPr(SalesJul,"FY-2",$B190) ->  | K192: =Sales4_36MoPr(SalesAug,"FY-2",$B190) ->  | L192: =Sales4_36MoPr(SalesSep,"FY-2",$B190) ->  | M192: =Sales4_36MoPr(SalesOct,"FY-2",$B190) ->  | N192: =Sales4_36MoPr(SalesNov,"FY-2",$B190) ->  | O192: =Sales4_36MoPr(SalesDec,"FY-2",$B190) ->  | P192: =SUM(D192:O192) -> 
C193: Revenue | D193: =D192*$D190 ->  | P193: =SUM(D193:O193) -> 
C194: Expenses | D194: =D192*$D$80 ->  | E194: =E192*$D$80 ->  | F194: =F192*$D191 ->  | P194: =SUM(D194:O194) -> 
C195: Contribution | D195: =D193-D194 ->  | E195: =E193-E194 ->  | P195: =SUM(D195:O195) -> 
B196: BR01-07, | C196: Price per unit | D196: =Price4_36MoPr(VarCostByProduct,B196) -> 
C197: Variable cost | D197: =Varcosts4_36MoPr(VarCostByProduct,B196) -> 
C198: Sales Volume | D198: =Sales4_36MoPr(SalesJan,"FY-2",$B196) ->  | E198: =Sales4_36MoPr(SalesFeb,"FY-2",$B196) ->  | F198: =Sales4_36MoPr(SalesMar,"FY-2",$B196) ->  | G198: =Sales4_36MoPr(SalesApr,"FY-2",$B196) ->  | H198: =Sales4_36MoPr(SalesMay,"FY-2",$B196) ->  | I198: =Sales4_36MoPr(SalesJun,"FY-2",$B196) ->  | J198: =Sales4_36MoPr(SalesJul,"FY-2",$B196) ->  | K198: =Sales4_36MoPr(SalesAug,"FY-2",$B196) ->  | L198: =Sales4_36MoPr(SalesSep,"FY-2",$B196) ->  | M198: =Sales4_36MoPr(SalesOct,"FY-2",$B196) ->  | N198: =Sales4_36MoPr(SalesNov,"FY-2",$B196) ->  | O198: =Sales4_36MoPr(SalesDec,"FY-2",$B196) ->  | P198: =SUM(D198:O198) -> 
C199: Revenue | D199: =D198*$D196 ->  | P199: =SUM(D199:O199) -> 
C200: Expenses | D200: =D198*$D$80 ->  | E200: =E198*$D$80 ->  | F200: =F198*$D197 ->  | P200: =SUM(D200:O200) -> 
C201: Contribution | D201: =D199-D200 ->  | E201: =E199-E200 ->  | P201: =SUM(D201:O201) -> 
B202: BR01-08, | C202: Price per unit | D202: =Price4_36MoPr(VarCostByProduct,B202) -> 
C203: Variable cost | D203: =Varcosts4_36MoPr(VarCostByProduct,B202) -> 
C204: Sales Volume | D204: =Sales4_36MoPr(SalesJan,"FY-2",$B202) ->  | E204: =Sales4_36MoPr(SalesFeb,"FY-2",$B202) ->  | F204: =Sales4_36MoPr(SalesMar,"FY-2",$B202) ->  | G204: =Sales4_36MoPr(SalesApr,"FY-2",$B202) ->  | H204: =Sales4_36MoPr(SalesMay,"FY-2",$B202) ->  | I204: =Sales4_36MoPr(SalesJun,"FY-2",$B202) ->  | J204: =Sales4_36MoPr(SalesJul,"FY-2",$B202) ->  | K204: =Sales4_36MoPr(SalesAug,"FY-2",$B202) ->  | L204: =Sales4_36MoPr(SalesSep,"FY-2",$B202) ->  | M204: =Sales4_36MoPr(SalesOct,"FY-2",$B202) ->  | N204: =Sales4_36MoPr(SalesNov,"FY-2",$B202) ->  | O204: =Sales4_36MoPr(SalesDec,"FY-2",$B202) ->  | P204: =SUM(D204:O204) -> 
C205: Revenue | D205: =D204*$D202 ->  | P205: =SUM(D205:O205) -> 
C206: Expenses | D206: =D204*$D$80 ->  | E206: =E204*$D$80 ->  | F206: =F204*$D203 ->  | P206: =SUM(D206:O206) -> 
C207: Contribution | D207: =D205-D206 ->  | E207: =E205-E206 ->  | P207: =SUM(D207:O207) -> 
B208: BR01-09, | C208: Price per unit | D208: =Price4_36MoPr(VarCostByProduct,B208) -> 
C209: Variable cost | D209: =Varcosts4_36MoPr(VarCostByProduct,B208) -> 
C210: Sales Volume | D210: =Sales4_36MoPr(SalesJan,"FY-2",$B208) ->  | E210: =Sales4_36MoPr(SalesFeb,"FY-2",$B208) ->  | F210: =Sales4_36MoPr(SalesMar,"FY-2",$B208) ->  | G210: =Sales4_36MoPr(SalesApr,"FY-2",$B208) ->  | H210: =Sales4_36MoPr(SalesMay,"FY-2",$B208) ->  | I210: =Sales4_36MoPr(SalesJun,"FY-2",$B208) ->  | J210: =Sales4_36MoPr(SalesJul,"FY-2",$B208) ->  | K210: =Sales4_36MoPr(SalesAug,"FY-2",$B208) ->  | L210: =Sales4_36MoPr(SalesSep,"FY-2",$B208) ->  | M210: =Sales4_36MoPr(SalesOct,"FY-2",$B208) ->  | N210: =Sales4_36MoPr(SalesNov,"FY-2",$B208) ->  | O210: =Sales4_36MoPr(SalesDec,"FY-2",$B208) ->  | P210: =SUM(D210:O210) -> 
C211: Revenue | D211: =D210*$D208 ->  | P211: =SUM(D211:O211) -> 
C212: Expenses | D212: =D210*$D$80 ->  | E212: =E210*$D$80 ->  | F212: =F210*$D209 ->  | P212: =SUM(D212:O212) -> 
C213: Contribution | D213: =D211-D212 ->  | E213: =E211-E212 ->  | P213: =SUM(D213:O213) -> 
C215: Total Revenue | D215: =SUMIF($C160:$C214,"Revenue",D160:D214) ->  | E215: =SUMIF($C160:$C214,"Revenue",E160:E214) ->  | P215: =SUM(D215:O215) -> 
C216: Total Expenses | D216: =SUMIF($C160:$C214,"Expenses",D160:D214) ->  | P216: =SUM(D216:O216) -> 
C217: Total Contribution | D217: =SUMIF($C160:$C214,"Contribution",D160:D214) ->  | P217: =SUM(D217:O217) -> 
B219: Fixed Costs | C219: FY-2 (Total)
C220: Employees salaries | D220: =D65/12 -> 10479.16667 | E220: =$D220 -> 10479.16667 | F220: 10479.16667 | G220: 10479.16667 | H220: 10479.16667 | I220: 10479.16667 | J220: 10479.16667 | K220: 10479.16667 | L220: 10479.16667 | M220: 10479.16667 | N220: 10479.16667 | O220: 10479.16667 | P220: =SUM(D220:O220) -> 125750
C221: Utilities&Other | D221: =D66/12 -> 3220.833333 | E221: 3220.833333 | F221: 3220.833333 | G221: 3220.833333 | H221: 3220.833333 | I221: 3220.833333 | J221: 3220.833333 | K221: 3220.833333 | L221: 3220.833333 | M221: 3220.833333 | N221: 3220.833333 | O221: 3220.833333 | P221: =SUM(D221:O221) -> 38650
C222: Marketing Costs | D222: =D67/12 -> 6985.833333 | E222: 6985.833333 | F222: 6985.833333 | G222: 6985.833333 | H222: 6985.833333 | I222: 6985.833333 | J222: 6985.833333 | K222: 6985.833333 | L222: 6985.833333 | M222: 6985.833333 | N222: 6985.833333 | O222: 6985.833333 | P222: =SUM(D222:O222) -> 83830
C223: Rent | D223: =D68/12 -> 2016.666667 | E223: 2016.666667 | F223: 2016.666667 | G223: 2016.666667 | H223: 2016.666667 | I223: 2016.666667 | J223: 2016.666667 | K223: 2016.666667 | L223: 2016.666667 | M223: 2016.666667 | N223: 2016.666667 | O223: 2016.666667 | P223: =SUM(D223:O223) -> 24200
C225: Loan Payments | D225: =debtMonthlyPaymentsFY2(CycleInCalculation,1) ->  | E225: =debtMonthlyPaymentsFY2(CycleInCalculation,2) ->  | F225: =debtMonthlyPaymentsFY2(CycleInCalculation,3) ->  | G225: =debtMonthlyPaymentsFY2(CycleInCalculation,4) ->  | H225: =debtMonthlyPaymentsFY2(CycleInCalculation,5) ->  | I225: =debtMonthlyPaymentsFY2(CycleInCalculation,6) ->  | J225: =debtMonthlyPaymentsFY2(CycleInCalculation,7) ->  | K225: =debtMonthlyPaymentsFY2(CycleInCalculation,8) ->  | L225: =debtMonthlyPaymentsFY2(CycleInCalculation,9) ->  | M225: =debtMonthlyPaymentsFY2(CycleInCalculation,10) ->  | N225: =debtMonthlyPaymentsFY2(CycleInCalculation,11) ->  | O225: =debtMonthlyPaymentsFY2(CycleInCalculation,12) ->  | P225: =SUM(D225:O225) -> 
C227: Total Fixed Costs | D227: =SUM(D220:D226)+D229 ->  | E227: =SUM(E220:E226)+E229 ->  | P227: =SUM(D227:O227) -> 
C229: Depreciation | D229: =P229/12 -> 1187.5 | E229: =P229/12 -> 1187.5 | F229: =P229/12 -> 1187.5 | G229: =P229/12 -> 1187.5 | H229: =P229/12 -> 1187.5 | I229: =P229/12 -> 1187.5 | J229: =P229/12 -> 1187.5 | K229: =P229/12 -> 1187.5 | L229: =P229/12 -> 1187.5 | M229: =P229/12 -> 1187.5 | N229: =P229/12 -> 1187.5 | O229: =P229/12 -> 1187.5 | P229: =VLOOKUP(2.711,'Sim-Report'!1:1048576,3+CycleInCalculation,FALSE)*'Project-Start'!D36 -> 14250
... 145 more rows

Sheet D-Analysis
I1: ="Current Cycle "&CurrentCycle -> Current Cycle 8 | J1: ="Calculating "&CycleInCalculation -> Calculating 8 | K1: ="MCS Interation:"&MCSInt -> MCS Interation:0
A5: 1 | B5: BREAK-EVEN ANALYSIS
F8: FY-1
E9: TOTAL BRAND 01 | F9: BR01-01, | G9: BR01-02, | H9: BR01-03, | I9: BR01-04, | J9: BR01-05, | K9: BR01-06, | L9: BR01-07, | M9: BR01-08, | N9: BR01-09,
B10: Revenue | D10: [$] | E10: =SUM(F10:O10) -> 1125298.12 | F10: 89533.65 | G10: 74369.14 | H10: 43400 | I10: 55104.05 | J10: 47586.48 | K10: 15468.22 | L10: 137762.68 | M10: 656750.19 | N10: 5323.71
B11: Expenses | D11: [$] | E11: =SUM(F11:O11) -> 256945.45 | F11: 14683.52 | G11: 12196.54 | H11: 7117.6 | I11: 9037.06 | J11: 7804.18 | K11: 9756.88 | L11: 86896.46 | M11: 107707.03 | N11: 1746.18
B12: Total Fixed Costs | D12: [$] | E12: ='36-Mo-Fin-Pr'!C71 -> 265862.11
B14: Contribution | D14: [$] | E14: =SUM(F14:O14) -> 868352.68 | F14: 74850.13 | G14: 62172.6 | H14: 36282.4 | I14: 46066.99 | J14: 39782.3 | K14: 5711.34 | L14: 50866.22 | M14: 549043.16 | N14: 3577.54
B15: Contribution Margin [%] | E15: =(E10-E11)/E10*100 -> 77.16645523 | F15: =(F10-F11)/F10*100 -> 83.59999844 | G15: 83.5999986 | H15: 83.6 | I15: 83.60000762 | J15: 83.60000572 | K15: 36.92305902 | L15: 36.9230767 | M15: 83.60000018 | N15: 67.19994139
C17: Break-even | E17: Months | F17: =J17 -> 3.674020238 | H17: Break-even | I17: Months | J17: =E12/E14*12 -> 3.674020238 | K17: [=Total Fixed Costs/Contribution*12 months]
E18: Sales | F18: =J18 -> 344530.6762 | I18: Sales | J18: =E12/E15*100 -> 344530.6762 | K18: [=Total Fixed Costs/Contribution Margin]
C20: X-axis range | E20: 0 | F20: =J17 -> 3.674020238
C21: Fixed Cost Range | E21: =E12 -> 265862.11 | F21: =E12 -> 265862.11
C22: Total Revenue Range | E22: 0 | F22: =J18 -> 344530.6762
C23: Total Cost Range | E23: =E21 -> 265862.11 | F23: =J18 -> 344530.6762
A59: 2 | B59: WHAT IF ANALYSIS
B61: 2.1 | C61: What is the BEP if the total fixed costs are increased and/or decreased while the selling price and the variable costs per products remain the same?
E63: FY-1
B64: BRAND 01 | D64: =$E$9 -> TOTAL BRAND 01 | E64: BR01-01, | F64: BR01-02, | G64: BR01-03, | H64: BR01-04, | I64: BR01-05, | J64: BR01-06, | K64: BR01-07, | L64: BR01-08, | M64: BR01-09,
B65: Total Fixed Costs | C65: [$] | D65: =$E$12 -> 265862.11
B66: Price/unit | C66: [$] | E66: 5 | F66: 5 | G66: 5 | H66: 5 | I66: 5 | J66: 1.3 | K66: 1.3 | L66: 5 | M66: 2.5
B67: Variable cost/unit | C67: [$] | E67: 0.82 | F67: 0.82 | G67: 0.82 | H67: 0.82 | I67: 0.82 | J67: 0.82 | K67: 0.82 | L67: 0.82 | M67: 0.82
B68: Contribution/unit | C68: [$] | E68: =E66-E67 -> 4.18 | F68: 4.18 | G68: 4.18 | H68: 4.18 | I68: 4.18 | J68: 0.48 | K68: 0.48 | L68: 4.18 | M68: 1.68
B69: Contribution margin | C69: [%] | D69: =(D71-D73)/D71 -> 0.771664554 | E69: =E68/E66 -> 0.836 | F69: 0.836 | G69: 0.836 | H69: 0.836 | I69: 0.836 | J69: 0.3692307692 | K69: 0.3692307692 | L69: 0.836 | M69: 0.672
B70: Sales Volume | C70: [quantity] | E70: 17906.73009 | F70: 14873.82714 | G70: 8680 | H70: 11020.80991 | I70: 9517.296435 | J70: 11898.62887 | K70: 105971.2912 | L70: 131350.0388 | M70: 2129.485277
B71: Revenue | C71: [$] | D71: =SUM(E71:XN71) -> 1125298.121 | E71: =E66*E70 -> 89533.65045 | F71: 74369.13568 | G71: 43400 | H71: 55104.04955 | I71: 47586.48218 | J71: 15468.21752 | K71: 137762.6786 | L71: 656750.1942 | M71: 5323.713193
B72: % of Sales | C72: [%] | E72: =E71/$D71 -> 0.07956438276 | F72: 0.06608838517 | G72: 0.0385675575 | H72: 0.04896840091 | I72: 0.04228788911 | J72: 0.01374588407 | K72: 0.1224232726 | L72: 0.5836232921 | M72: 0.004730935822
B73: Expense | C73: [$] | D73: =SUM(E73:XN73) -> 256945.4484 | E73: =E67*E70 -> 14683.51867 | F73: 12196.53825 | G73: 7117.6 | H73: 9037.064126 | I73: 7804.183077 | J73: 9756.875669 | K73: 86896.45882 | L73: 107707.0318 | M73: 1746.177927
B74: Contribution | C74: [$] | D74: =SUM(E74:XN74) -> 868352.673 | E74: =E71-E73 -> 74850.13178 | F74: 62172.59743 | G74: 36282.4 | H74: 46066.98542 | I74: 39782.2991 | J74: 5711.341855 | K74: 50866.2198 | L74: 549043.1623 | M74: 3577.535266
C75: [%] | E75: =E74/$D74 -> 0.08619784807 | F75: 0.07159832561 | G75: 0.04178302334 | H75: 0.05305100895 | I75: 0.04581352754 | J75: 0.006577214573 | K75: 0.05857783523 | L75: 0.6322813062 | M75: 0.004119910466
A77: Increase to: | B77: Total Fixed Costs | C77: [$] | D77: 250000
B78: Price/unit | C78: [$] | E78: =E66 -> 5 | F78: 5 | G78: 5 | H78: 5 | I78: 5 | J78: 1.3 | K78: 1.3 | L78: 5 | M78: 2.5
B79: Variable cost/unit | C79: [$] | E79: =E67 -> 0.82 | F79: 0.82 | G79: 0.82 | H79: 0.82 | I79: 0.82 | J79: 0.82 | K79: 0.82 | L79: 0.82 | M79: 0.82
B80: Contribution/unit | C80: [$] | E80: =E78-E79 -> 4.18 | F80: 4.18 | G80: 4.18 | H80: 4.18 | I80: 4.18 | J80: 0.48 | K80: 0.48 | L80: 4.18 | M80: 1.68
B81: Contribution margin | C81: [%] | D81: =(D83-D85)/D83 -> 0.771664554 | E81: =E80/E78 -> 0.836 | F81: 0.836 | G81: 0.836 | H81: 0.836 | I81: 0.836 | J81: 0.3692307692 | K81: 0.3692307692 | L81: 0.836 | M81: 0.672
B82: Sales Volume | C82: [quantity] | E82: =70:70 -> 17906.73009 | F82: 14873.82714 | G82: 8680 | H82: 11020.80991 | I82: 9517.296435 | J82: 11898.62887 | K82: 105971.2912 | L82: 131350.0388 | M82: 2129.485277
B83: Revenue | C83: [$] | D83: =SUM(E83:XN83) -> 1125298.121 | E83: =E78*E82 -> 89533.65045 | F83: 74369.13568 | G83: 43400 | H83: 55104.04955 | I83: 47586.48218 | J83: 15468.21752 | K83: 137762.6786 | L83: 656750.1942 | M83: 5323.713193
B84: % of Sales | C84: [%] | E84: =E83/$D83 -> 0.07956438276 | F84: 0.06608838517 | G84: 0.0385675575 | H84: 0.04896840091 | I84: 0.04228788911 | J84: 0.01374588407 | K84: 0.1224232726 | L84: 0.5836232921 | M84: 0.004730935822
B85: Expense | C85: [$] | D85: =SUM(E85:XN85) -> 256945.4484 | E85: =E79*E82 -> 14683.51867 | F85: 12196.53825 | G85: 7117.6 | H85: 9037.064126 | I85: 7804.183077 | J85: 9756.875669 | K85: 86896.45882 | L85: 107707.0318 | M85: 1746.177927
B86: Contribution | C86: [$] | D86: =SUM(E86:XN86) -> 868352.673 | E86: =E83-E85 -> 74850.13178 | F86: 62172.59743 | G86: 36282.4 | H86: 46066.98542 | I86: 39782.2991 | J86: 5711.341855 | K86: 50866.2198 | L86: 549043.1623 | M86: 3577.535266
C87: [%] | E87: =E86/$D86 -> 0.08619784807 | F87: 0.07159832561 | G87: 0.04178302334 | H87: 0.05305100895 | I87: 0.04581352754 | J87: 0.006577214573 | K87: 0.05857783523 | L87: 0.6322813062 | M87: 0.004119910466
B88: Break-Even Point | C88: Months | D88: =D77/D86*12 -> 3.454817488
B89: (BEP) | C89: Revenue | D89: =D77/D81 -> 323974.969
A91: Decrease to: | B91: Total Fixed Costs | C91: [$] | D91: 230000
B92: Price/unit | C92: [$] | E92: =E78 -> 5 | F92: 5 | G92: 5 | H92: 5 | I92: 5 | J92: 1.3 | K92: 1.3 | L92: 5 | M92: 2.5
B93: Variable cost/unit | C93: [$] | E93: =E79 -> 0.82 | F93: 0.82 | G93: 0.82 | H93: 0.82 | I93: 0.82 | J93: 0.82 | K93: 0.82 | L93: 0.82 | M93: 0.82
B94: Contribution/unit | C94: [$] | E94: =E92-E93 -> 4.18 | F94: 4.18 | G94: 4.18 | H94: 4.18 | I94: 4.18 | J94: 0.48 | K94: 0.48 | L94: 4.18 | M94: 1.68
B95: Contribution margin | C95: [%] | D95: =(D97-D99)/D97 -> 0.771664554 | E95: =E94/E92 -> 0.836 | F95: 0.836 | G95: 0.836 | H95: 0.836 | I95: 0.836 | J95: 0.3692307692 | K95: 0.3692307692 | L95: 0.836 | M95: 0.672
B96: Sales Volume | C96: [quantity] | E96: =E70 -> 17906.73009 | F96: 14873.82714 | G96: 8680 | H96: 11020.80991 | I96: 9517.296435 | J96: 11898.62887 | K96: 105971.2912 | L96: 131350.0388 | M96: 2129.485277
B97: Revenue | C97: [$] | D97: =SUM(E97:XN97) -> 1125298.121 | E97: =E92*E96 -> 89533.65045 | F97: 74369.13568 | G97: 43400 | H97: 55104.04955 | I97: 47586.48218 | J97: 15468.21752 | K97: 137762.6786 | L97: 656750.1942 | M97: 5323.713193
B98: % of Sales | C98: [%] | E98: =E97/$D97 -> 0.07956438276 | F98: 0.06608838517 | G98: 0.0385675575 | H98: 0.04896840091 | I98: 0.04228788911 | J98: 0.01374588407 | K98: 0.1224232726 | L98: 0.5836232921 | M98: 0.004730935822
B99: Expense | C99: [$] | D99: =SUM(E99:XN99) -> 256945.4484 | E99: =E93*E96 -> 14683.51867 | F99: 12196.53825 | G99: 7117.6 | H99: 9037.064126 | I99: 7804.183077 | J99: 9756.875669 | K99: 86896.45882 | L99: 107707.0318 | M99: 1746.177927
B100: Contribution | C100: [$] | D100: =SUM(E100:XN100) -> 868352.673 | E100: =E97-E99 -> 74850.13178 | F100: 62172.59743 | G100: 36282.4 | H100: 46066.98542 | I100: 39782.2991 | J100: 5711.341855 | K100: 50866.2198 | L100: 549043.1623 | M100: 3577.535266
C101: [%] | E101: =E100/$D100 -> 0.08619784807 | F101: 0.07159832561 | G101: 0.04178302334 | H101: 0.05305100895 | I101: 0.04581352754 | J101: 0.006577214573 | K101: 0.05857783523 | L101: 0.6322813062 | M101: 0.004119910466
B102: Break-Even Point | C102: Months | D102: =D91/D100*12 -> 3.178432089
B103: (BEP) | C103: Revenue | D103: =D91/D95 -> 298056.9715
B106: 2.2 | C106: What is the BEP if the selling prices per products are increased and/or decreased while the total fixed costs and the variable costs per products remain the same?
E108: FY-1
B109: BRAND 01 | D109: =$D$64 -> TOTAL BRAND 01 | E109: BR01-01, | F109: BR01-02, | G109: BR01-03, | H109: BR01-04, | I109: BR01-05, | J109: BR01-06, | K109: BR01-07, | L109: BR01-08, | M109: BR01-09,
B110: Total Fixed Costs | C110: [$] | D110: =$E$12 -> 265862.11
B111: Price/unit | C111: [$] | E111: 5 | F111: 5 | G111: 5 | H111: 5 | I111: 5 | J111: 1.3 | K111: 1.3 | L111: 5 | M111: 2.5
B112: Variable cost/unit | C112: [$] | E112: 0.82 | F112: 0.82 | G112: 0.82 | H112: 0.82 | I112: 0.82 | J112: 0.82 | K112: 0.82 | L112: 0.82 | M112: 0.82
B113: Contribution/unit | C113: [$] | E113: =E111-E112 -> 4.18 | F113: 4.18 | G113: 4.18 | H113: 4.18 | I113: 4.18 | J113: 0.48 | K113: 0.48 | L113: 4.18 | M113: 1.68
B114: Contribution margin | C114: [%] | D114: =(D116-D118)/D116 -> 0.771664554 | E114: =E113/E111 -> 0.836 | F114: 0.836 | G114: 0.836 | H114: 0.836 | I114: 0.836 | J114: 0.3692307692 | K114: 0.3692307692 | L114: 0.836 | M114: 0.672
B115: Sales Volume | C115: [quantity] | E115: 17906.73009 | F115: 14873.82714 | G115: 8680 | H115: 11020.80991 | I115: 9517.296435 | J115: 11898.62887 | K115: 105971.2912 | L115: 131350.0388 | M115: 2129.485277
B116: Revenue | C116: [$] | D116: =SUM(E116:XN116) -> 1125298.121 | E116: =E111*E115 -> 89533.65045 | F116: 74369.13568 | G116: 43400 | H116: 55104.04955 | I116: 47586.48218 | J116: 15468.21752 | K116: 137762.6786 | L116: 656750.1942 | M116: 5323.713193
B117: % of Sales | C117: [%] | E117: =E116/$D116 -> 0.07956438276 | F117: 0.06608838517 | G117: 0.0385675575 | H117: 0.04896840091 | I117: 0.04228788911 | J117: 0.01374588407 | K117: 0.1224232726 | L117: 0.5836232921 | M117: 0.004730935822
B118: Expense | C118: [$] | D118: =SUM(E118:XN118) -> 256945.4484 | E118: =E112*E115 -> 14683.51867 | F118: 12196.53825 | G118: 7117.6 | H118: 9037.064126 | I118: 7804.183077 | J118: 9756.875669 | K118: 86896.45882 | L118: 107707.0318 | M118: 1746.177927
B119: Contribution | C119: [$] | D119: =SUM(E119:XN119) -> 868352.673 | E119: =E116-E118 -> 74850.13178 | F119: 62172.59743 | G119: 36282.4 | H119: 46066.98542 | I119: 39782.2991 | J119: 5711.341855 | K119: 50866.2198 | L119: 549043.1623 | M119: 3577.535266
C120: [%] | E120: =E119/$D119 -> 0.08619784807 | F120: 0.07159832561 | G120: 0.04178302334 | H120: 0.05305100895 | I120: 0.04581352754 | J120: 0.006577214573 | K120: 0.05857783523 | L120: 0.6322813062 | M120: 0.004119910466
B122: Total Fixed Costs | C122: [$] | D122: =$E$12 -> 265862.11
A123: Increase to: | B123: Price/unit | C123: [$] | E123: =E111 -> 5 | F123: 5 | G123: 5 | H123: 5 | I123: 5 | J123: 1.3 | K123: 1.3 | L123: 5 | M123: 2.5
B124: Variable cost/unit | C124: [$] | E124: =E112 -> 0.82 | F124: 0.82 | G124: 0.82 | H124: 0.82 | I124: 0.82 | J124: 0.82 | K124: 0.82 | L124: 0.82 | M124: 0.82
B125: Contribution/unit | C125: [$] | E125: =E123-E124 -> 4.18 | F125: 4.18 | G125: 4.18 | H125: 4.18 | I125: 4.18 | J125: 0.48 | K125: 0.48 | L125: 4.18 | M125: 1.68
B126: Contribution margin | C126: [%] | D126: =(D128-D130)/D128 -> 0.771664554 | E126: =E125/E123 -> 0.836 | F126: 0.836 | G126: 0.836 | H126: 0.836 | I126: 0.836 | J126: 0.3692307692 | K126: 0.3692307692 | L126: 0.836 | M126: 0.672
B127: Sales Volume | C127: [quantity] | E127: =115:115 -> 17906.73009 | F127: 14873.82714 | G127: 8680 | H127: 11020.80991 | I127: 9517.296435 | J127: 11898.62887 | K127: 105971.2912 | L127: 131350.0388 | M127: 2129.485277
B128: Revenue | C128: [$] | D128: =SUM(E128:XN128) -> 1125298.121 | E128: =E123*E127 -> 89533.65045 | F128: 74369.13568 | G128: 43400 | H128: 55104.04955 | I128: 47586.48218 | J128: 15468.21752 | K128: 137762.6786 | L128: 656750.1942 | M128: 5323.713193
B129: % of Sales | C129: [%] | E129: =E128/$D128 -> 0.07956438276 | F129: 0.06608838517 | G129: 0.0385675575 | H129: 0.04896840091 | I129: 0.04228788911 | J129: 0.01374588407 | K129: 0.1224232726 | L129: 0.5836232921 | M129: 0.004730935822
B130: Expense | C130: [$] | D130: =SUM(E130:XN130) -> 256945.4484 | E130: =E124*E127 -> 14683.51867 | F130: 12196.53825 | G130: 7117.6 | H130: 9037.064126 | I130: 7804.183077 | J130: 9756.875669 | K130: 86896.45882 | L130: 107707.0318 | M130: 1746.177927
B131: Contribution | C131: [$] | D131: =SUM(E131:XN131) -> 868352.673 | E131: =E128-E130 -> 74850.13178 | F131: 62172.59743 | G131: 36282.4 | H131: 46066.98542 | I131: 39782.2991 | J131: 5711.341855 | K131: 50866.2198 | L131: 549043.1623 | M131: 3577.535266
C132: [%] | E132: =E131/$D131 -> 0.08619784807 | F132: 0.07159832561 | G132: 0.04178302334 | H132: 0.05305100895 | I132: 0.04581352754 | J132: 0.006577214573 | K132: 0.05857783523 | L132: 0.6322813062 | M132: 0.004119910466
B133: Break-Even Point | C133: Months | D133: =D122/D131*12 -> 3.674020268
B134: (BEP) | C134: Revenue | D134: =D122/D126 -> 344530.6754
B136: Total Fixed Costs | C136: [$] | D136: =$E$12 -> 265862.11
A137: Decrease to: | B137: Price/unit | C137: [$] | E137: =E123 -> 5 | F137: 5 | G137: 5 | H137: 5 | I137: 5 | J137: 1.3 | K137: 1.3 | L137: 5 | M137: 2.5
B138: Variable cost/unit | C138: [$] | E138: =E124 -> 0.82 | F138: 0.82 | G138: 0.82 | H138: 0.82 | I138: 0.82 | J138: 0.82 | K138: 0.82 | L138: 0.82 | M138: 0.82
B139: Contribution/unit | C139: [$] | E139: =E137-E138 -> 4.18 | F139: 4.18 | G139: 4.18 | H139: 4.18 | I139: 4.18 | J139: 0.48 | K139: 0.48 | L139: 4.18 | M139: 1.68
B140: Contribution margin | C140: [%] | D140: =(D142-D144)/D142 -> 0.771664554 | E140: =E139/E137 -> 0.836 | F140: 0.836 | G140: 0.836 | H140: 0.836 | I140: 0.836 | J140: 0.3692307692 | K140: 0.3692307692 | L140: 0.836 | M140: 0.672
B141: Sales Volume | C141: [quantity] | E141: =E115 -> 17906.73009 | F141: 14873.82714 | G141: 8680 | H141: 11020.80991 | I141: 9517.296435 | J141: 11898.62887 | K141: 105971.2912 | L141: 131350.0388 | M141: 2129.485277
B142: Revenue | C142: [$] | D142: =SUM(E142:XN142) -> 1125298.121 | E142: =E137*E141 -> 89533.65045 | F142: 74369.13568 | G142: 43400 | H142: 55104.04955 | I142: 47586.48218 | J142: 15468.21752 | K142: 137762.6786 | L142: 656750.1942 | M142: 5323.713193
B143: % of Sales | C143: [%] | E143: =E142/$D142 -> 0.07956438276 | F143: 0.06608838517 | G143: 0.0385675575 | H143: 0.04896840091 | I143: 0.04228788911 | J143: 0.01374588407 | K143: 0.1224232726 | L143: 0.5836232921 | M143: 0.004730935822
B144: Expense | C144: [$] | D144: =SUM(E144:XN144) -> 256945.4484 | E144: =E138*E141 -> 14683.51867 | F144: 12196.53825 | G144: 7117.6 | H144: 9037.064126 | I144: 7804.183077 | J144: 9756.875669 | K144: 86896.45882 | L144: 107707.0318 | M144: 1746.177927
B145: Contribution | C145: [$] | D145: =SUM(E145:XN145) -> 868352.673 | E145: =E142-E144 -> 74850.13178 | F145: 62172.59743 | G145: 36282.4 | H145: 46066.98542 | I145: 39782.2991 | J145: 5711.341855 | K145: 50866.2198 | L145: 549043.1623 | M145: 3577.535266
C146: [%] | E146: =E145/$D145 -> 0.08619784807 | F146: 0.07159832561 | G146: 0.04178302334 | H146: 0.05305100895 | I146: 0.04581352754 | J146: 0.006577214573 | K146: 0.05857783523 | L146: 0.6322813062 | M146: 0.004119910466
B147: Break-Even Point | C147: Months | D147: =D136/D145*12 -> 3.674020268
B148: (BEP) | C148: Revenue | D148: =D136/D140 -> 344530.6754
B151: 2.3 | C151: What is the BEP if the Variable Cost/unit are increased and/or decreased while the total fixed costs and the price per products remain the same?
B155: BRAND 01 | D155: =$D$64 -> TOTAL BRAND 01 | E155: BR01-01, | F155: BR01-02, | G155: BR01-03, | H155: BR01-04, | I155: BR01-05, | J155: BR01-06, | K155: BR01-07, | L155: BR01-08, | M155: BR01-09,
B156: Total Fixed Costs | C156: [$] | D156: =$E$12 -> 265862.11
B157: Price/unit | C157: [$] | E157: 5 | F157: 5 | G157: 5 | H157: 5 | I157: 5 | J157: 1.3 | K157: 1.3 | L157: 5 | M157: 2.5
B158: Variable cost/unit | C158: [$] | E158: 0.82 | F158: 0.82 | G158: 0.82 | H158: 0.82 | I158: 0.82 | J158: 0.82 | K158: 0.82 | L158: 0.82 | M158: 0.82
B159: Contribution/unit | C159: [$] | E159: =E157-E158 -> 4.18 | F159: 4.18 | G159: 4.18 | H159: 4.18 | I159: 4.18 | J159: 0.48 | K159: 0.48 | L159: 4.18 | M159: 1.68
B160: Contribution margin | C160: [%] | D160: =(D162-D164)/D162 -> 0.771664554 | E160: =E159/E157 -> 0.836 | F160: 0.836 | G160: 0.836 | H160: 0.836 | I160: 0.836 | J160: 0.3692307692 | K160: 0.3692307692 | L160: 0.836 | M160: 0.672
B161: Sales Volume | C161: [quantity] | E161: 17906.73009 | F161: 14873.82714 | G161: 8680 | H161: 11020.80991 | I161: 9517.296435 | J161: 11898.62887 | K161: 105971.2912 | L161: 131350.0388 | M161: 2129.485277
B162: Revenue | C162: [$] | D162: =SUM(E162:XN162) -> 1125298.121 | E162: =E157*E161 -> 89533.65045 | F162: 74369.13568 | G162: 43400 | H162: 55104.04955 | I162: 47586.48218 | J162: 15468.21752 | K162: 137762.6786 | L162: 656750.1942 | M162: 5323.713193
B163: % of Sales | C163: [%] | E163: =E162/$D162 -> 0.07956438276 | F163: 0.06608838517 | G163: 0.0385675575 | H163: 0.04896840091 | I163: 0.04228788911 | J163: 0.01374588407 | K163: 0.1224232726 | L163: 0.5836232921 | M163: 0.004730935822
B164: Expense | C164: [$] | D164: =SUM(E164:XN164) -> 256945.4484 | E164: =E158*E161 -> 14683.51867 | F164: 12196.53825 | G164: 7117.6 | H164: 9037.064126 | I164: 7804.183077 | J164: 9756.875669 | K164: 86896.45882 | L164: 107707.0318 | M164: 1746.177927
B165: Contribution | C165: [$] | D165: =SUM(E165:XN165) -> 868352.673 | E165: =E162-E164 -> 74850.13178 | F165: 62172.59743 | G165: 36282.4 | H165: 46066.98542 | I165: 39782.2991 | J165: 5711.341855 | K165: 50866.2198 | L165: 549043.1623 | M165: 3577.535266
C166: [%] | E166: =E165/$D165 -> 0.08619784807 | F166: 0.07159832561 | G166: 0.04178302334 | H166: 0.05305100895 | I166: 0.04581352754 | J166: 0.006577214573 | K166: 0.05857783523 | L166: 0.6322813062 | M166: 0.004119910466
B168: Total Fixed Costs | C168: [$] | D168: =$E$12 -> 265862.11
B169: Price/unit | C169: [$] | E169: =E157 -> 5 | F169: 5 | G169: 5 | H169: 5 | I169: 5 | J169: 1.3 | K169: 1.3 | L169: 5 | M169: 2.5
A170: Increase to: | B170: Variable cost/unit | C170: [$] | E170: =E158 -> 0.82 | F170: 0.82 | G170: 0.82 | H170: 0.82 | I170: 0.82 | J170: 0.82 | K170: 0.82 | L170: 0.82 | M170: 0.82
B171: Contribution/unit | C171: [$] | E171: =E169-E170 -> 4.18 | F171: 4.18 | G171: 4.18 | H171: 4.18 | I171: 4.18 | J171: 0.48 | K171: 0.48 | L171: 4.18 | M171: 1.68
B172: Contribution margin | C172: [%] | D172: =(D174-D176)/D174 -> 0.771664554 | E172: =E171/E169 -> 0.836 | F172: 0.836 | G172: 0.836 | H172: 0.836 | I172: 0.836 | J172: 0.3692307692 | K172: 0.3692307692 | L172: 0.836 | M172: 0.672
B173: Sales Volume | C173: [quantity] | E173: =161:161 -> 17906.73009 | F173: 14873.82714 | G173: 8680 | H173: 11020.80991 | I173: 9517.296435 | J173: 11898.62887 | K173: 105971.2912 | L173: 131350.0388 | M173: 2129.485277
B174: Revenue | C174: [$] | D174: =SUM(E174:XN174) -> 1125298.121 | E174: =E169*E173 -> 89533.65045 | F174: 74369.13568 | G174: 43400 | H174: 55104.04955 | I174: 47586.48218 | J174: 15468.21752 | K174: 137762.6786 | L174: 656750.1942 | M174: 5323.713193
B175: % of Sales | C175: [%] | E175: =E174/$D174 -> 0.07956438276 | F175: 0.06608838517 | G175: 0.0385675575 | H175: 0.04896840091 | I175: 0.04228788911 | J175: 0.01374588407 | K175: 0.1224232726 | L175: 0.5836232921 | M175: 0.004730935822
B176: Expense | C176: [$] | D176: =SUM(E176:XN176) -> 256945.4484 | E176: =E170*E173 -> 14683.51867 | F176: 12196.53825 | G176: 7117.6 | H176: 9037.064126 | I176: 7804.183077 | J176: 9756.875669 | K176: 86896.45882 | L176: 107707.0318 | M176: 1746.177927
B177: Contribution | C177: [$] | D177: =SUM(E177:XN177) -> 868352.673 | E177: =E174-E176 -> 74850.13178 | F177: 62172.59743 | G177: 36282.4 | H177: 46066.98542 | I177: 39782.2991 | J177: 5711.341855 | K177: 50866.2198 | L177: 549043.1623 | M177: 3577.535266
C178: [%] | E178: =E177/$D177 -> 0.08619784807 | F178: 0.07159832561 | G178: 0.04178302334 | H178: 0.05305100895 | I178: 0.04581352754 | J178: 0.006577214573 | K178: 0.05857783523 | L178: 0.6322813062 | M178: 0.004119910466
B179: Break-Even Point | C179: Months | D179: =D168/D177*12 -> 3.674020268
B180: (BEP) | C180: Sales | D180: =D168/D172 -> 344530.6754
B182: Total Fixed Costs | C182: [$] | D182: =$E$12 -> 265862.11
B183: Price/unit | C183: [$] | E183: =E169 -> 5 | F183: 5 | G183: 5 | H183: 5 | I183: 5 | J183: 1.3 | K183: 1.3 | L183: 5 | M183: 2.5
A184: Decrease to: | B184: Variable cost/unit | C184: [$] | E184: =E170 -> 0.82 | F184: 0.82 | G184: 0.82 | H184: 0.82 | I184: 0.82 | J184: 0.82 | K184: 0.82 | L184: 0.82 | M184: 0.82
B185: Contribution/unit | C185: [$] | E185: =E183-E184 -> 4.18 | F185: 4.18 | G185: 4.18 | H185: 4.18 | I185: 4.18 | J185: 0.48 | K185: 0.48 | L185: 4.18 | M185: 1.68
B186: Contribution margin | C186: [%] | D186: =(D188-D190)/D188 -> 0.771664554 | E186: =E185/E183 -> 0.836 | F186: 0.836 | G186: 0.836 | H186: 0.836 | I186: 0.836 | J186: 0.3692307692 | K186: 0.3692307692 | L186: 0.836 | M186: 0.672
B187: Sales Volume | C187: [quantity] | E187: =E161 -> 17906.73009 | F187: 14873.82714 | G187: 8680 | H187: 11020.80991 | I187: 9517.296435 | J187: 11898.62887 | K187: 105971.2912 | L187: 131350.0388 | M187: 2129.485277
B188: Revenue | C188: [$] | D188: =SUM(E188:XN188) -> 1125298.121 | E188: =E183*E187 -> 89533.65045 | F188: 74369.13568 | G188: 43400 | H188: 55104.04955 | I188: 47586.48218 | J188: 15468.21752 | K188: 137762.6786 | L188: 656750.1942 | M188: 5323.713193
B189: % of Sales | C189: [%] | E189: =E188/$D188 -> 0.07956438276 | F189: 0.06608838517 | G189: 0.0385675575 | H189: 0.04896840091 | I189: 0.04228788911 | J189: 0.01374588407 | K189: 0.1224232726 | L189: 0.5836232921 | M189: 0.004730935822
B190: Expense | C190: [$] | D190: =SUM(E190:XN190) -> 256945.4484 | E190: =E184*E187 -> 14683.51867 | F190: 12196.53825 | G190: 7117.6 | H190: 9037.064126 | I190: 7804.183077 | J190: 9756.875669 | K190: 86896.45882 | L190: 107707.0318 | M190: 1746.177927
B191: Contribution | C191: [$] | D191: =SUM(E191:XN191) -> 868352.673 | E191: =E188-E190 -> 74850.13178 | F191: 62172.59743 | G191: 36282.4 | H191: 46066.98542 | I191: 39782.2991 | J191: 5711.341855 | K191: 50866.2198 | L191: 549043.1623 | M191: 3577.535266
C192: [%] | E192: =E191/$D191 -> 0.08619784807 | F192: 0.07159832561 | G192: 0.04178302334 | H192: 0.05305100895 | I192: 0.04581352754 | J192: 0.006577214573 | K192: 0.05857783523 | L192: 0.6322813062 | M192: 0.004119910466
B193: Break-Even Point | C193: Months | D193: =D182/D191*12 -> 3.674020268
B194: (BEP) | C194: Sales | D194: =D182/D186 -> 344530.6754
A199: 3 | B199: SENSITIVITY ANALYSIS
E201: FY-1
B202: BRAND 01 | D202: =$D$64 -> TOTAL BRAND 01 | E202: BR01-01, | F202: BR01-02, | G202: BR01-03, | H202: BR01-04, | I202: BR01-05, | J202: BR01-06, | K202: BR01-07, | L202: BR01-08, | M202: BR01-09,
E203: [retail] | F203: [retail] | G203: [retail] | H203: [retail] | I203: [retail] | J203: [retail] | K203: [wholesale] | L203: [wholesale] | M203: [retail]
B204: Total Fixed Costs | C204: [$] | D204: =$E$12 -> 265862.11
B205: Price/unit | C205: [$] | E205: 5 | F205: 5 | G205: 5 | H205: 5 | I205: 5 | J205: 1.3 | K205: 1.3 | L205: 5 | M205: 2.5
B206: Variable cost/unit | C206: [$] | E206: 0.82 | F206: 0.82 | G206: 0.82 | H206: 0.82 | I206: 0.82 | J206: 0.82 | K206: 0.82 | L206: 0.82 | M206: 0.82
B207: Contribution/unit | C207: [$] | E207: =E205-E206 -> 4.18 | F207: 4.18 | G207: 4.18 | H207: 4.18 | I207: 4.18 | J207: 0.48 | K207: 0.48 | L207: 4.18 | M207: 1.68
B208: Contribution margin | C208: [%] | D208: =(D210-D212)/D210 -> 0.771664554 | E208: =E207/E205 -> 0.836 | F208: 0.836 | G208: 0.836 | H208: 0.836 | I208: 0.836 | J208: 0.3692307692 | K208: 0.3692307692 | L208: 0.836 | M208: 0.672
B209: Sales Volume | C209: [quantity] | D209: =SUM(E209:XL209) -> 313348.1078 | E209: 17906.73009 | F209: 14873.82714 | G209: 8680 | H209: 11020.80991 | I209: 9517.296435 | J209: 11898.62887 | K209: 105971.2912 | L209: 131350.0388 | M209: 2129.485277
B210: Revenue | C210: [$] | D210: =SUM(E210:XN210) -> 1125298.121 | E210: =E205*E209 -> 89533.65045 | F210: 74369.13568 | G210: 43400 | H210: 55104.04955 | I210: 47586.48218 | J210: 15468.21752 | K210: 137762.6786 | L210: 656750.1942 | M210: 5323.713193
B211: % of Sales | C211: [%] | E211: =E210/$D210 -> 0.07956438276 | F211: 0.06608838517 | G211: 0.0385675575 | H211: 0.04896840091 | I211: 0.04228788911 | J211: 0.01374588407 | K211: 0.1224232726 | L211: 0.5836232921 | M211: 0.004730935822
B212: Expense | C212: [$] | D212: =SUM(E212:XN212) -> 256945.4484 | E212: =E206*E209 -> 14683.51867 | F212: 12196.53825 | G212: 7117.6 | H212: 9037.064126 | I212: 7804.183077 | J212: 9756.875669 | K212: 86896.45882 | L212: 107707.0318 | M212: 1746.177927
B213: Contribution | C213: [$] | D213: =SUM(E213:XN213) -> 868352.673 | E213: =E210-E212 -> 74850.13178 | F213: 62172.59743 | G213: 36282.4 | H213: 46066.98542 | I213: 39782.2991 | J213: 5711.341855 | K213: 50866.2198 | L213: 549043.1623 | M213: 3577.535266
C214: [%] | E214: =E213/$D213 -> 0.08619784807 | F214: 0.07159832561 | G214: 0.04178302334 | H214: 0.05305100895 | I214: 0.04581352754 | J214: 0.006577214573 | K214: 0.05857783523 | L214: 0.6322813062 | M214: 0.004119910466
B215: Profit (Before Taxes) | C215: [$] | D215: =D213-D204 -> 602490.563
B217: Price Sensitivity | C217: Min | E217: 3 | F217: 3 | G217: 2.5 | H217: 2.5 | I217: 2.5 | J217: 2.5 | K217: 1 | L217: 1 | M217: 1 | N217: 1
C218: Base | E218: 4 | F218: 4 | G218: 3.5 | H218: 3.5 | I218: 3.5 | J218: 3.5 | K218: 1.25 | L218: 1.28 | M218: 1.28 | N218: 1.28
C219: Market Research | E219: 5 | F219: 5 | G219: 4 | H219: 4 | I219: 4 | J219: 4 | K219: 1.3 | L219: 1.35 | M219: 1.35 | N219: 1.35
C220: Max | E220: 6 | F220: 6 | G220: 5 | H220: 5 | I220: 5 | J220: 5 | K220: 1.5 | L220: 1.5 | M220: 1.5 | N220: 1.5
B222: VarCosts Sensitivity | C222: Min | E222: 0.4 | F222: 0.4 | G222: 0.4 | H222: 0.4 | I222: 0.4 | J222: 0.4 | K222: 0.4 | L222: 0.4 | M222: 0.4 | N222: 0.4
C223: Base | E223: 0.53 | F223: 0.53 | G223: 0.5 | H223: 0.5 | I223: 0.5 | J223: 0.5 | K223: 0.41 | L223: 0.41 | M223: 0.41 | N223: 0.41
C224: Market Research | E224: 0.6 | F224: 0.6 | G224: 0.6 | H224: 0.6 | I224: 0.6 | J224: 0.6 | K224: 0.6 | L224: 0.6 | M224: 0.6 | N224: 0.6
C225: Max | E225: 0.9 | F225: 0.9 | G225: 0.9 | H225: 0.9 | I225: 0.9 | J225: 0.9 | K225: 0.9 | L225: 0.9 | M225: 0.9 | N225: 0.9
C227: retail | D227: wholesale
B228: max divided by min | C228: 2 | D228: 1.5
B230: Min | E230: =IF(E203="[retail]",E209,E232/$D$228) -> 17906.73009 | F230: 14873.82714 | G230: 8680 | H230: 11020.80991 | I230: 9517.296435 | J230: 11898.62887 | K230: 70647.5275 | L230: 87566.69256 | M230: 2129.485277
B231: Projected Consumption | C231: [quantity] | D231: =SUM(E231:XN231) -> 289517.8992 | E231: =IF(E203="[retail]",E232-1/(E220-E217)*(E219-E217)*E230,E232-(1/3)/(E220-E217)*(E219-E217)*E232) -> 23875.64012 | F231: 19831.76951 | G231: 12152 | H231: 15429.13387 | I231: 13324.21501 | J231: 16658.08041 | K231: 84777.033 | L231: 100701.6964 | M231: 2768.330861
B232: Max | E232: =IF(E203="[retail]",E230*$C$268,E209) -> 35813.46018 | F232: 29747.65427 | G232: 17360 | H232: 22041.61982 | I232: 19034.59287 | J232: 23797.25773 | K232: 105971.2912 | L232: 131350.0388 | M232: 4258.970555
B234: Contribution | C234: Projected | D234: =SUM(E234:XN234) -> 524974.7056 | E234: =(E219-E224)*E231 -> 105052.8165 | F234: 87259.78586 | G234: 41316.8 | H234: 52459.05517 | I234: 45302.33103 | J234: 56637.4734 | K234: 59343.9231 | L234: 75526.27233 | M234: 2076.248145
B236: Profit before Taxes | C236: Projected | D236: =D234-D204 -> 259112.5956
A239: 4 | B239: OPTIMIZATION ANALYSIS
E241: FY-1
B242: BRAND 01 | D242: =$D$64 -> TOTAL BRAND 01 | E242: BR01-01, | F242: BR01-02, | G242: BR01-03, | H242: BR01-04, | I242: BR01-05, | J242: BR01-06, | K242: BR01-07, | L242: BR01-08, | M242: BR01-09,
E243: [retail] | F243: [retail] | G243: [retail] | H243: [retail] | I243: [retail] | J243: [retail] | K243: [wholesale] | L243: [wholesale] | M243: [retail]
B244: Total Fixed Costs | C244: [$] | D244: =$E$12 -> 265862.11
B245: Price/unit | C245: [$] | E245: 5 | F245: 5 | G245: 5 | H245: 5 | I245: 5 | J245: 1.3 | K245: 1.3 | L245: 5 | M245: 2.5
B246: Variable cost/unit | C246: [$] | E246: 0.82 | F246: 0.82 | G246: 0.82 | H246: 0.82 | I246: 0.82 | J246: 0.82 | K246: 0.82 | L246: 0.82 | M246: 0.82
B247: Contribution/unit | C247: [$] | E247: =E245-E246 -> 4.18 | F247: 4.18 | G247: 4.18 | H247: 4.18 | I247: 4.18 | J247: 0.48 | K247: 0.48 | L247: 4.18 | M247: 1.68
B248: Contribution margin | C248: [%] | D248: =(D250-D252)/D250 -> 0.771664554 | E248: =E247/E245 -> 0.836 | F248: 0.836 | G248: 0.836 | H248: 0.836 | I248: 0.836 | J248: 0.3692307692 | K248: 0.3692307692 | L248: 0.836 | M248: 0.672
B249: Sales Volume | C249: [quantity] | E249: 17906.73009 | F249: 14873.82714 | G249: 8680 | H249: 11020.80991 | I249: 9517.296435 | J249: 11898.62887 | K249: 105971.2912 | L249: 131350.0388 | M249: 2129.485277
B250: Revenue | C250: [$] | D250: =SUM(E250:XN250) -> 1125298.121 | E250: =E245*E249 -> 89533.65045 | F250: 74369.13568 | G250: 43400 | H250: 55104.04955 | I250: 47586.48218 | J250: 15468.21752 | K250: 137762.6786 | L250: 656750.1942 | M250: 5323.713193
B251: % of Sales | C251: [%] | E251: =E250/$D250 -> 0.07956438276 | F251: 0.06608838517 | G251: 0.0385675575 | H251: 0.04896840091 | I251: 0.04228788911 | J251: 0.01374588407 | K251: 0.1224232726 | L251: 0.5836232921 | M251: 0.004730935822
B252: Expense | C252: [$] | D252: =SUM(E252:XN252) -> 256945.4484 | E252: =E246*E249 -> 14683.51867 | F252: 12196.53825 | G252: 7117.6 | H252: 9037.064126 | I252: 7804.183077 | J252: 9756.875669 | K252: 86896.45882 | L252: 107707.0318 | M252: 1746.177927
B253: Contribution | C253: [$] | D253: =SUM(E253:XN253) -> 868352.673 | E253: =E250-E252 -> 74850.13178 | F253: 62172.59743 | G253: 36282.4 | H253: 46066.98542 | I253: 39782.2991 | J253: 5711.341855 | K253: 50866.2198 | L253: 549043.1623 | M253: 3577.535266
C254: [%] | E254: =E253/$D253 -> 0.08619784807 | F254: 0.07159832561 | G254: 0.04178302334 | H254: 0.05305100895 | I254: 0.04581352754 | J254: 0.006577214573 | K254: 0.05857783523 | L254: 0.6322813062 | M254: 0.004119910466
B255: Profit (Before Taxes) | C255: [$] | D255: =D253-D244 -> 602490.563
B257: Price Sensitivity | C257: Min | E257: 3 | F257: 3 | G257: 2.5 | H257: 2.5 | I257: 2.5 | J257: 2.5 | K257: 1 | L257: 1 | M257: 1 | N257: 1
C258: Base | E258: 4 | F258: 4 | G258: 3.5 | H258: 3.5 | I258: 3.5 | J258: 3.5 | K258: 1.25 | L258: 1.28 | M258: 1.28 | N258: 1.28
C259: Market Research | E259: 5 | F259: 5 | G259: 4 | H259: 4 | I259: 4 | J259: 4 | K259: 1.3 | L259: 1.35 | M259: 1.35 | N259: 1.35
C260: Max | E260: 6 | F260: 6 | G260: 5 | H260: 5 | I260: 5 | J260: 5 | K260: 1.5 | L260: 1.5 | M260: 1.5 | N260: 1.5
B262: VarCosts Sensitivity | C262: Min | E262: 0.4 | F262: 0.4 | G262: 0.4 | H262: 0.4 | I262: 0.4 | J262: 0.4 | K262: 0.4 | L262: 0.4 | M262: 0.4 | N262: 0.4
C263: Base | E263: 0.53 | F263: 0.53 | G263: 0.5 | H263: 0.5 | I263: 0.5 | J263: 0.5 | K263: 0.41 | L263: 0.41 | M263: 0.41 | N263: 0.41
C264: Market Research | E264: 0.6 | F264: 0.6 | G264: 0.6 | H264: 0.6 | I264: 0.6 | J264: 0.6 | K264: 0.6 | L264: 0.6 | M264: 0.6 | N264: 0.6
C265: Max | E265: 0.9 | F265: 0.9 | G265: 0.9 | H265: 0.9 | I265: 0.9 | J265: 0.9 | K265: 0.9 | L265: 0.9 | M265: 0.9 | N265: 0.9
E266: =VLOOKUP(E242&" Name",'Sim-Report'!$B$6:$AZ$8000,CycleInCalculation+2,FALSE)="Special Offer" -> FALSE | F266: =VLOOKUP(F242&" Name",'Sim-Report'!$B$6:$AZ$8000,CycleInCalculation+2,FALSE)="Special Offer" -> FALSE | G266: =VLOOKUP(G242&" Name",'Sim-Report'!$B$6:$AZ$8000,CycleInCalculation+2,FALSE)="Special Offer" -> FALSE | H266: =VLOOKUP(H242&" Name",'Sim-Report'!$B$6:$AZ$8000,CycleInCalculation+2,FALSE)="Special Offer" -> FALSE | I266: =VLOOKUP(I242&" Name",'Sim-Report'!$B$6:$AZ$8000,CycleInCalculation+2,FALSE)="Special Offer" -> FALSE | J266: =VLOOKUP(J242&" Name",'Sim-Report'!$B$6:$AZ$8000,CycleInCalculation+2,FALSE)="Special Offer" -> FALSE | K266: =VLOOKUP(K242&" Name",'Sim-Report'!$B$6:$AZ$8000,CycleInCalculation+2,FALSE)="Special Offer" -> FALSE | L266: =VLOOKUP(L242&" Name",'Sim-Report'!$B$6:$AZ$8000,CycleInCalculation+2,FALSE)="Special Offer" -> FALSE | M266: =VLOOKUP(M242&" Name",'Sim-Report'!$B$6:$AZ$8000,CycleInCalculation+2,FALSE)="Special Offer" -> TRUE
C267: retail | D267: wholesale
B268: max divided by min | C268: 2 | D268: 1.5
B270: Min | E270: =IF(E243="[retail]",E249,E249/$D$268) -> 17906.73009 | F270: 14873.82714 | G270: 8680 | H270: 11020.80991 | I270: 9517.296435 | J270: 11898.62887 | K270: 70647.5275 | L270: 87566.69256 | M270: 2129.485277
B271: Projected Consumption | C271: [quantity] | D271: =SUM(E271:XN271) -> 289517.8992 | E271: =IF(E243="[retail]",E272-1/(E260-E257)*(E259-E257)*E270,E272-(1/3)/(E260-E257)*(E259-E257)*E272) -> 23875.64012 | F271: 19831.76951 | G271: 12152 | H271: 15429.13387 | I271: 13324.21501 | J271: 16658.08041 | K271: 84777.033 | L271: 100701.6964 | M271: 2768.330861
B272: Max | E272: =IF(E243="[retail]",E249*$C$268,E249) -> 35813.46018 | F272: 29747.65427 | G272: 17360 | H272: 22041.61982 | I272: 19034.59287 | J272: 23797.25773 | K272: 105971.2912 | L272: 131350.0388 | M272: 4258.970555
B273: min consumption deviation | D273: -0.02
B274: consumption deviation | D274: =(D271-SUM(E249:XN249))/SUM(E249:XN249) -> -0.07605027117
B275: max consumption deviation | D275: 0.02
B276: Contribution | C276: Projected | D276: =SUM(E276:XN276) -> 524974.7056 | E276: =(E259-E264)*E271 -> 105052.8165 | F276: 87259.78586 | G276: 41316.8 | H276: 52459.05517 | I276: 45302.33103 | J276: 56637.4734 | K276: 59343.9231 | L276: 75526.27233 | M276: 2076.248145
... 24 more rows

Sheet Performance
K1: ="Current Cycle "&CurrentCycle -> Current Cycle 8 | L1: ="Calculating "&CycleInCalculation -> Calculating 8
A5: 1 | B5: Key Success Indicators
A7: From Project-Start | G7: FY-0 | H7: FY-1 | I7: FY-2 | J7: FY-3 | K7: FY1+FY2+FY3
B8: Introducing an individually controlled brand (utilization in %) | F8: [%] | H8: ='Project-Start'!H8 -> 0.70588484 | I8: ='Project-Start'!I8 -> 0.7249628087 | J8: ='Project-Start'!J8 -> 0.763118746 | K8: ='Project-Start'!K8 -> 0.6359322883
B9: Retain of critical technology personnel | F9: [number] | H9: ='Project-Start'!H9 -> 1 | I9: ='Project-Start'!I9 -> 1 | J9: ='Project-Start'!J9 -> 1 | K9: =AVERAGE(H9:J9) -> 1
B10: Retain of critical marketing personnel | F10: [number] | H10: ='Project-Start'!H10 -> 1 | I10: ='Project-Start'!I10 -> 1 | J10: ='Project-Start'!J10 -> 2 | K10: =AVERAGE(H10:J10) -> 1.333333333
A12: From Current Cycle | G12: FY-0 | H12: FY-1 | I12: FY-2 | J12: FY-3 | K12: FY1+FY2+FY3
B13: Introducing an individually controlled brand (utilization in %) | F13: [%] | H13: ='36-Mo-Fin-Pr'!P38/H52 -> 0.658073143 | I13: ='36-Mo-Fin-Pr'!P39/I52 -> 0.671875 | J13: ='36-Mo-Fin-Pr'!P40/J52 -> 0.7161458333 | K13: ='36-Mo-Fin-Pr'!P41/SUM(H52:J52) -> 0.6820313255
B14: Retention of critical technology personnel | F14: [number] | H14: 1 | I14: 1 | J14: 1 | K14: =AVERAGE(H14:J14) -> 1
B15: Retention of critical marketing personnel | F15: [number] | H15: 1 | I15: 1 | J15: 2 | K15: =AVERAGE(H15:J15) -> 1.333333333
A36: 2 | B36: Key Performance Indicators
A38: From Project-Start | G38: FY-0 | H38: FY-1 | I38: FY-2 | J38: FY-3 | K38: FY1+FY2+FY3
A39: KPI 1: | B39: Actual size of the local market | F39: [units] | G39: ='Project-Start'!G15 -> 7621849 | H39: ='Project-Start'!H15 -> 1.03 | I39: ='Project-Start'!I15 -> 1.06 | J39: ='Project-Start'!J15 -> 1.1
A40: KPI 2: | B40: Number of customers- existing business | F40: [customers] | G40: ='Project-Start'!G16 -> 103587
A41: KPI 3: | B41: Average consumption per existing customer | F41: [units] | G41: ='Project-Start'!G17 -> 1.2
A42: KPI 4: | B42: Size of the penetrated market - without new project | F42: [%] | G42: ='Project-Start'!G18 -> 0 | H42: ='Project-Start'!H18 -> 1.08 | I42: ='Project-Start'!I18 -> 1.16 | J42: ='Project-Start'!J18 -> 1.24
F43: [units] | G43: =G41*G40 -> 124304.4 | H43: =G43*H42 -> 134248.752 | I43: =G43*I42 -> 144193.104 | J43: =G43*J42 -> 154137.456 | K43: =SUM(H43:J43) -> 432579.312
A44: KPI 5: | B44: Overall increase of the penetrated market - with new project | F44: [%] | K44: ='Project-Start'!K20 -> 2.1
A45: KPI 6: | B45: Projected structure of the annual sales, new penetr. market | F45: [%] | H45: ='Project-Start'!H21 -> 0.37 | I45: ='Project-Start'!I21 -> 0.38 | J45: ='Project-Start'!J21 -> 0.4 | K45: =H45+I45+J45 -> 1.15
B46: Projected sales, new brand | F46: [units] | H46: =H45*K46 -> 336114.1254 | I46: =I45*K46 -> 345198.291 | J46: =J45*K46 -> 363366.6221 | K46: =K43*K44 -> 908416.5552
A47: KPI 7: | B47: Projected consumption in the existing business, new brand only | F47: [%] | H47: ='Project-Start'!H23 -> 0.28 | I47: ='Project-Start'!I23 -> 0.3 | J47: ='Project-Start'!J23 -> 0.32 | K47: =K48/K46 -> 0.3456
F48: [units] | H48: =H46*H47 -> 94111.95512 | I48: =I46*I47 -> 103559.4873 | J48: =J46*J47 -> 116277.3191 | K48: =SUM(H48:J48) -> 313948.7615
B49: Projected beer consumption (new brand % of all) | F49: [%] | H49: =H48/H43 -> 0.7010266667 | I49: =I48/I43 -> 0.7182 | J49: =J48/J43 -> 0.7543741935
B50: Wholesale distribution (new brand) | F50: [%] | H50: =1-H47 -> 0.72 | I50: =1-I47 -> 0.7 | J50: =1-J47 -> 0.68 | K50: =K51/K46 -> 0.8044
F51: [units] | H51: =H50*H46 -> 242002.1703 | I51: =I50*I46 -> 241638.8037 | J51: =J50*J46 -> 247089.303 | K51: =SUM(H51:J51) -> 730730.277
A52: KPI 8: | B52: Capacity of the new technology (max units/year) | F52: [units] | G52: ='Project-Start'!G28 -> 476160 | H52: ='Project-Start'!H28 -> 476160 | I52: ='Project-Start'!I28 -> 476160 | J52: ='Project-Start'!J28 -> 476160
A54: From Current Cycle | G54: FY-0 | H54: FY-1 | I54: FY-2 | J54: FY-3 | K54: FY1+FY2+FY3
A55: KPI 1: | B55: Actual size of the local market | F55: [units] | G55: =G39 -> 7621849 | H55: =H39 -> 1.03 | I55: =I39 -> 1.06 | J55: =J39 -> 1.1
A56: KPI 2: | B56: Number customers- existing business | F56: [customers] | G56: =G40 -> 103587
A57: KPI 3: | B57: Average consumption per existing customer | F57: [units] | G57: 1.2
A58: KPI 4: | B58: Size of the penetrated market - without new project | F58: [%] | G58: 0 | H58: 1.08 | I58: 1.16 | J58: 1.24
F59: [units] | G59: =G57*G56 -> 124304.4 | H59: =G59*H58 -> 134248.752 | I59: =G59*I58 -> 144193.104 | J59: =G59*J58 -> 154137.456 | K59: =SUM(H59:J59) -> 432579.312
A60: KPI 5: | B60: Overall increase of the penetrated market - with new project | F60: [%] | K60: =K44 -> 2.1
A61: KPI 6: | B61: Projected structure of the annual sales, new penetr. market | F61: [%] | K61: =H61+I61+J61 -> 0
B62: Projected sales, new brand | F62: [units] | H62: ='36-Mo-Fin-Pr'!P38 -> 313348.1078 | I62: ='36-Mo-Fin-Pr'!P39 -> 319920 | J62: ='36-Mo-Fin-Pr'!P40 -> 341000 | K62: =SUM(H62:J62) -> 974268.1078
A63: KPI 7: | B63: Projected consumption in the existing business, new brand only | F63: [%] | H63: =H64/H62 ->  | I63: =I64/I62 ->  | J63: =J64/J62 ->  | K63: =K64/K62 -> 
F64: [units] | H64: =FindValue4Performanse("FY-1","[retail]") ->  | I64: =FindValue4Performanse("FY-2","[retail]") ->  | J64: =FindValue4Performanse("FY-3","[retail]") ->  | K64: =SUM(H64:J64) -> 
B65: Projected beer consumption (new brand % of all) | F65: [%] | H65: =H64/H59 ->  | I65: =I64/I59 ->  | J65: =J64/J59 -> 
B66: Wholesale distribution (new brand) | F66: [%] | H66: =1-H63 ->  | I66: =1-I63 ->  | J66: =1-J63 ->  | K66: =K67/K62 -> 
F67: [units] | H67: =FindValue4Performanse("FY-1","[wholesale]") ->  | I67: =FindValue4Performanse("FY-2","[wholesale]") ->  | J67: =FindValue4Performanse("FY-3","[wholesale]") ->  | K67: =SUM(H67:J67) -> 
A68: KPI 8: | B68: Capacity of the new technology (max units/year) | F68: [units] | G68: ='Project-Start'!G28 -> 476160 | H68: ='Project-Start'!H28 -> 476160 | I68: ='Project-Start'!I28 -> 476160 | J68: ='Project-Start'!J28 -> 476160
B70: Projected consumption current cycle VS Project-Start [Retail] | G70: Projected consumption current cycle VS Project-Start [Wholesale] | M70: Recommended additional value for next cycle
C71: FY-1 | D71: FY-2 | E71: FY-3 | I71: FY-1 | J71: FY-2 | K71: FY-3 | O71: FY-1 | P71: FY-2 | Q71: FY-3
B72: Project-start | C72: =H48 -> 94111.95512 | D72: =I48 -> 103559.4873 | E72: =J48 -> 116277.3191 | G72: Project-start | I72: =H51 -> 242002.1703 | J72: =I51 -> 241638.8037 | K72: =J51 -> 247089.303 | M72: Project Start | O72: =H46 -> 336114.1254 | P72: =I46 -> 345198.291 | Q72: =J46 -> 363366.6221
B73: Current cycle | C73: =H64 ->  | D73: =I64 ->  | E73: =J64 ->  | G73: Current cycle | I73: =H67 ->  | J73: =I67 ->  | K73: =J67 ->  | M73: Current Cycle | O73: =H62 -> 313348.1078 | P73: =I62 -> 319920 | Q73: =J62 -> 341000
C74: =C73/C72 ->  | D74: =D73/D72 ->  | E74: =E73/E72 ->  | I74: =I73/I72 ->  | J74: =J73/J72 ->  | K74: =K73/K72 ->  | M74: Recommended Value | O74: =O72-O73 -> 22766.01763 | P74: =P72-P73 -> 25278.29098 | Q74: =Q72-Q73 -> 22366.62208
A94: 3 | B94: EFFICIENCY RATIOS
B96: 1. Total Sales/Type of Product [%]
C97: BR01-01, | D97: BR01-02, | E97: BR01-03, | F97: BR01-04, | G97: BR01-05, | H97: BR01-06, | I97: BR01-07, | J97: BR01-08, | K97: BR01-09,
B98: FY-1 | C98: 0.07956438272 | D98: 0.06608838519 | E98: 0.0385675575 | F98: 0.04896840086 | G98: 0.04228788913 | H98: 0.01374588405 | I98: 0.1224232725 | J98: 0.5836232921 | K98: 0.004730935828
B99: FY-2 | C99: 0.08442716232 | D99: 0.0796220088 | E99: 0.04654659868 | F99: 0.05102447514 | G99: 0.04753986226 | H99: 0.01530351084 | I99: 0.1271539556 | J99: 0.5422841879 | K99: 0.006098238646
B100: FY-3 | C100: 0.09462242942 | D100: 0.08826335519 | E100: 0.04649010196 | F100: 0.05416115837 | G100: 0.05373968777 | H100: 0.01851013328 | I100: 0.1303774706 | J100: 0.5072760986 | K100: 0.006559564852
B101: Total 3 years | C101: 0.08636340634 | D101: 0.0781936909 | E101: 0.04392495346 | F101: 0.05143755789 | G101: 0.04796890205 | H101: 0.01590330892 | I101: 0.1267247912 | J101: 0.5436716843 | K101: 0.005811704871
B103: 2. Total Variable Costs/Type of Product [%]
C104: BR01-01, | D104: BR01-02, | E104: BR01-03, | F104: BR01-04, | G104: BR01-05, | H104: BR01-06, | I104: BR01-07, | J104: BR01-08, | K104: BR01-09,
B105: FY-1 | C105: 0.05714644409 | D105: 0.04746742305 | E105: 0.02770082149 | F105: 0.03517113907 | G105: 0.03037291825 | H105: 0.03797255706 | I105: 0.338190302 | J105: 0.4191824859 | K105: 0.006795909057
B106: FY-2 | C106: 0.05981149594 | D106: 0.05640733735 | E106: 0.0329754264 | F106: 0.03614772901 | G106: 0.03367909317 | H106: 0.04169847759 | I106: 0.3464647042 | J106: 0.3841752763 | K106: 0.00864046042
B107: FY-3 | C107: 0.06615488484 | D107: 0.06170896395 | E107: 0.03250336492 | F107: 0.03786655246 | G107: 0.03757188327 | H107: 0.04977416923 | I107: 0.3505879837 | J107: 0.3546600114 | K107: 0.009172185824
B108: Total 3 years | C108: 0.06117457726 | D108: 0.05538764826 | E108: 0.03111376182 | F108: 0.03643523323 | G108: 0.03397824878 | H108: 0.04332667489 | I108: 0.3452466309 | J108: 0.3851039094 | K108: 0.008233315494
B110: 3. Total Contribution/Type of Product [%]
C111: BR01-01, | D111: BR01-02, | E111: BR01-03, | F111: BR01-04, | G111: BR01-05, | H111: BR01-06, | I111: BR01-07, | J111: BR01-08, | K111: BR01-09,
B112: FY-1 | C112: 0.08619784809 | D112: 0.07159832558 | E112: 0.04178302334 | F112: 0.05305100892 | G112: 0.04581352754 | H112: 0.006577214624 | I112: 0.05857783523 | J112: 0.6322813062 | K112: 0.004119910506
B113: FY-2 | C113: 0.09184207792 | D113: 0.08661490598 | E113: 0.0506346089 | F113: 0.05550576009 | G113: 0.05171510699 | H113: 0.007352621161 | I113: 0.06109152843 | J113: 0.589910939 | K113: 0.005332451553
B114: FY-3 | C114: 0.1033465497 | D114: 0.09640117329 | E114: 0.05077645604 | F114: 0.05915477842 | G114: 0.05869444847 | H114: 0.008929004431 | I114: 0.06289209278 | J114: 0.5540465918 | K114: 0.005758905017
B115: Total 3 years | C115: 0.09395236704 | D115: 0.08506475891 | E115: 0.04778474499 | F115: 0.05595750008 | G115: 0.05218404507 | H115: 0.007641120791 | I115: 0.06088792229 | J115: 0.5914454255 | K115: 0.005082115273
B135: 4. | E135: FY-1 | F135: FY-2 | G135: FY-3
B136: Fixed Costs/Total Revenue of BRAND 01 [$] | E136: ='36-Mo-Fin-Pr'!P146/'36-Mo-Fin-Pr'!P134 ->  | F136: ='36-Mo-Fin-Pr'!P227/'36-Mo-Fin-Pr'!P215 ->  | G136: ='36-Mo-Fin-Pr'!P308/'36-Mo-Fin-Pr'!P296 -> 
B137: The company spends $0.XX fixed costs for the overall sale of $1.00 from BRAND 01
B140: 5.
B141: Compensations/Total Revenue of BRAND 01 [$] | E141: ='36-Mo-Fin-Pr'!C65/'36-Mo-Fin-Pr'!P134 ->  | F141: ='36-Mo-Fin-Pr'!D65/'36-Mo-Fin-Pr'!P215 ->  | G141: ='36-Mo-Fin-Pr'!E65/'36-Mo-Fin-Pr'!P296 -> 
B142: The company spends $0.XX costs for compensation needed for the overall sale of $1.00 from BRAND 01
B145: 6.
B146: (Local Advertising + Trade Shows)/Total Revenue Sales [$] | E146: ='36-Mo-Fin-Pr'!C67/'36-Mo-Fin-Pr'!P134 ->  | F146: ='36-Mo-Fin-Pr'!D67/'36-Mo-Fin-Pr'!P215 ->  | G146: ='36-Mo-Fin-Pr'!E67/'36-Mo-Fin-Pr'!P296 -> 
B147: The company spends $0.XX costs for advertising & trade shows needed for the overall sale of $1.00 from BRAND 01
B154: 7. | E154: FY-1 | F154: FY-2 | G154: FY-3
B155: Profit B.T. / Total Revenue of BRAND 01 [$] | E155: ='36-Mo-Fin-Pr'!P149/'36-Mo-Fin-Pr'!P134 ->  | F155: ='36-Mo-Fin-Pr'!P230/'36-Mo-Fin-Pr'!P215 ->  | G155: ='36-Mo-Fin-Pr'!P311/'36-Mo-Fin-Pr'!P296 -> 
B156: The company make $0.XX overall profit before taxes for the overall sale of $1.00 from BRAND 01
A170: 4 | B170: Trend Analysis
D172: FY-1 | E172: FY-2 | F172: FY-3 | G172: FY1+FY2+FY3
C173: Revenue | D173: ='36-Mo-Fin-Pr'!P134 ->  | E173: ='36-Mo-Fin-Pr'!P215 ->  | F173: ='36-Mo-Fin-Pr'!P296 ->  | G173: =SUM(D173:F173) -> 
C174: Expenses | D174: ='36-Mo-Fin-Pr'!P135 ->  | E174: ='36-Mo-Fin-Pr'!P216 ->  | F174: ='36-Mo-Fin-Pr'!P297 ->  | G174: =SUM(D174:F174) -> 
C175: Total contribution | D175: ='36-Mo-Fin-Pr'!P136 ->  | E175: ='36-Mo-Fin-Pr'!P217 ->  | F175: ='36-Mo-Fin-Pr'!P298 ->  | G175: =SUM(D175:F175) -> 
E177: FY-1 | F177: FY-2 | G177: FY-3 | H177: FY1+FY2+FY3
D178: Profit Before Taxes | E178: ='36-Mo-Fin-Pr'!P149 ->  | F178: ='36-Mo-Fin-Pr'!P230 ->  | G178: ='36-Mo-Fin-Pr'!P311 ->  | H178: =SUM(E178:G178) -> 
D179: Fixed Costs | E179: ='36-Mo-Fin-Pr'!P146 ->  | F179: ='36-Mo-Fin-Pr'!P227 ->  | G179: ='36-Mo-Fin-Pr'!P308 ->  | H179: =SUM(E179:G179) -> 
F181: FY-1 | G181: FY-2 | H181: FY-3 | I181: FY1+FY2+FY3
E182: Marketing Cost | F182: ='36-Mo-Fin-Pr'!C67 -> 83000 | G182: ='36-Mo-Fin-Pr'!D67 -> 83830 | H182: ='36-Mo-Fin-Pr'!E67 -> 93096 | I182: =SUM(F182:H182) -> 259926
E183: Compensation | F183: ='36-Mo-Fin-Pr'!C65 -> 115000 | G183: ='36-Mo-Fin-Pr'!D65 -> 125750 | H183: ='36-Mo-Fin-Pr'!E65 -> 137537.5 | I183: =SUM(F183:H183) -> 378287.5
E184: Other costs | F184: =E179-F182-F183+'36-Mo-Fin-Pr'!P148 ->  | G184: =F179-G182-G183+'36-Mo-Fin-Pr'!P229 ->  | H184: =G179-H182-H183+'36-Mo-Fin-Pr'!P310 ->  | I184: =SUM(F184:H184) -> 
C219: FY-1 | G219: FY-2 | K219: FY-3
C220: Q-1 | D220: Q-2 | E220: Q-3 | F220: Q-4 | G220: Q-1 | H220: Q-2 | I220: Q-3 | J220: Q-4 | K220: Q-1 | L220: Q-2 | M220: Q-3 | N220: Q-4
B221: Revenue | C221: =quartercalculation($C$219,C$220,$B221) ->  | D221: =quartercalculation($C$219,D$220,$B221) ->  | G221: =quartercalculation($G$219,G$220,$B221) ->  | H221: =quartercalculation($G$219,H$220,$B221) ->  | K221: =quartercalculation($K$219,K$220,$B221) ->  | L221: =quartercalculation($K$219,L$220,$B221) -> 
B222: Expenses | C222: =quartercalculation($C$219,C$220,$B222) ->  | G222: =quartercalculation($G$219,G$220,$B222) ->  | K222: =quartercalculation($K$219,K$220,$B222) -> 
B223: Contribution | C223: =quartercalculation($C$219,C$220,$B223) ->  | G223: =quartercalculation($G$219,G$220,$B223) ->  | K223: =quartercalculation($K$219,K$220,$B223) -> 
B224: Fixed Costs | C224: =quartercalculation($C$219,C$220,$B224) ->  | G224: =quartercalculation($G$219,G$220,$B224) ->  | K224: =quartercalculation($K$219,K$220,$B224) -> 
B225: Profit (B. T.) | C225: =quartercalculation($C$219,C$220,$B225) ->  | G225: =quartercalculation($G$219,G$220,$B225) ->  | K225: =quartercalculation($K$219,K$220,$B225) -> 
A229: Revenue
A238: Expenses
A247: Contribution
A256: Fixed Costs
A265: Proft BT

Sheet Sim-Report
C1: ="CurrentCycle "&CurrentCycle&" Cycle in Calculation "&CycleInCalculation&" Cycle for Monte-Carlo Simulation "&MCSCycleCurrent -> CurrentCycle 8 Cycle in Calculation 8 Cycle for Monte-Carlo Simulation
B2: Cycles | C2: Start | D2: Cycle 01 | E2: Cycle 02 | F2: Cycle 03 | G2: Cycle 04 | H2: Cycle 05 | I2: Cycle 06 | J2: Cycle 07
C3: Underlying Cycles | D3: 0 | E3: 1 | F3: 2 | G3: 3 | H3: 4 | I3: 5 | J3: 6 | K3: 7
C4: Department | D4: Mktg | E4: Inn | F4: Mktg | G4: Mktg | H4: Oper | I4: Mktg | J4: Fin | K4: Org
A5: # | B5: Selected metrics for analyzing and evaluating the efficiency of projects or investments
B6: Total revenue, Total | C6: 1827008.286 | D6: 2196458.722 | E6: 2196458.722 | F6: 2184329.668 | G6: 2168428.65 | H6: 2222535.841 | I6: 3450560.953 | J6: 3450560.953 | K6: 3450560.953
B7: Total Revenue, FY1 | C7: 560864.1106 | D7: 681471.4721 | E7: 681471.4721 | F7: 690381.0991 | G7: 674480.0805 | H7: 684392.6471 | I7: 1125298.121 | J7: 1125298.121 | K7: 1125298.121
B8: Total Revenue, FY2 | C8: 603878.7124 | D8: 729501.7153 | E8: 729501.7153 | F8: 706981.726 | G8: 706981.726 | H8: 729210.0208 | I8: 1133219.049 | J8: 1133219.049 | K8: 1133219.049
B9: Total Revenue, FY3 | C9: 662265.4626 | D9: 785485.5349 | E9: 785485.5349 | F9: 786966.8433 | G9: 786966.8433 | H9: 808933.1735 | I9: 1192043.783 | J9: 1192043.783 | K9: 1192043.783
B11: Profit Before Taxes, Total | C11: -8508.9969 | D11: 610753.4344 | E11: 659057.7678 | F11: 598708.4547 | G11: 585436.3983 | H11: 629636.1063 | I11: 1857661.218 | J11: 1752051.274 | K11: 1752051.274
B12: Profit Before Taxes, FY-1 | C12: 4076.436 | D12: 198397.1334 | E12: 213896.1589 | F12: 203188.4766 | G12: 189916.4202 | H12: 198055.9031 | I12: 638961.3774 | J12: 594990.5628 | K12: 594990.5628
B13: Profit Before Taxes, FY-2 | C13: -4627.1363 | D13: 204022.8616 | E13: 220026.1695 | F13: 185993.2304 | G13: 185993.2304 | H13: 204154.3252 | I13: 608163.3535 | J13: 569842.5389 | K13: 569842.5389
B14: Profit Before Taxes, FY-3 | C14: -7958.2966 | D14: 208333.4394 | E14: 225135.4394 | F14: 209526.7477 | G14: 209526.7477 | H14: 227425.878 | I14: 610536.4872 | J14: 587218.1726 | K14: 587218.1726
B16: Net Profit (After Taxes), Total | C16: -18091.5386 | D16: 396989.7324 | E16: 428387.5492 | F16: 389160.4957 | G16: 380533.6591 | H16: 409263.4692 | I16: 1206515.418 | J16: 1416870.067 | K16: 1416870.067
B17: Net Profit (After Taxes), FY-1 | C17: -2447.3791 | D17: 128958.1366 | E17: 139032.5033 | F17: 132072.5098 | G17: 123445.6732 | H17: 128736.3371 | I17: 414588.8413 | J17: 480628.9238 | K17: 480628.9238
B18: Net Profit (After Taxes), FY-2 | C18: -7685.8631 | D18: 132614.8601 | E18: 143017.0102 | F18: 120895.5998 | G18: 120895.5998 | H18: 132700.3114 | I18: 395306.1799 | J18: 461087.5751 | K18: 461087.5751
B19: Net Profit (After Taxes), FY-3 | C19: -7958.2964 | D19: 135416.7357 | E19: 146338.0357 | F19: 136192.3861 | G19: 136192.3861 | H19: 147826.8207 | I19: 396620.397 | J19: 475153.5682 | K19: 475153.5682
B21: Invested Capital | C21: -150000 | D21: -150000 | E21: -150000 | F21: -150000 | G21: -150000 | H21: -150000 | I21: -150000 | J21: -150000 | K21: -150000
B23: Profit BT/Total Revenue (36 Month) | C23: =C11/C6 -> -0.004657338977 | D23: 0.2780627872 | E23: 0.3000547022 | F23: 0.2740925344 | G23: 0.2699818591 | H23: 0.2832962666 | I23: 0.5383649914 | J23: =J11/J6 -> 0.50775839 | K23: =K11/K6 -> 0.50775839
B24: Net Profit/Total Revenue (36 Month) | C24: =C16/C6 -> -0.00990227507 | D24: 0.1807408117 | E24: 0.1950355565 | F24: 0.1781601474 | G24: 0.1754882085 | H24: 0.1841425734 | I24: 0.3496577613 | J24: =J16/J6 -> 0.4106202111 | K24: =K16/K6 -> 0.4106202111
B26: Break Even Point: Months | C26: 11.40498346 | D26: 5.999915053 | E26: 5.782279957 | F26: 6.155386323 | G26: 6.350218403 | H26: 6.229296946 | I26: 3.06637575 | J26: 3.674020238 | K26: 3.674020238
B27: Break Even Point: Revenue | C27: 533053.85 | D27: 340730.91 | E27: 328371.57 | F27: 354130.21 | G27: 356924.66 | H27: 355273.76 | I27: 287548.91 | J27: 344530.68 | K27: 344530.68
B29: Ending Cash Balance (End of FY-1) | C29: -152447.38 | D29: -21041.86 | E29: -10967.5 | F29: -17927.49 | G29: -26554.33 | H29: -21263.66 | I29: 264588.84 | J29: 330628.92 | K29: 330628.92
B31: Return On Investment (ROI) | C31: =C16/(-C21) -> -0.1206102573 | D31: 2.646598216 | E31: 2.855916995 | F31: 2.594403305 | G31: 2.536891061 | H31: 2.728423128 | I31: 8.043436121 | J31: =J16/(-J21) -> 9.445800447 | K31: =K16/(-K21) -> 9.445800447
B32: Internal Rate of Return (IRR) | C32: =IRR((C21,C17:C19)) ->  | D32: =IRR((D21,D17:D19)) -> 0.6953211303 | E32: =IRR((E21,E17:E19)) -> 0.7742040251 | F32: =IRR((F21,F17:F19)) -> 0.681152244 | G32: =IRR((G21,G17:G19)) -> 0.6470248565 | H32: =IRR((H21,H17:H19)) -> 0.7115468364 | I32: =IRR((I21,I17:I19)) -> 2.676394247 | J32: =IRR((J21,J17:J19)) -> 3.133304075 | K32: =IRR((K21,K17:K19)) -> 3.133304075
B34: Discount Rate | C34: =FindNameFinM("Investment",0) ->  | D34: =FindNameFinM("Investment",1) ->  | E34: =FindNameFinM("Investment",2) ->  | F34: =FindNameFinM("Investment",3) ->  | G34: =FindNameFinM("Investment",4) ->  | H34: =FindNameFinM("Investment",5) ->  | I34: =FindNameFinM("Investment",6) ->  | J34: =FindNameFinM("Investment",7) ->  | K34: =FindNameFinM("Investment",8) -> 
B35: Risk-Free Rate | C35: =FindNameFinM("Risk-Free",0) ->  | D35: =FindNameFinM("Risk-Free",1) ->  | E35: =FindNameFinM("Risk-Free",2) ->  | F35: =FindNameFinM("Risk-Free",3) ->  | G35: =FindNameFinM("Risk-Free",4) ->  | H35: =FindNameFinM("Risk-Free",5) ->  | I35: =FindNameFinM("Risk-Free",6) ->  | J35: =FindNameFinM("Risk-Free",7) ->  | K35: =FindNameFinM("Risk-Free",8) -> 
B37: Net Present Value | C37: =(C17/(1+C34)+C18/(1+C34)^2+C19/(1+C34)^3)+C21 ->  | J37: =(J17/(1+J34)+J18/(1+J34)^2+J19/(1+J34)^3)+J21 ->  | K37: =(K17/(1+K34)+K18/(1+K34)^2+K19/(1+K34)^3)+K21 -> 
B38: Duration (3 year to maturity, 10% coupon Bond) | C38: =DURATION(DATE(2014,12,31),DATE(2017,12,31),0.1,C36,1) -> 2.769230769 | D38: 2.769230769 | E38: 2.769230769 | F38: 2.769230769 | G38: 2.769230769 | H38: 2.769230769 | I38: 2.769230769 | J38: =DURATION(DATE(2014,12,31),DATE(2017,12,31),0.1,J36,1) -> 2.769230769 | K38: =DURATION(DATE(2014,12,31),DATE(2017,12,31),0.1,K36,1) -> 2.769230769
B39: Duration (Project) | C39: =DurationProject(C17,C18,C19,C34) ->  | J39: =DurationProject(J17,J18,J19,J34) ->  | K39: =DurationProject(K17,K18,K19,K34) ->  | L39: =IF(L34="","",DURATION(DATE(2014,12,31),DATE(2017,12,31),0.1,L34,1)) -> 
B41: Standard Deviation (Profit)
B42: Failure rate (Return On Investment)
B43: Standard Deviation (IRR)
B44: Sharpe Ratio (Applying Risk-Free Interest Rate) | C44: =IFERROR((C32-C34)/C43,"") -> 
B45: Sharpe Ratio (Applying Expected Return on Investment)
B46: Average (Profit)
B47: Average (IRR)
A49: # | B49: Business Indicators
A50: 1.1 | B50: Critical Success Factors
B51: Introducing an individually controlled brand (utilization in %), FY-1 | C51: 0.70588484 | D51: 0.70588484 | E51: 0.70588484 | F51: 0.70588484 | G51: 0.70588484 | H51: 0.70588484 | I51: 0.70588484 | J51: 0.70588484 | K51: 0.70588484
B52: Introducing an individually controlled brand (utilization in %), FY-2 | C52: 0.7249628087 | D52: 0.7249628087 | E52: 0.7249628087 | F52: 0.7249628087 | G52: 0.7249628087 | H52: 0.7249628087 | I52: 0.7249628087 | J52: 0.7249628087 | K52: 0.7249628087
B53: Introducing an individually controlled brand (utilization in %), FY-3 | C53: 0.763118746 | D53: 0.763118746 | E53: 0.763118746 | F53: 0.763118746 | G53: 0.763118746 | H53: 0.763118746 | I53: 0.763118746 | J53: 0.763118746 | K53: 0.763118746
B54: Retention of critical technology personnel, FY-1 | C54: 1 | D54: 1 | E54: 1 | F54: 1 | G54: 1 | H54: 1 | I54: 1 | J54: 1 | K54: 1
B55: Retention of critical technology personnel, FY-2 | C55: 1 | D55: 1 | E55: 1 | F55: 1 | G55: 1 | H55: 1 | I55: 1 | J55: 1 | K55: 1
B56: Retention of critical technology personnel, FY-3 | C56: 1 | D56: 1 | E56: 1 | F56: 1 | G56: 1 | H56: 1 | I56: 1 | J56: 1 | K56: 1
B57: Retention of critical marketing personnel, FY-1 | C57: 1 | D57: 1 | E57: 1 | F57: 1 | G57: 1 | H57: 1 | I57: 1 | J57: 1 | K57: 1
B58: Retention of critical marketing personnel, FY-2 | C58: 1 | D58: 1 | E58: 1 | F58: 1 | G58: 1 | H58: 1 | I58: 1 | J58: 1 | K58: 1
B59: Retention of critical marketing personnel, FY-3 | C59: 2 | D59: 2 | E59: 2 | F59: 2 | G59: 2 | H59: 2 | I59: 2 | J59: 2 | K59: 2
B60: Salesmen (temporary), FY-1 | K60: 1
B61: Salesmen (temporary), FY-2 | K61: 1.5
B62: Salesmen (temporary), FY-3 | K62: 1.5
B63: Worker (temporary), FY-1 | K63: 1
B64: Worker (temporary), FY-2 | K64: 1.5
B65: Worker (temporary), FY-3 | K65: 1.5
A67: 1.2 | B67: Key Performance Indicators
B68: Actual size of the local market [units], FY-0 | C68: 7621849 | D68: 7621849 | E68: 7621849 | F68: 7621849 | G68: 7621849 | H68: 7621849 | I68: 7621849 | J68: 7621849 | K68: 7621849
B69: Actual size of the local market [units], FY-1 | C69: 1.03 | D69: 1.03 | E69: 1.03 | F69: 1.03 | G69: 1.03 | H69: 1.03 | I69: 1.03 | J69: 1.03 | K69: 1.03
B70: Actual size of the local market [units], FY-2 | C70: 1.06 | D70: 1.06 | E70: 1.06 | F70: 1.06 | G70: 1.06 | H70: 1.06 | I70: 1.06 | J70: 1.06 | K70: 1.06
B71: Actual size of the local market [units], FY-3 | C71: 1.1 | D71: 1.1 | E71: 1.1 | F71: 1.1 | G71: 1.1 | H71: 1.1 | I71: 1.1 | J71: 1.1 | K71: 1.1
B72: Actual size of the local market [units], FY1+FY2+FY3
B73: Number of customers- existing business [customers], FY-0 | C73: 103587 | D73: 103587 | E73: 103587 | F73: 103587 | G73: 103587 | H73: 103587 | I73: 103587 | J73: 103587 | K73: 103587
B74: Number of customers- existing business [customers], FY-1
B75: Number of customers- existing business [customers], FY-2
B76: Number of customers- existing business [customers], FY-3
B77: Number of customers- existing business [customers], FY1+FY2+FY3
B78: Average consumption per existing customer [units], FY-0 | C78: 1.2 | D78: 1.2 | E78: 1.2 | F78: 1.2 | G78: 1.2 | H78: 1.2 | I78: 1.2 | J78: 1.2 | K78: 1.2
B79: Average consumption per existing customer [units], FY-1
B80: Average consumption per existing customer [units], FY-2
B81: Average consumption per existing customer [units], FY-3
B82: Average consumption per existing customer [units], FY1+FY2+FY3
B83: Size of the penetrated market - without new project [%], FY-0
B84: Size of the penetrated market - without new project [%], FY-1 | C84: 1.08 | D84: 1.08 | E84: 1.08 | F84: 1.08 | G84: 1.08 | H84: 1.08 | I84: 1.08 | J84: 1.08 | K84: 1.08
B85: Size of the penetrated market - without new project [%], FY-2 | C85: 1.16 | D85: 1.16 | E85: 1.16 | F85: 1.16 | G85: 1.16 | H85: 1.16 | I85: 1.16 | J85: 1.16 | K85: 1.16
B86: Size of the penetrated market - without new project [%], FY-3 | C86: 1.24 | D86: 1.24 | E86: 1.24 | F86: 1.24 | G86: 1.24 | H86: 1.24 | I86: 1.24 | J86: 1.24 | K86: 1.24
B87: Size of the penetrated market - without new project [%], FY1+FY2+FY3
B88: * [units], FY-0 | C88: 124304.4 | D88: 124304.4 | E88: 124304.4 | F88: 124304.4 | G88: 124304.4 | H88: 124304.4 | I88: 124304.4 | J88: 124304.4 | K88: 124304.4
B89: * [units], FY-1 | C89: 134248.752 | D89: 134248.752 | E89: 134248.752 | F89: 134248.752 | G89: 134248.752 | H89: 134248.752 | I89: 134248.752 | J89: 134248.752 | K89: 134248.752
B90: * [units], FY-2 | C90: 144193.104 | D90: 144193.104 | E90: 144193.104 | F90: 144193.104 | G90: 144193.104 | H90: 144193.104 | I90: 144193.104 | J90: 144193.104 | K90: 144193.104
B91: * [units], FY-3 | C91: 154137.456 | D91: 154137.456 | E91: 154137.456 | F91: 154137.456 | G91: 154137.456 | H91: 154137.456 | I91: 154137.456 | J91: 154137.456 | K91: 154137.456
B92: * [units], FY1+FY2+FY3 | C92: 432579.312 | D92: 432579.312 | E92: 432579.312 | F92: 432579.312 | G92: 432579.312 | H92: 432579.312 | I92: 432579.312 | J92: 432579.312 | K92: 432579.312
B93: Projected increase of the penetrated market - with new project [%], FY-0
B94: Projected increase of the penetrated market - with new project [%], FY-1
B95: Projected increase of the penetrated market - with new project [%], FY-2
B96: Projected increase of the penetrated market - with new project [%], FY-3
B97: Projected increase of the penetrated market - with new project [%], FY1+FY2+FY3 | C97: 2.1 | D97: 2.1 | E97: 2.1 | F97: 2.1 | G97: 2.1 | H97: 2.1 | I97: 2.1 | J97: 2.1 | K97: 2.1
B98: Projected structure of the annual sales, new penetr. market [%], FY-0
B99: Projected structure of the annual sales, new penetr. market [%], FY-1 | C99: 0.37 | D99: 0.37 | E99: 0.37 | F99: 0.37 | G99: 0.37 | H99: 0.37 | I99: 0.37 | J99: 0.37 | K99: 0.37
B100: Projected structure of the annual sales, new penetr. market [%], FY-2 | C100: 0.38 | D100: 0.38 | E100: 0.38 | F100: 0.38 | G100: 0.38 | H100: 0.38 | I100: 0.38 | J100: 0.38 | K100: 0.38
B101: Projected structure of the annual sales, new penetr. market [%], FY-3 | C101: 0.4 | D101: 0.4 | E101: 0.4 | F101: 0.4 | G101: 0.4 | H101: 0.4 | I101: 0.4 | J101: 0.4 | K101: 0.4
B102: Projected structure of the annual sales, new penetr. market [%], FY1+FY2+FY3 | C102: 1.15 | D102: 1.15 | E102: 1.15 | F102: 1.15 | G102: 1.15 | H102: 1.15 | I102: 1.15 | J102: 1.15 | K102: 1.15
B103: Projected sales, new brand [units], FY-0
B104: Projected sales, new brand [units], FY-1 | C104: 336114.1254 | D104: 336114.1254 | E104: 336114.1254 | F104: 336114.1254 | G104: 336114.1254 | H104: 336114.1254 | I104: 336114.1254 | J104: 336114.1254 | K104: 336114.1254
B105: Projected sales, new brand [units], FY-2 | C105: 345198.291 | D105: 345198.291 | E105: 345198.291 | F105: 345198.291 | G105: 345198.291 | H105: 345198.291 | I105: 345198.291 | J105: 345198.291 | K105: 345198.291
B106: Projected sales, new brand [units], FY-3 | C106: 363366.6221 | D106: 363366.6221 | E106: 363366.6221 | F106: 363366.6221 | G106: 363366.6221 | H106: 363366.6221 | I106: 363366.6221 | J106: 363366.6221 | K106: 363366.6221
B107: Projected sales, new brand [units], FY1+FY2+FY3 | C107: 908416.5552 | D107: 908416.5552 | E107: 908416.5552 | F107: 908416.5552 | G107: 908416.5552 | H107: 908416.5552 | I107: 908416.5552 | J107: 908416.5552 | K107: 908416.5552
B108: Projected consumption in the existing business, new brand only [%], FY-0
B109: Projected consumption in the existing business, new brand only [%], FY-1 | C109: 0.28 | D109: 0.28 | E109: 0.28 | F109: 0.28 | G109: 0.28 | H109: 0.28 | I109: 0.28 | J109: 0.28 | K109: 0.28
B110: Projected consumption in the existing business, new brand only [%], FY-2 | C110: 0.3 | D110: 0.3 | E110: 0.3 | F110: 0.3 | G110: 0.3 | H110: 0.3 | I110: 0.3 | J110: 0.3 | K110: 0.3
B111: Projected consumption in the existing business, new brand only [%], FY-3 | C111: 0.32 | D111: 0.32 | E111: 0.32 | F111: 0.32 | G111: 0.32 | H111: 0.32 | I111: 0.32 | J111: 0.32 | K111: 0.32
B112: Projected consumption in the existing business, new brand only [%], FY1+FY2+FY3 | C112: 0.3456 | D112: 0.3456 | E112: 0.3456 | F112: 0.3456 | G112: 0.3456 | H112: 0.3456 | I112: 0.3456 | J112: 0.3456 | K112: 0.3456
B113: ** [units], FY-0
B114: ** [units], FY-1 | C114: 94111.95512 | D114: 94111.95512 | E114: 94111.95512 | F114: 94111.95512 | G114: 94111.95512 | H114: 94111.95512 | I114: 94111.95512 | J114: 94111.95512 | K114: 94111.95512
B115: ** [units], FY-2 | C115: 103559.4873 | D115: 103559.4873 | E115: 103559.4873 | F115: 103559.4873 | G115: 103559.4873 | H115: 103559.4873 | I115: 103559.4873 | J115: 103559.4873 | K115: 103559.4873
B116: ** [units], FY-3 | C116: 116277.3191 | D116: 116277.3191 | E116: 116277.3191 | F116: 116277.3191 | G116: 116277.3191 | H116: 116277.3191 | I116: 116277.3191 | J116: 116277.3191 | K116: 116277.3191
B117: ** [units], FY1+FY2+FY3 | C117: 313948.7615 | D117: 313948.7615 | E117: 313948.7615 | F117: 313948.7615 | G117: 313948.7615 | H117: 313948.7615 | I117: 313948.7615 | J117: 313948.7615 | K117: 313948.7615
B118: Projected beer consumption (new brand % of all) [%], FY-0
B119: Projected beer consumption (new brand % of all) [%], FY-1 | C119: 0.7010266667 | D119: 0.7010266667 | E119: 0.7010266667 | F119: 0.7010266667 | G119: 0.7010266667 | H119: 0.7010266667 | I119: 0.7010266667 | J119: 0.7010266667 | K119: 0.7010266667
B120: Projected beer consumption (new brand % of all) [%], FY-2 | C120: 0.7182 | D120: 0.7182 | E120: 0.7182 | F120: 0.7182 | G120: 0.7182 | H120: 0.7182 | I120: 0.7182 | J120: 0.7182 | K120: 0.7182
B121: Projected beer consumption (new brand % of all) [%], FY-3 | C121: 0.7543741935 | D121: 0.7543741935 | E121: 0.7543741935 | F121: 0.7543741935 | G121: 0.7543741935 | H121: 0.7543741935 | I121: 0.7543741935 | J121: 0.7543741935 | K121: 0.7543741935
B122: Projected beer consumption (new brand % of all) [%], FY1+FY2+FY3
B123: Wholesale distribution (new brand) [%], FY-0
B124: Wholesale distribution (new brand) [%], FY-1 | C124: 0.72 | D124: 0.72 | E124: 0.72 | F124: 0.72 | G124: 0.72 | H124: 0.72 | I124: 0.72 | J124: 0.72 | K124: 0.72
B125: Wholesale distribution (new brand) [%], FY-2 | C125: 0.7 | D125: 0.7 | E125: 0.7 | F125: 0.7 | G125: 0.7 | H125: 0.7 | I125: 0.7 | J125: 0.7 | K125: 0.7
B126: Wholesale distribution (new brand) [%], FY-3 | C126: 0.68 | D126: 0.68 | E126: 0.68 | F126: 0.68 | G126: 0.68 | H126: 0.68 | I126: 0.68 | J126: 0.68 | K126: 0.68
B127: Wholesale distribution (new brand) [%], FY1+FY2+FY3 | C127: 0.8044 | D127: 0.8044 | E127: 0.8044 | F127: 0.8044 | G127: 0.8044 | H127: 0.8044 | I127: 0.8044 | J127: 0.8044 | K127: 0.8044
B128: *** [units], FY-0
B129: *** [units], FY-1 | C129: 242002.1703 | D129: 242002.1703 | E129: 242002.1703 | F129: 242002.1703 | G129: 242002.1703 | H129: 242002.1703 | I129: 242002.1703 | J129: 242002.1703 | K129: 242002.1703
B130: *** [units], FY-2 | C130: 241638.8037 | D130: 241638.8037 | E130: 241638.8037 | F130: 241638.8037 | G130: 241638.8037 | H130: 241638.8037 | I130: 241638.8037 | J130: 241638.8037 | K130: 241638.8037
B131: *** [units], FY-3 | C131: 247089.303 | D131: 247089.303 | E131: 247089.303 | F131: 247089.303 | G131: 247089.303 | H131: 247089.303 | I131: 247089.303 | J131: 247089.303 | K131: 247089.303
B132: *** [units], FY1+FY2+FY3 | C132: 730730.277 | D132: 730730.277 | E132: 730730.277 | F132: 730730.277 | G132: 730730.277 | H132: 730730.277 | I132: 730730.277 | J132: 730730.277 | K132: 730730.277
B133: Capacity of the new technology (max units/year) [units], FY-0 | C133: 476160 | D133: 476160 | E133: 476160 | F133: 476160 | G133: 476160 | H133: 476160 | I133: 476160 | J133: 476160 | K133: 476160
B134: Capacity of the new technology (max units/year) [units], FY-1 | C134: 476160 | D134: 476160 | E134: 476160 | F134: 476160 | G134: 476160 | H134: 476160 | I134: 476160 | J134: 476160 | K134: 476160
B135: Capacity of the new technology (max units/year) [units], FY-2 | C135: 476160 | D135: 476160 | E135: 476160 | F135: 476160 | G135: 476160 | H135: 476160 | I135: 476160 | J135: 476160 | K135: 476160
B136: Capacity of the new technology (max units/year) [units], FY-3 | C136: 476160 | D136: 476160 | E136: 476160 | F136: 476160 | G136: 476160 | H136: 476160 | I136: 476160 | J136: 476160 | K136: 476160
B137: Capacity of the new technology (max units/year) [units], FY1+FY2+FY3
A139: 2 | B139: Private Investment | C139: 150000 | D139: 150000 | E139: 150000 | F139: 150000 | G139: 150000 | H139: 150000 | I139: 150000 | J139: 150000 | K139: 150000
A141: 2.1 | B141: Employees
B142: Office Assistants, Budget | C142: 25000 | D142: 25000 | E142: 25000 | F142: 25000 | G142: 25000 | H142: 25000 | I142: 25000 | J142: 15000 | K142: 15000
B143: Office Assistants, Number | C143: 1 | D143: 1 | E143: 1 | F143: 1 | G143: 1 | H143: 1 | I143: 1 | J143: 0.5 | K143: 0.5
B144: Office Assistants, Salary increase FY-2 | C144: 1.11 | D144: 1.11 | E144: 1.11 | F144: 1.11 | G144: 1.11 | H144: 1.11 | I144: 1.11 | J144: 1.05 | K144: 1.05
B145: Office Assistants, FY-3 | C145: 1.2 | D145: 1.2 | E145: 1.2 | F145: 1.2 | G145: 1.2 | H145: 1.2 | I145: 1.2 | J145: 1.05 | K145: 1.05
B146: Salesmen , Budget | C146: 67500 | D146: 67500 | E146: 67500 | F146: 67500 | G146: 67500 | H146: 67500 | I146: 67500 | J146: 80000 | K146: 80000
B147: Salesmen , Number | C147: 1.5 | D147: 1.5 | E147: 1.5 | F147: 1.5 | G147: 1.5 | H147: 1.5 | I147: 1.5 | J147: 2 | K147: 2
B148: Salesmen , Salary increase FY-2 | C148: 1.11 | D148: 1.11 | E148: 1.11 | F148: 1.11 | G148: 1.11 | H148: 1.11 | I148: 1.11 | J148: 1.1 | K148: 1.1
B149: Salesmen , FY-3 | C149: 1.2 | D149: 1.2 | E149: 1.2 | F149: 1.2 | G149: 1.2 | H149: 1.2 | I149: 1.2 | J149: 1.1 | K149: 1.1
B150: Executive Salaries , Budget | C150: 32500 | D150: 32500 | E150: 32500 | F150: 32500 | G150: 32500 | H150: 32500 | I150: 32500 | J150: 15000 | K150: 15000
B151: Executive Salaries , Number | C151: 0.5 | D151: 0.5 | E151: 0.5 | F151: 0.5 | G151: 0.5 | H151: 0.5 | I151: 0.5 | J151: 0.25 | K151: 0.25
B152: Executive Salaries , Salary increase FY-2 | C152: 1.11 | D152: 1.11 | E152: 1.11 | F152: 1.11 | G152: 1.11 | H152: 1.11 | I152: 1.11 | J152: 1.1 | K152: 1.1
B153: Executive Salaries , FY-3 | C153: 1.2 | D153: 1.2 | E153: 1.2 | F153: 1.2 | G153: 1.2 | H153: 1.2 | I153: 1.2 | J153: 1.1 | K153: 1.1
B154: Miscellaneous (Consultants), Budget | C154: 5000 | D154: 5000 | E154: 5000 | F154: 5000 | G154: 5000 | H154: 5000 | I154: 5000 | J154: 5000 | K154: 5000
B155: Miscellaneous (Consultants), Salary increase FY-2 | C155: 1.11 | D155: 1.11 | E155: 1.11 | F155: 1.11 | G155: 1.11 | H155: 1.11 | I155: 1.11 | J155: 1.1 | K155: 1.1
B156: Miscellaneous (Consultants), FY-3 | C156: 1.2 | D156: 1.2 | E156: 1.2 | F156: 1.2 | G156: 1.2 | H156: 1.2 | I156: 1.2 | J156: 1.1 | K156: 1.1
A158: 2.11 | B158: Total Salaries Budget, FY-1 | C158: 130000 | D158: 130000 | E158: 130000 | F158: 130000 | G158: 130000 | H158: 130000 | I158: 130000 | J158: 115000 | K158: 115000
A159: 2.12 | B159: Total Salaries Budget, FY-2 | C159: 144300 | D159: 144300 | E159: 144300 | F159: 144300 | G159: 144300 | H159: 144300 | I159: 144300 | J159: 125750 | K159: 125750
A160: 2.13 | B160: Total Salaries Budget, FY-3 | C160: 173160 | D160: 173160 | E160: 173160 | F160: 173160 | G160: 173160 | H160: 173160 | I160: 173160 | J160: 137537.5 | K160: 137537.5
A162: 2.2 | B162: Range of compensations for critical workers
B163: Critical Salesmen, Min | C163: 26000 | D163: 26000 | E163: 26000 | F163: 26000 | G163: 26000 | H163: 26000 | I163: 26000 | J163: 26000 | K163: 26000
B164: Critical Salesmen, Base | C164: 30000 | D164: 30000 | E164: 30000 | F164: 30000 | G164: 30000 | H164: 30000 | I164: 30000 | J164: 30000 | K164: 30000
B165: Critical Salesmen, Market Research | C165: 28000 | D165: 28000 | E165: 28000 | F165: 28000 | G165: 28000 | H165: 28000 | I165: 28000 | J165: 28000 | K165: 28000
B166: Critical Salesmen, Max | C166: 32000 | D166: 32000 | E166: 32000 | F166: 32000 | G166: 32000 | H166: 32000 | I166: 32000 | J166: 32000 | K166: 32000
B167: Salesmen, Min | C167: 23000 | D167: 23000 | E167: 23000 | F167: 23000 | G167: 23000 | H167: 23000 | I167: 23000 | J167: 23000 | K167: 23000
B168: Salesmen, Base | C168: 24000 | D168: 24000 | E168: 24000 | F168: 24000 | G168: 24000 | H168: 24000 | I168: 24000 | J168: 24000 | K168: 24000
B169: Salesmen, Market Research | C169: 25000 | D169: 25000 | E169: 25000 | F169: 25000 | G169: 25000 | H169: 25000 | I169: 25000 | J169: 25000 | K169: 25000
B170: Salesmen, Max | C170: 27000 | D170: 27000 | E170: 27000 | F170: 27000 | G170: 27000 | H170: 27000 | I170: 27000 | J170: 27000 | K170: 27000
B171: Critical Worker, Min | C171: 25000 | D171: 25000 | E171: 25000 | F171: 25000 | G171: 25000 | H171: 25000 | I171: 25000 | J171: 25000
B172: Critical Worker, Base | C172: 30000 | D172: 30000 | E172: 30000 | F172: 30000 | G172: 30000 | H172: 30000 | I172: 30000 | J172: 30000
B173: Critical Worker, Market Research | C173: 29000 | D173: 29000 | E173: 29000 | F173: 29000 | G173: 29000 | H173: 29000 | I173: 29000 | J173: 29000
B174: Critical Worker, Max | C174: 32000 | D174: 32000 | E174: 32000 | F174: 32000 | G174: 32000 | H174: 32000 | I174: 32000 | J174: 32000
B175: Worker, Min | C175: 15000 | D175: 15000 | E175: 15000 | F175: 15000 | G175: 15000 | H175: 15000 | I175: 15000 | J175: 15000
B176: Worker, Base | C176: 20000 | D176: 20000 | E176: 20000 | F176: 20000 | G176: 20000 | H176: 20000 | I176: 20000 | J176: 20000
B177: Worker, Market Research | C177: 20000 | D177: 20000 | E177: 20000 | F177: 20000 | G177: 20000 | H177: 20000 | I177: 20000 | J177: 20000
B178: Worker, Max | C178: 22000 | D178: 22000 | E178: 22000 | F178: 22000 | G178: 22000 | H178: 22000 | I178: 22000 | J178: 22000
A180: 2.3 | B180: Utilities & Others
B181: Leasing of cars, computers, etc, Payment FY-1 | C181: 8000 | D181: 8000 | E181: 8000 | F181: 8000 | G181: 8000 | H181: 8000 | I181: 8000 | J181: 8000 | K181: 8000
B182: Leasing of cars, computers, etc, Payment increase FY-2 | C182: 1.11 | D182: 1.11 | E182: 1.11 | F182: 1.11 | G182: 1.11 | H182: 1.11 | I182: 1.11 | J182: 1.1 | K182: 1.1
B183: Leasing of cars, computers, etc, FY-3 | C183: 1.2 | D183: 1.2 | E183: 1.2 | F183: 1.2 | G183: 1.2 | H183: 1.2 | I183: 1.2 | J183: 1.2 | K183: 1.2
B184: Office Supply, Payment FY-1 | C184: 4000 | D184: 4000 | E184: 4000 | F184: 4000 | G184: 4000 | H184: 4000 | I184: 4000 | J184: 2000 | K184: 2000
B185: Office Supply, Payment increase FY-2 | C185: 1.11 | D185: 1.11 | E185: 1.11 | F185: 1.11 | G185: 1.11 | H185: 1.11 | I185: 1.11 | J185: 0.8 | K185: 0.8
B186: Office Supply, FY-3 | C186: 1.2 | D186: 1.2 | E186: 1.2 | F186: 1.2 | G186: 1.2 | H186: 1.2 | I186: 1.2 | J186: 0.6 | K186: 0.6
B187: Heat, Light, Phone, Payment FY-1 | C187: 7000 | D187: 7000 | E187: 7000 | F187: 7000 | G187: 7000 | H187: 7000 | I187: 7000 | J187: 7000 | K187: 7000
B188: Heat, Light, Phone, Payment increase FY-2 | C188: 1.11 | D188: 1.11 | E188: 1.11 | F188: 1.11 | G188: 1.11 | H188: 1.11 | I188: 1.11 | J188: 1 | K188: 1
B189: Heat, Light, Phone, FY-3 | C189: 1.2 | D189: 1.2 | E189: 1.2 | F189: 1.2 | G189: 1.2 | H189: 1.2 | I189: 1.2 | J189: 1 | K189: 1
B190: Insurance, Payment FY-1 | C190: 7000 | D190: 7000 | E190: 7000 | F190: 7000 | G190: 7000 | H190: 7000 | I190: 7000 | J190: 7000 | K190: 7000
B191: Insurance, Payment increase FY-2 | C191: 1.11 | D191: 1.11 | E191: 1.11 | F191: 1.11 | G191: 1.11 | H191: 1.11 | I191: 1.11 | J191: 1 | K191: 1
B192: Insurance, FY-3 | C192: 1.2 | D192: 1.2 | E192: 1.2 | F192: 1.2 | G192: 1.2 | H192: 1.2 | I192: 1.2 | J192: 1 | K192: 1
B193: Depreciation, Payment FY-1 | C193: 7500 | D193: 7500 | E193: 7500 | F193: 7500 | G193: 7500 | H193: 7500 | I193: 7500 | J193: 7500 | K193: 7500
B194: Depreciation, Payment increase FY-2 | C194: 1.9 | D194: 1.9 | E194: 1.9 | F194: 1.9 | G194: 1.9 | H194: 1.9 | I194: 1.9 | J194: 1.9 | K194: 1.9
B195: Depreciation, FY-3 | C195: 0.9 | D195: 0.9 | E195: 0.9 | F195: 0.9 | G195: 0.9 | H195: 0.9 | I195: 0.9 | J195: 0.9 | K195: 0.9
A197: 2.31 | B197: Total Utilities Payments, FY-1 | C197: 33500 | D197: 33500 | E197: 33500 | F197: 33500 | G197: 33500 | H197: 33500 | I197: 33500 | J197: 31500 | K197: 31500
A198: 2.32 | B198: Total Utilities Payments, FY-2 | C198: 43110 | D198: 43110 | E198: 43110 | F198: 43110 | G198: 43110 | H198: 43110 | I198: 43110 | J198: 38650 | K198: 38650
A199: 2.33 | B199: Total Utilities Payments, FY-3 | C199: 47457 | D199: 47457 | E199: 47457 | F199: 47457 | G199: 47457 | H199: 47457 | I199: 47457 | J199: 38345 | K199: 38345
A201: 2.4 | B201: Marketing Costs
B202: Local Advertising, Payment FY-1 | C202: 35000 | D202: 10000 | E202: 10000 | F202: 10000 | G202: 10000 | H202: 10000 | I202: 10000 | J202: 35000 | K202: 35000
B203: Local Advertising, Payment increase FY-2 | C203: 1.11 | D203: 1.11 | E203: 1.11 | F203: 1.11 | G203: 1.11 | H203: 1.11 | I203: 1.11 | J203: 1.11 | K203: 1.11
B204: Local Advertising, FY-3 | C204: 1.2 | D204: 1.2 | E204: 1.2 | F204: 1.2 | G204: 1.2 | H204: 1.2 | I204: 1.2 | J204: 1.2 | K204: 1.2
B205: Trade Shows, Payment FY-1 | C205: 3000 | D205: 12000 | E205: 12000 | F205: 12000 | G205: 12000 | H205: 12000 | I205: 12000 | J205: 18000 | K205: 18000
B206: Trade Shows, Payment increase FY-2 | C206: 1.11 | D206: 1.11 | E206: 1.11 | F206: 1.11 | G206: 1.11 | H206: 1.11 | I206: 1.11 | J206: 1.11 | K206: 1.11
B207: Trade Shows, FY-3 | C207: 1.2 | D207: 1.2 | E207: 1.2 | F207: 1.2 | G207: 1.2 | H207: 1.2 | I207: 1.2 | J207: 1.2 | K207: 1.2
B208: social media, Payment FY-1 | F208: 8000 | G208: 8000 | H208: 8000 | I208: 8000 | J208: 10000 | K208: 10000
B209: social media, Payment increase FY-2 | F209: 1.2 | G209: 1.2 | H209: 1.2 | I209: 1.2 | J209: 1 | K209: 1
B210: social media, FY-3 | F210: 1.2 | G210: 1.2 | H210: 1.2 | I210: 1.2 | J210: 1 | K210: 1
B211: online advertising, Payment FY-1 | F211: 5000 | G211: 5000 | H211: 5000 | I211: 5000 | J211: 10000 | K211: 10000
B212: online advertising, Payment increase FY-2 | F212: 0.5 | G212: 0.5 | H212: 0.5 | I212: 0.5 | J212: 0.5 | K212: 0.5
B213: online advertising, FY-3 | F213: 0.5 | G213: 0.5 | H213: 0.5 | I213: 0.5 | J213: 0.5 | K213: 0.5
B214: customer relationship, Payment FY-1 | F214: 3000 | G214: 3000 | H214: 3000 | I214: 3000 | J214: 10000 | K214: 10000
B215: customer relationship, Payment increase FY-2 | F215: 1.2 | G215: 1.2 | H215: 1.2 | I215: 1.2 | J215: 1 | K215: 1
B216: customer relationship, FY-3 | F216: 1.2 | G216: 1.2 | H216: 1.2 | I216: 1.2 | J216: 1 | K216: 1
A218: 2.41 | B218: Total Market Costs, FY-1 | C218: 38000 | D218: 22000 | E218: 22000 | F218: 38000 | G218: 38000 | H218: 38000 | I218: 38000 | J218: 83000 | K218: 83000
A219: 2.42 | B219: Total Market Costs, FY-2 | C219: 42180 | D219: 24420 | E219: 24420 | F219: 40120 | G219: 40120 | H219: 40120 | I219: 40120 | J219: 83830 | K219: 83830
A220: 2.43 | B220: Total Market Costs, FY-3 | C220: 50616 | D220: 29304 | E220: 29304 | F220: 46394 | G220: 46394 | H220: 46394 | I220: 46394 | J220: 93096 | K220: 93096
... 857 more rows

Sheet Monte-Carlo Simulation (hidden)
B2: ="Cycle in Calculation "&MCSCycle -> Cycle in Calculation | C2: ="Required Number of Interactions "&MCSRun -> Required Number of Interactions 100 | G2: ="Current interaction "&MCSInt -> Current interaction 0
A3: 0 | B3: Preset Parameters
B4: Section | C4: Parameters | D4: Constant | E4: Min | F4: Max | G4: mu | H4: sigma | I4: epsilon
G5: 0 | H5: 0.5 | I5: 0.05
C6: Total | D6: #
B7: 1.25 | D7: *
B8: 1.26 | D8: *
B9: 1.31 | C9: Profit | D9: *
B10: 1.41 | D10: *
B11: 1.41 | C11: !Material | G11: 0.055 | H11: 0.082
B12: 1.41 | C12: !Labor | G12: 0.055 | H12: 0.082
B13: 1.41 | C13: !Others | G13: 0.055 | H13: 0.082
B14: 1.24 | D14: *
B15: 1.12 | C15: ** | G15: 0 | H15: 0.35
B16: 1.12 | C16: *** | G16: 0 | H16: 0.35
B17: 1.21 | C17: ! Budget | D17: #
B18: 1.21 | C18: ! Number | D18: #
B19: 1.21 | C19: !Salary | E19: 1 | F19: 1.05
B20: 1.22 | C20: ?FY-1 | D20: #
B21: 1.22 | C21: ?FY-2 | E21: 1 | F21: 1.1
B22: 1.22 | C22: ?FY-3 | E22: 1 | F22: 1.1
B23: 1.23 | C23: ?FY-1 | D23: #
B24: 1.23 | C24: ?FY-2 | E24: 1 | F24: 1.1
B25: 1.23 | C25: ?FY-3 | E25: 1 | F25: 1.1
B26: 1.412 | C26: !Material | G26: 0.055 | H26: 0.082
B27: 1.412 | C27: !Labor | G27: 0.055 | H27: 0.082
B28: 1.412 | C28: !Others | G28: 0.055 | H28: 0.082
B29: 1.413 | C29: !Material | G29: 0.055 | H29: 0.082
B30: 1.413 | C30: !Labor | G30: 0.055 | H30: 0.082
B31: 1.413 | C31: !Others | G31: 0.055 | H31: 0.082
B32: 1.12 | C32: ?FY1+FY2+FY3 | D32: #
A35: 1 | B35: Business Indicators
D36: Initial Parameters | G36: Distribution Parameters | J36: New Parameters
C37: Constant | D37: Expected | E37: Min | F37: Max | G37: mu | H37: sigma | I37: epsilon | J37: Random | K37: New Value
A38: 1.11 | B38: Critical Success Factors
A40: 1.12 | B40: Key Performance Indicators
A42: 1.21 | B42: Employees
A44: 1.211 | B44: Total Salaries Budget, FY-1
A45: 1.212 | B45: Total Salaries Budget, FY-2
A46: 1.213 | B46: Total Salaries Budget, FY-3
A48: 1.22 | B48: Utilities & Others
A50: 1.221 | B50: Total Utilities Payments, FY-1
A51: 1.222 | B51: Total Utilities Payments, FY-2
A52: 1.223 | B52: Total Utilities Payments, FY-3
A54: 1.23 | B54: Marketing Costs
A56: 1.231 | B56: Total Market Costs, FY-1
A57: 1.232 | B57: Total Market Costs, FY-2
A58: 1.233 | B58: Total Market Costs, FY-3
A60: 1.24 | B60: Rent
A62: 1.241 | B62: Total Rent, FY-1
A63: 1.242 | B63: Total Rent, FY-2
A64: 1.243 | B64: Total Rent, FY-3
A66: 1.25 | B66: Debt
A68: 1.251 | B68: Total Payments, FY-1
A69: 1.252 | B69: Total Payments, FY-2
A70: 1.253 | B70: Total Payments, FY-3
A72: 1.26 | B72: Depreciation
B74: Tax Shelter, FY-1
B76: Tax Shelter, FY-2
B78: Tax Shelter, FY-3
A80: 1.31 | B80: Taxes
A83: 1.32 | B83: Fees
A85: 1.321 | B85: Total Fees
A87: 1.41 | B87: Products Name & Description
A89: 1.412 | B89: Products Variable Cost, FY-2
A91: 1.413 | B91: Products Variable Cost, FY-3
A93: 1.51 | B93: Targeted Marked Size
A95: 1.621 | B95: Percent Monthly Demand by Year, FY-1
A97: 1.622 | B97: Percent Monthly Demand by Year, FY-2
A99: 1.623 | B99: Percent Monthly Demand by Year, FY-3
A101: 1.63 | B101: Sales Projections | C101: Produced | D101: Demanded | E101: Excess
A104: 2 | B104: Profit Calculation
B106: Year | D106: FY-1 | E106: FY-2 | F106: FY-3
B107: BR01-PA-01, | C107: Price per unit
C108: Discount
C109: Material | D109: 0 | E109: 0 | F109: 0
C110: Labor
C111: Others
C112: Variable cost
C113: Produced
C114: Sold
C115: Excess
C116: Revenue | D116: =D114*D107+D108*D115 -> 0 | E116: =SUM(D150:O150) -> 0 | F116: =SUM(#REF!) -> 
C117: Expenses | D117: =D113*D112 -> 0 | E117: =SUM(#REF!) ->  | F117: =SUM(#REF!) -> 
C118: Contribution | D118: =D116-D117 -> 0 | E118: =SUM(#REF!) ->  | F118: =SUM(#REF!) -> 
C120: Employees salaries | D120: =$K44 -> 0 | E120: =$K45 -> 0 | F120: =$K46 -> 0
C121: Utilities&Other | D121: =$K50 -> 0 | E121: =$K51 -> 0 | F121: =$K52 -> 0
C122: Marketing Costs | D122: =$K56 -> 0 | E122: =$K57 -> 0 | F122: =$K58 -> 0
C123: Rent | D123: =$K62 -> 0 | E123: =$K63 -> 0 | F123: =$K64 -> 0
C124: Loan Payments | D124: =$K68 -> 0 | E124: =$K69 -> 0 | F124: =$K70 -> 0
C126: Total Fixed Costs | D126: =SUM(D120:D124) -> 0 | E126: =SUM(E120:E124) -> 0 | F126: =SUM(F120:F124) -> 0
C128: Depreciation | D128: =$K74 -> 0 | E128: =$K76 -> 0 | F128: =$K78 -> 0
C129: Profit (Before Taxes) | D129: =SUMIF(DescriptionMCS,"Contribution",FY1MCS)-D126 -> 0 | E129: =SUMIF(DescriptionMCS,"Contribution",FY2MCS)-E126 ->  | F129: =SUMIF(DescriptionMCS,"Contribution",FY3MCS)-F126 -> 
C130: Profit taxes | D130: =K81 -> 0 | E130: =K81 -> 0 | F130: =K81 -> 0
C131: Profit (After Taxes) | D131: =IF(D129>0,D129*(1-D130),D129) -> 0 | E131: =IF(E129>0,IF(D131<0,IF(E129+D131>0,(E129+D131)*(1-E130),E129),E129*(1-E130)),E129) ->  | F131: =IF(F129>0,IF(E131<0,IF(F129+E131>0,(F129+E131)*(1-F130),F129),F129*(1-F130)),F129) ->  | G131: =SUM(D131:F131) -> 
A134: 3 | B134: Key Parameters
B136: Parameter | C136: Value
B137: Cycle in use (at beging)
B138: # Interactions | C138: 100
B139: Current interaction | C139: 0
B140: # Simulations Run | C140: 0
B141: Current Cycle in Use
B143: Histogram Parameters | C143: FY-1 | D143: FY-2 | E143: FY-3 | F143: Total
B144: Min
B145: Max
A148: 3 | B148: Record
H149: Profit FY-1 | K149: Profit FY-2 | N149: Profit FY-3 | Q149: Total Profit
A150: Interaction | B150: Initial Investment | C150: Profit FY-1 | D150: Profit FY-2 | E150: Profit FY-3 | F150: Total Profit | G150: IRR | H150: Interval | I150: Counts | K150: Interval | L150: Counts | N150: Interval | O150: Counts | Q150: Interval | R150: Counts

Sheet Mktg-Mgt
A4: 1 | B4: Key Performance Indicators
G6: FY-0 | H6: FY-1 | I6: FY-2 | J6: FY-3 | K6: FY1+FY2+FY3
A7: KPI 1: | B7: Actual size of the local market | F7: [units] | G7: 7621849 | H7: 1.03 | I7: 1.06 | J7: 1.1
A8: KPI 2: | B8: Number of customers- existing business | F8: [customers] | G8: 103587
A9: KPI 3: | B9: Average consumption per existing customer | F9: [units] | G9: 1.2
A10: KPI 4: | B10: Size of the penetrated market - without new project | F10: [%] | H10: 1.08 | I10: 1.16 | J10: 1.24
B11: * | F11: [units] | G11: 124304.4 | H11: 134248.752 | I11: 144193.104 | J11: 154137.456 | K11: 432579.312
A12: KPI 5: | B12: Projected increase of the penetrated market - with new project | F12: [%] | K12: 2.1
A13: KPI 6: | B13: Projected structure of the annual sales, new penetr. market | F13: [%] | H13: 0.37 | I13: 0.38 | J13: 0.4 | K13: 1.15
B14: Projected sales, new brand | F14: [units] | H14: 336114.1254 | I14: 345198.291 | J14: 363366.6221 | K14: 908416.5552
A15: KPI 7: | B15: Projected consumption in the existing business, new brand only | F15: [%] | H15: 0.28 | I15: 0.3 | J15: 0.32 | K15: 0.3456
B16: ** | F16: [units] | H16: 94111.95512 | I16: 103559.4873 | J16: 116277.3191 | K16: 313948.7615
B17: Projected beer consumption (new brand % of all) | F17: [%] | H17: 0.7010266667 | I17: 0.7182 | J17: 0.7543741935
B18: Wholesale distribution (new brand) | F18: [%] | H18: 0.72 | I18: 0.7 | J18: 0.68 | K18: 0.8044
B19: *** | F19: [units] | H19: 242002.1703 | I19: 241638.8037 | J19: 247089.303 | K19: 730730.277
A20: KPI 8: | B20: Capacity of the new technology (max units/year) | F20: [units] | G20: 476160 | H20: 476160 | I20: 476160 | J20: 476160
A22: 1 | B22: Marketing costs
D24: Payment | E24: Payment increase
D25: FY-1 | E25: FY-2 | F25: FY-3
B26: Local Advertising | D26: 10000 | E26: 1.11 | F26: 1.2
B27: Trade Shows | D27: 12000 | E27: 1.11 | F27: 1.2
B28: social media | D28: 8000 | E28: 1.2 | F28: 1.2
B29: online advertising | D29: 5000 | E29: 0.5 | F29: 0.5
B30: customer relationship | D30: 3000 | E30: 1.2 | F30: 1.2
B32: Total | D32: =SUM(D26:D31) -> 38000 | E32: =SUMPRODUCT(D26:D31,E26:E31) -> 40120 | F32: =SUMPRODUCT(D26:D31,E26:E31,F26:F31) -> 46394
A36: 2 | B36: Product Name & Description
E38: Variable Costs
E39: Material | F39: Labor | G39: Others | H39: Price | I39: Units | J39: Cut off point | K39: Weight | L39: Weight | M39: Height | N39: Diameter
B40: Product ID | C40: Distribution | D40: Name | E40: (per unit) | F40: (per unit) | G40: (per unit) | H40: (per unit) | I40: (Pints) | K40: (lb) | L40: (full) (lb) | M40: (inches) | N40: (inches)
B41: BR01-01 | C41: [retail] | D41: Pilsner | E41: 0.36 | F41: 0.2 | G41: 0.26 | H41: 5 | I41: 1 | J41: 0.8 | K41: 1.05 | L41: 1.3 | M41: 0 | N41: 0
B42: BR01-02 | C42: [retail] | D42: Bavarian Lager | E42: 0.36 | F42: 0.2 | G42: 0.26 | H42: 5 | I42: 1 | J42: 0.8 | K42: 1.05 | L42: 1.3 | M42: 0 | N42: 0
B43: BR01-03 | C43: [retail] | D43: Light Wheat | E43: 0.36 | F43: 0.2 | G43: 0.26 | H43: 5 | I43: 1 | J43: 0.6 | K43: 1.05 | L43: 1.3 | M43: 0 | N43: 0
B44: BR01-04 | C44: [retail] | D44: Red Wheat | E44: 0.36 | F44: 0.2 | G44: 0.26 | H44: 5 | I44: 1 | J44: 0.6 | K44: 1.05 | L44: 1.3 | M44: 0 | N44: 0
B45: BR01-05 | C45: [retail] | D45: Pale Ale | E45: 0.36 | F45: 0.2 | G45: 0.26 | H45: 5 | I45: 1 | J45: 0.6 | K45: 1.05 | L45: 1.3 | M45: 0 | N45: 0
B46: BR01-06 | C46: [retail] | D46: Bock Dark | E46: 0.36 | F46: 0.2 | G46: 0.26 | H46: 1.3 | I46: 1 | J46: 0.8 | K46: 1.05 | L46: 1.3 | M46: 0 | N46: 0
B47: BR01-07 | C47: [wholesale] | D47: Pilsner | E47: 0.36 | F47: 0.2 | G47: 0.26 | H47: 1.3 | I47: 124 | J47: 0.8 | K47: 130.8 | L47: 160.5 | M47: 23,3 | N47: 16
B48: BR01-08 | C48: [wholesale] | D48: Bavarian Lager | E48: 0.36 | F48: 0.2 | G48: 0.26 | H48: 5 | I48: 124 | J48: 0.8 | K48: 130.8 | L48: 160.5 | M48: 23.3 | N48: 16
B49: BR01-09 | C49: [retail] | D49: Special Offer | E49: 0.36 | F49: 0.2 | G49: 0.26 | H49: 2.5 | I49: 1 | J49: 0.6 | K49: 1.05 | L49: 1.3 | M49: 0 | N49: 0
A52: 3 | B52: Targeted Market Size (per product and FY)
E54: FY-1 | I54: FY-2 | M54: FY-3
C55: [retail] | D55: =SUM(D58:D67) -> 1 | E55: =H16 -> 94111.95512 | H55: =SUM(H58:H67) -> 1 | I55: =I16 -> 103559.4873 | L55: =SUM(L58:L67) -> 1 | M55: =J16 -> 116277.3191
C56: [wholesale] | F56: =SUM(F58:F67) -> 1 | G56: =H19 -> 242002.1703 | J56: =SUM(J58:J67) -> 1 | K56: =I19 -> 241638.8037 | N56: =SUM(N58:N67) -> 1 | O56: =J19 -> 247089.303
B57: Product ID | C57: Distribution
B58: =B41 -> BR01-01 | C58: [retail] | D58: 0.2 | E58: =IF(C58="[retail]",VLOOKUP(C58,retail_wholesale,3,FALSE)*D58,"") -> 18822.39102 | G58: =IF(C58="[wholesale]",F58*VLOOKUP(C58,retail_wholesale,5,FALSE),"") ->  | H58: 0.2 | I58: =IF(C58="[retail]",VLOOKUP(C58,retail_wholesale,7,FALSE)*H58,"") -> 20711.89746 | K58: =IF(C58="[wholesale]",VLOOKUP(C58,retail_wholesale,9,FALSE)*J58,"") ->  | L58: 0.2 | M58: =IF(C58="[retail]",VLOOKUP(C58,retail_wholesale,11,FALSE)*L58,"") -> 23255.46381 | O58: =IF(C58="[wholesale]",VLOOKUP(C58,retail_wholesale,13,FALSE)*N58,"") -> 
B59: BR01-02 | C59: [retail] | D59: 0.2 | E59: 18822.39102 | H59: 0.2 | I59: 20711.89746 | K59: =IF(C59="[wholesale]",VLOOKUP(C59,retail_wholesale,9,FALSE)*J59,"") ->  | L59: 0.2 | M59: 23255.46381
B60: BR01-03 | C60: [retail] | D60: 0.14 | E60: 13175.67372 | H60: 0.14 | I60: 14498.32822 | L60: 0.14 | M60: 16278.82467
B61: BR01-04 | C61: [retail] | D61: 0.14 | E61: 13175.67372 | H61: 0.14 | I61: 14498.32822 | L61: 0.14 | M61: 16278.82467
B62: BR01-05 | C62: [retail] | D62: 0.14 | E62: 13175.67372 | H62: 0.14 | I62: 14498.32822 | L62: 0.14 | M62: 16278.82467
B63: BR01-06 | C63: [retail] | D63: 0.18 | E63: 16940.15192 | H63: 0.18 | I63: 18640.70771 | L63: 0.18 | M63: 20929.91743
B64: BR01-07 | C64: [wholesale] | F64: 0.45 | G64: 108900.9766 | J64: 0.48 | K64: 115986.6258 | N64: 0.5 | O64: 123544.6515
B65: BR01-08 | C65: [wholesale] | F65: 0.55 | G65: 133101.1937 | J65: 0.52 | K65: 125652.1779 | N65: 0.5 | O65: 123544.6515
B66: BR01-09 | C66: [retail] | D66: 0 | E66: 0 | H66: 0 | I66: 0 | L66: 0 | M66: 0
A68: 4 | B68: Sales Projections (business unit: next 36 months of operations)
B70: Year/Month | D70: =B41 -> BR01-01 | E70: =IF(B42="","",B42) -> BR01-02 | F70: =IF(B43="","",B43) -> BR01-03 | G70: =IF(B44="","",B44) -> BR01-04 | H70: =IF(B45="","",B45) -> BR01-05 | I70: =IF(B46="","",B46) -> BR01-06 | J70: =IF(B47="","",B47) -> BR01-07 | K70: =IF(B48="","",B48) -> BR01-08 | L70: =IF(B49="","",B49) -> BR01-09
D71: =C41 -> [retail] | E71: =C42 -> [retail] | F71: =C43 -> [retail] | G71: =C44 -> [retail] | H71: =C45 -> [retail] | I71: =C46 -> [retail] | J71: =C47 -> [wholesale] | K71: =C48 -> [wholesale] | L71: =C49 -> [retail]
B72: FY-1 | D72: Percent Monthly Demand by Year
B73: Jan | D73: 0.06 | E73: 0.03 | F73: 0.02 | G73: 0.04 | H73: 0.18 | I73: 0.08 | J73: 0.15 | K73: 0
B74: Feb | D74: 0.09 | E74: 0.05 | F74: 0.02 | G74: 0.07 | H74: 0.18 | I74: 0.1 | J74: 0.18 | K74: 0
B75: Mar | D75: 0.07 | E75: 0.08 | F75: 0.12 | G75: 0.11 | H75: 0.05 | I75: 0.13 | J75: 0.08 | K75: 0
B76: Apr | D76: 0.07 | E76: 0.1 | F76: 0.15 | G76: 0.12 | H76: 0.04 | I76: 0.18 | J76: 0.06 | K76: 0
B77: May | D77: 0.09 | E77: 0.12 | F77: 0.15 | G77: 0.13 | H77: 0.03 | I77: 0.15 | J77: 0.05 | K77: 0.15
B78: Jun | D78: 0.1 | E78: 0.15 | F78: 0.12 | G78: 0.08 | H78: 0.02 | I78: 0.05 | J78: 0.02 | K78: 0.17
B79: Jul | D79: 0.1 | E79: 0.15 | F79: 0.12 | G79: 0.09 | H79: 0.02 | I79: 0.04 | J79: 0.02 | K79: 0.17
B80: Aug | D80: 0.1 | E80: 0.15 | F80: 0.12 | G80: 0.1 | H80: 0.02 | I80: 0.03 | J80: 0.02 | K80: 0.17
B81: Sep | D81: 0.09 | E81: 0.05 | F81: 0.1 | G81: 0.08 | H81: 0.08 | I81: 0.05 | J81: 0.12 | K81: 0.17
B82: Oct | D82: 0.08 | E82: 0.05 | F82: 0.03 | G82: 0.08 | H82: 0.1 | I82: 0.06 | J82: 0.08 | K82: 0.17
B83: Nov | D83: 0.08 | E83: 0.05 | F83: 0.03 | G83: 0.06 | H83: 0.13 | I83: 0.06 | J83: 0.1 | K83: 0
B84: Dec | D84: 0.07 | E84: 0.02 | F84: 0.02 | G84: 0.04 | H84: 0.15 | I84: 0.07 | J84: 0.12 | K84: 0
B85: Tot | D85: =SUM(D73:D84) -> 1 | E85: 1 | F85: 1 | G85: 1 | H85: 1 | I85: 1 | J85: 1 | K85: 1 | L85: 0
D86: Demanded Quantity per Month
B87: Jan | D87: =D99*D73 -> 1129.343461 | E87: 564.6717307 | F87: 263.5134743 | G87: 527.0269487 | H87: 2371.621269 | I87: 1355.212154 | J87: 16335.1465 | K87: 0 | L87: 0
B88: Feb | D88: =D99*D74 -> 1694.015192 | E88: 941.1195512 | F88: 263.5134743 | G88: 922.2971602 | H88: 2371.621269 | I88: 1694.015192 | J88: 19602.17579 | K88: 0 | L88: 0
B89: Mar | D89: =D99*D75 -> 1317.567372 | E89: 1505.791282 | F89: 1581.080846 | G89: 1449.324109 | H89: 658.7836858 | I89: 2202.21975 | J89: 8712.078131 | K89: 0 | L89: 0
B90: Apr | D90: =D99*D76 -> 1317.567372 | E90: 1882.239102 | F90: 1976.351057 | G90: 1581.080846 | H90: 527.0269487 | I90: 3049.227346 | J90: 6534.058598 | K90: 0 | L90: 0
B91: May | D91: =D99*D77 -> 1694.015192 | E91: 2258.686923 | F91: 1976.351057 | G91: 1712.837583 | H91: 395.2702115 | I91: 2541.022788 | J91: 5445.048832 | K91: 19965.17905 | L91: 0
B92: Jun | D92: =D99*D78 -> 1882.239102 | E92: 2823.358654 | F92: 1581.080846 | G92: 1054.053897 | H92: 263.5134743 | I92: 847.0075961 | J92: 2178.019533 | K92: 22627.20292 | L92: 0
B93: Jul | D93: =D99*D79 -> 1882.239102 | E93: 2823.358654 | F93: 1581.080846 | G93: 1185.810634 | H93: 263.5134743 | I93: 677.6060769 | J93: 2178.019533 | K93: 22627.20292 | L93: 0
B94: Aug | D94: =D99*D80 -> 1882.239102 | E94: 2823.358654 | F94: 1581.080846 | G94: 1317.567372 | H94: 263.5134743 | I94: 508.2045576 | J94: 2178.019533 | K94: 22627.20292 | L94: 0
B95: Sep | D95: =D99*D81 -> 1694.015192 | E95: 941.1195512 | F95: 1317.567372 | G95: 1054.053897 | H95: 1054.053897 | I95: 847.0075961 | J95: 13068.1172 | K95: 22627.20292 | L95: 0
B96: Oct | D96: =D99*D82 -> 1505.791282 | E96: 941.1195512 | F96: 395.2702115 | G96: 1054.053897 | H96: 1317.567372 | I96: 1016.409115 | J96: 8712.078131 | K96: 22627.20292 | L96: 0
B97: Nov | D97: =D99*D83 -> 1505.791282 | E97: 941.1195512 | F97: 395.2702115 | G97: 790.540423 | H97: 1712.837583 | I97: 1016.409115 | J97: 10890.09766 | K97: 0 | L97: 0
B98: Dec | D98: =D99*D84 -> 1317.567372 | E98: 376.4478205 | F98: 263.5134743 | G98: 527.0269487 | H98: 1976.351057 | I98: 1185.810634 | J98: 13068.1172 | K98: 0 | L98: 0
B99: Tot | D99: =VLOOKUP(D70,TargetedMSMkt,IF(D71="[retail]",4,6),FALSE) -> 18822.39102 | E99: 18822.39102 | F99: 13175.67372 | G99: 13175.67372 | H99: 13175.67372 | I99: 16940.15192 | J99: 108900.9766 | K99: 133101.1937 | L99: 0
B100: [kegs] | D100: =IF(D71="[wholesale]",D99/capacity,"") ->  | J100: 87.82336826 | K100: 107.3396723
C101: Total | D101: Number of Tanks to Produce and Serve
B102: Jan | C102: =SUM(D102:Z102) ->  | D102: =ProductionFY1m(1,D70,VLOOKUP(D70,ProductsRangeMkt,3,FALSE),D87) -> 
B103: Feb | C103: =SUM(D103:Z103) ->  | D103: =ProductionFY1m(2,D70,VLOOKUP(D70,ProductsRangeMkt,3,FALSE),D88) -> 
B104: Mar | D104: =ProductionFY1m(3,D70,VLOOKUP(D70,ProductsRangeMkt,3,FALSE),D89) -> 
B105: Apr | D105: =ProductionFY1m(4,D70,VLOOKUP(D70,ProductsRangeMkt,3,FALSE),D90) -> 
B106: May | D106: =ProductionFY1m(5,D70,VLOOKUP(D70,ProductsRangeMkt,3,FALSE),D91) -> 
B107: Jun | D107: =ProductionFY1m(6,D70,VLOOKUP(D70,ProductsRangeMkt,3,FALSE),D92) -> 
B108: Jul | D108: =ProductionFY1m(7,D70,VLOOKUP(D70,ProductsRangeMkt,3,FALSE),D93) -> 
B109: Aug | D109: =ProductionFY1m(8,D70,VLOOKUP(D70,ProductsRangeMkt,3,FALSE),D94) -> 
B110: Sep | D110: =ProductionFY1m(9,D70,VLOOKUP(D70,ProductsRangeMkt,3,FALSE),D95) -> 
B111: Oct | D111: =ProductionFY1m(10,D70,VLOOKUP(D70,ProductsRangeMkt,3,FALSE),D96) -> 
B112: Nov | D112: =ProductionFY1m(11,D70,VLOOKUP(D70,ProductsRangeMkt,3,FALSE),D97) -> 
B113: Dec | D113: =ProductionFY1m(12,D70,VLOOKUP(D70,ProductsRangeMkt,3,FALSE),D98) -> 
A114: Total Demand | C114: [units] | D114: =SUM(D87:D98) -> 18822.39102 | E114: 18822.39102 | F114: 13175.67372 | G114: 13175.67372 | H114: 13175.67372 | I114: 16940.15192 | J114: 108900.9766 | K114: 133101.1937 | L114: 0
A115: Total Supply | C115: [units] | D115: =SUM(D102:D113)*capacity -> 
A116: Excess Demand | C116: [units] | D116: =D114-D115 -> 
B117: FY-2 | D117: Percent Monthly Demand by Year
B118: Jan | D118: 0.06 | E118: 0.03 | F118: 0.02 | G118: 0.04 | H118: 0.18 | I118: 0.08 | J118: 0.15 | K118: 0
B119: Feb | D119: 0.09 | E119: 0.05 | F119: 0.02 | G119: 0.07 | H119: 0.18 | I119: 0.1 | J119: 0.18 | K119: 0
B120: Mar | D120: 0.07 | E120: 0.08 | F120: 0.12 | G120: 0.11 | H120: 0.05 | I120: 0.13 | J120: 0.08 | K120: 0
B121: Apr | D121: 0.07 | E121: 0.1 | F121: 0.15 | G121: 0.12 | H121: 0.04 | I121: 0.18 | J121: 0.06 | K121: 0
B122: May | D122: 0.09 | E122: 0.12 | F122: 0.15 | G122: 0.13 | H122: 0.03 | I122: 0.15 | J122: 0.05 | K122: 0.15
B123: Jun | D123: 0.1 | E123: 0.15 | F123: 0.12 | G123: 0.08 | H123: 0.02 | I123: 0.05 | J123: 0.02 | K123: 0.17
B124: Jul | D124: 0.1 | E124: 0.15 | F124: 0.12 | G124: 0.09 | H124: 0.02 | I124: 0.04 | J124: 0.02 | K124: 0.17
B125: Aug | D125: 0.1 | E125: 0.15 | F125: 0.12 | G125: 0.1 | H125: 0.02 | I125: 0.03 | J125: 0.02 | K125: 0.17
B126: Sep | D126: 0.09 | E126: 0.05 | F126: 0.1 | G126: 0.08 | H126: 0.08 | I126: 0.05 | J126: 0.12 | K126: 0.17
B127: Oct | D127: 0.08 | E127: 0.05 | F127: 0.03 | G127: 0.08 | H127: 0.1 | I127: 0.06 | J127: 0.08 | K127: 0.17
B128: Nov | D128: 0.08 | E128: 0.05 | F128: 0.03 | G128: 0.06 | H128: 0.13 | I128: 0.06 | J128: 0.1 | K128: 0
B129: Dec | D129: 0.07 | E129: 0.02 | F129: 0.02 | G129: 0.04 | H129: 0.15 | I129: 0.07 | J129: 0.12 | K129: 0
B130: Tot | D130: =SUM(D118:D129) -> 1 | E130: 1 | F130: 1 | G130: 1 | H130: 1 | I130: 1 | J130: 1 | K130: 1 | L130: 0
D131: Demanded Quantity per Month
B132: Jan | D132: =D118*D144 -> 1242.713848 | E132: 621.3569238 | F132: 289.9665644 | G132: 579.9331288 | H132: 2609.69908 | I132: 1491.256617 | J132: 17397.99387 | K132: 0 | L132: 0
B133: Feb | D133: =D119*D144 -> 1864.070771 | E133: 1035.594873 | F133: 289.9665644 | G133: 1014.882975 | H133: 2609.69908 | I133: 1864.070771 | J133: 20877.59264 | K133: 0 | L133: 0
B134: Mar | D134: =D120*D144 -> 1449.832822 | E134: 1656.951797 | F134: 1739.799387 | G134: 1594.816104 | H134: 724.916411 | I134: 2423.292003 | J134: 9278.930061 | K134: 0 | L134: 0
B135: Apr | D135: =D121*D144 -> 1449.832822 | E135: 2071.189746 | F135: 2174.749233 | G135: 1739.799387 | H135: 579.9331288 | I135: 3355.327388 | J135: 6959.197546 | K135: 0 | L135: 0
B136: May | D136: =D122*D144 -> 1864.070771 | E136: 2485.427695 | F136: 2174.749233 | G136: 1884.782669 | H136: 434.9498466 | I136: 2796.106157 | J136: 5799.331288 | K136: 18847.82669 | L136: 0
B137: Jun | D137: =D123*D144 -> 2071.189746 | E137: 3106.784619 | F137: 1739.799387 | G137: 1159.866258 | H137: 289.9665644 | I137: 932.0353856 | J137: 2319.732515 | K137: 21360.87025 | L137: 0
B138: Jul | D138: =D124*D144 -> 2071.189746 | E138: 3106.784619 | F138: 1739.799387 | G138: 1304.84954 | H138: 289.9665644 | I138: 745.6283085 | J138: 2319.732515 | K138: 21360.87025 | L138: 0
B139: Aug | D139: =D125*D144 -> 2071.189746 | E139: 3106.784619 | F139: 1739.799387 | G139: 1449.832822 | H139: 289.9665644 | I139: 559.2212314 | J139: 2319.732515 | K139: 21360.87025 | L139: 0
B140: Sep | D140: =D126*D144 -> 1864.070771 | E140: 1035.594873 | F140: 1449.832822 | G140: 1159.866258 | H140: 1159.866258 | I140: 932.0353856 | J140: 13918.39509 | K140: 21360.87025 | L140: 0
B141: Oct | D141: =D127*D144 -> 1656.951797 | E141: 1035.594873 | F141: 434.9498466 | G141: 1159.866258 | H141: 1449.832822 | I141: 1118.442463 | J141: 9278.930061 | K141: 21360.87025 | L141: 0
B142: Nov | D142: =D128*D144 -> 1656.951797 | E142: 1035.594873 | F142: 434.9498466 | G142: 869.8996933 | H142: 1884.782669 | I142: 1118.442463 | J142: 11598.66258 | K142: 0 | L142: 0
B143: Dec | D143: =D129*D144 -> 1449.832822 | E143: 414.2379492 | F143: 289.9665644 | G143: 579.9331288 | H143: 2174.749233 | I143: 1304.84954 | J143: 13918.39509 | K143: 0 | L143: 0
B144: Tot | D144: =VLOOKUP(D70,TargetedMSMkt,IF(D71="[retail]",8,10),FALSE) -> 20711.89746 | E144: 20711.89746 | F144: 14498.32822 | G144: 14498.32822 | H144: 14498.32822 | I144: 18640.70771 | J144: 115986.6258 | K144: 125652.1779 | L144: 0
B145: [kegs] | D145: =IF(D71="[wholesale]",D144/capacity,"") ->  | J145: 93.53760143 | K145: 101.3324015
C146: Total | D146: Number of Tanks to Produce and Serve
B147: Jan | C147: =SUM(D147:Z147) ->  | D147: =ProductionFY2m(1,D70,VLOOKUP(D70,ProductsRangeMkt,3,FALSE),D132) -> 
B148: Feb | D148: =ProductionFY2m(2,D70,VLOOKUP(D70,ProductsRangeMkt,3,FALSE),D133) -> 
B149: Mar | D149: =ProductionFY2m(3,D70,VLOOKUP(D70,ProductsRangeMkt,3,FALSE),D134) -> 
B150: Apr | D150: =ProductionFY2m(4,D70,VLOOKUP(D70,ProductsRangeMkt,3,FALSE),D135) -> 
B151: May | D151: =ProductionFY2m(5,D70,VLOOKUP(D70,ProductsRangeMkt,3,FALSE),D136) -> 
B152: Jun | D152: =ProductionFY2m(6,D70,VLOOKUP(D70,ProductsRangeMkt,3,FALSE),D137) -> 
B153: Jul | D153: =ProductionFY2m(7,D70,VLOOKUP(D70,ProductsRangeMkt,3,FALSE),D138) -> 
B154: Aug | D154: =ProductionFY2m(8,D70,VLOOKUP(D70,ProductsRangeMkt,3,FALSE),D139) -> 
B155: Sep | D155: =ProductionFY2m(9,D70,VLOOKUP(D70,ProductsRangeMkt,3,FALSE),D140) -> 
B156: Oct | D156: =ProductionFY2m(10,D70,VLOOKUP(D70,ProductsRangeMkt,3,FALSE),D141) -> 
B157: Nov | D157: =ProductionFY2m(11,D70,VLOOKUP(D70,ProductsRangeMkt,3,FALSE),D142) -> 
B158: Dec | D158: =ProductionFY2m(12,D70,VLOOKUP(D70,ProductsRangeMkt,3,FALSE),D143) -> 
A159: Total Demand | C159: [units] | D159: =SUM(D132:D143) -> 20711.89746 | E159: 20711.89746 | F159: 14498.32822 | G159: 14498.32822 | H159: 14498.32822 | I159: 18640.70771 | J159: 115986.6258 | K159: 125652.1779 | L159: 0
A160: Total Supply | C160: [units] | D160: =SUM(D147:D158)*capacity -> 
A161: Excess Demand | C161: [units] | D161: =D159-D160 -> 
B162: FY-3 | D162: Percent Monthly Demand by Year
B163: Jan | D163: 0.06 | E163: 0.03 | F163: 0.02 | G163: 0.04 | H163: 0.18 | I163: 0.08 | J163: 0.15 | K163: 0
B164: Feb | D164: 0.09 | E164: 0.05 | F164: 0.02 | G164: 0.07 | H164: 0.18 | I164: 0.1 | J164: 0.18 | K164: 0
B165: Mar | D165: 0.07 | E165: 0.08 | F165: 0.12 | G165: 0.11 | H165: 0.05 | I165: 0.13 | J165: 0.08 | K165: 0
B166: Apr | D166: 0.07 | E166: 0.1 | F166: 0.15 | G166: 0.12 | H166: 0.04 | I166: 0.18 | J166: 0.06 | K166: 0
B167: May | D167: 0.09 | E167: 0.12 | F167: 0.15 | G167: 0.13 | H167: 0.03 | I167: 0.15 | J167: 0.05 | K167: 0.15
B168: Jun | D168: 0.1 | E168: 0.15 | F168: 0.12 | G168: 0.08 | H168: 0.02 | I168: 0.05 | J168: 0.02 | K168: 0.17
B169: Jul | D169: 0.1 | E169: 0.15 | F169: 0.12 | G169: 0.09 | H169: 0.02 | I169: 0.04 | J169: 0.02 | K169: 0.17
B170: Aug | D170: 0.1 | E170: 0.15 | F170: 0.12 | G170: 0.1 | H170: 0.02 | I170: 0.03 | J170: 0.02 | K170: 0.17
B171: Sep | D171: 0.09 | E171: 0.05 | F171: 0.1 | G171: 0.08 | H171: 0.08 | I171: 0.05 | J171: 0.12 | K171: 0.17
B172: Oct | D172: 0.08 | E172: 0.05 | F172: 0.03 | G172: 0.08 | H172: 0.1 | I172: 0.06 | J172: 0.08 | K172: 0.17
B173: Nov | D173: 0.08 | E173: 0.05 | F173: 0.03 | G173: 0.06 | H173: 0.13 | I173: 0.06 | J173: 0.1 | K173: 0
B174: Dec | D174: 0.07 | E174: 0.02 | F174: 0.02 | G174: 0.04 | H174: 0.15 | I174: 0.07 | J174: 0.12 | K174: 0
B175: Tot | D175: =SUM(D163:D174) -> 1 | E175: 1 | F175: 1 | G175: 1 | H175: 1 | I175: 1 | J175: 1 | K175: 1 | L175: 0
D176: Demanded Quantity per Month
B177: Jan | D177: =D189*D163 -> 1395.327829 | E177: 697.6639144 | F177: 325.5764934 | G177: 651.1529868 | H177: 2930.18844 | I177: 1674.393395 | J177: 18531.69773 | K177: 0 | L177: 0
B178: Feb | D178: =D189*D164 -> 2092.991743 | E178: 1162.773191 | F178: 325.5764934 | G178: 1139.517727 | H178: 2930.18844 | I178: 2092.991743 | J178: 22238.03727 | K178: 0 | L178: 0
B179: Mar | D179: =D189*D165 -> 1627.882467 | E179: 1860.437105 | F179: 1953.45896 | G179: 1790.670714 | H179: 813.9412335 | I179: 2720.889266 | J179: 9883.572121 | K179: 0 | L179: 0
B180: Apr | D180: =D189*D166 -> 1627.882467 | E180: 2325.546381 | F180: 2441.8237 | G180: 1953.45896 | H180: 651.1529868 | I180: 3767.385138 | J180: 7412.67909 | K180: 0 | L180: 0
B181: May | D181: =D189*D167 -> 2092.991743 | E181: 2790.655658 | F181: 2441.8237 | G181: 2116.247207 | H181: 488.3647401 | I181: 3139.487615 | J181: 6177.232575 | K181: 18531.69773 | L181: 0
B182: Jun | D182: =D189*D168 -> 2325.546381 | E182: 3488.319572 | F182: 1953.45896 | G182: 1302.305974 | H182: 325.5764934 | I182: 1046.495872 | J182: 2470.89303 | K182: 21002.59076 | L182: 0
B183: Jul | D183: =D189*D169 -> 2325.546381 | E183: 3488.319572 | F183: 1953.45896 | G183: 1465.09422 | H183: 325.5764934 | I183: 837.1966973 | J183: 2470.89303 | K183: 21002.59076 | L183: 0
B184: Aug | D184: =D189*D170 -> 2325.546381 | E184: 3488.319572 | F184: 1953.45896 | G184: 1627.882467 | H184: 325.5764934 | I184: 627.897523 | J184: 2470.89303 | K184: 21002.59076 | L184: 0
B185: Sep | D185: =D189*D171 -> 2092.991743 | E185: 1162.773191 | F185: 1627.882467 | G185: 1302.305974 | H185: 1302.305974 | I185: 1046.495872 | J185: 14825.35818 | K185: 21002.59076 | L185: 0
B186: Oct | D186: =D189*D172 -> 1860.437105 | E186: 1162.773191 | F186: 488.3647401 | G186: 1302.305974 | H186: 1627.882467 | I186: 1255.795046 | J186: 9883.572121 | K186: 21002.59076 | L186: 0
B187: Nov | D187: =D189*D173 -> 1860.437105 | E187: 1162.773191 | F187: 488.3647401 | G187: 976.7294802 | H187: 2116.247207 | I187: 1255.795046 | J187: 12354.46515 | K187: 0 | L187: 0
B188: Dec | D188: =D189*D174 -> 1627.882467 | E188: 465.1092763 | F188: 325.5764934 | G188: 651.1529868 | H188: 2441.8237 | I188: 1465.09422 | J188: 14825.35818 | K188: 0 | L188: 0
B189: Tot | D189: =VLOOKUP(D70,TargetedMSMkt,IF(D71="[retail]",12,14),FALSE) -> 23255.46381 | E189: 23255.46381 | F189: 16278.82467 | G189: 16278.82467 | H189: 16278.82467 | I189: 20929.91743 | J189: 123544.6515 | K189: 123544.6515 | L189: 0
B190: [kegs] | D190: =IF(D71="[wholesale]",D189/capacity,"") ->  | J190: 99.63278347 | K190: 99.63278347
C191: Total | D191: Number of Tanks to Produce and Serve
B192: Jan | C192: =SUM(D192:Z192) ->  | D192: =ProductionFY3m(1,D70,VLOOKUP(D70,ProductsRangeMkt,3,FALSE),D177) -> 
B193: Feb | D193: =ProductionFY3m(2,D70,VLOOKUP(D70,ProductsRangeMkt,3,FALSE),D178) -> 
B194: Mar | D194: =ProductionFY3m(3,D70,VLOOKUP(D70,ProductsRangeMkt,3,FALSE),D179) -> 
B195: Apr | D195: =ProductionFY3m(4,D70,VLOOKUP(D70,ProductsRangeMkt,3,FALSE),D180) -> 
B196: May | D196: =ProductionFY3m(5,D70,VLOOKUP(D70,ProductsRangeMkt,3,FALSE),D181) -> 
B197: Jun | D197: =ProductionFY3m(6,D70,VLOOKUP(D70,ProductsRangeMkt,3,FALSE),D182) -> 
B198: Jul | D198: =ProductionFY3m(7,D70,VLOOKUP(D70,ProductsRangeMkt,3,FALSE),D183) -> 
B199: Aug | D199: =ProductionFY3m(8,D70,VLOOKUP(D70,ProductsRangeMkt,3,FALSE),D184) -> 
B200: Sep | D200: =ProductionFY3m(9,D70,VLOOKUP(D70,ProductsRangeMkt,3,FALSE),D185) -> 
B201: Oct | D201: =ProductionFY3m(10,D70,VLOOKUP(D70,ProductsRangeMkt,3,FALSE),D186) -> 
B202: Nov | D202: =ProductionFY3m(11,D70,VLOOKUP(D70,ProductsRangeMkt,3,FALSE),D187) -> 
B203: Dec | D203: =ProductionFY3m(12,D70,VLOOKUP(D70,ProductsRangeMkt,3,FALSE),D188) -> 
A204: Total Demand | C204: [units] | D204: =SUM(D177:D188) -> 23255.46381 | E204: 23255.46381 | F204: 16278.82467 | G204: 16278.82467 | H204: 16278.82467 | I204: 20929.91743 | J204: 123544.6515 | K204: 123544.6515 | L204: 0
A205: Total Supply | C205: [units] | D205: =SUM(D192:D203)*capacity -> 
A206: Excess Demand | C206: [units] | D206: =D204-D205 -> 
D208: =IF(B41="","",B41) -> BR01-01 | E208: =IF(B42="","",B42) -> BR01-02 | F208: =IF(B43="","",B43) -> BR01-03 | G208: =IF(B44="","",B44) -> BR01-04 | H208: =IF(B45="","",B45) -> BR01-05 | I208: =IF(B46="","",B46) -> BR01-06 | J208: =IF(B47="","",B47) -> BR01-07 | K208: =IF(B48="","",B48) -> BR01-08 | L208: =IF(B49="","",B49) -> BR01-09
D209: =C41 -> [retail] | E209: =C42 -> [retail] | F209: =C43 -> [retail] | G209: =C44 -> [retail] | H209: =C45 -> [retail] | I209: =C46 -> [retail] | J209: =C47 -> [wholesale] | K209: =C48 -> [wholesale] | L209: =C49 -> [retail]
B210: FY-1 | C210: Jan | D210: =IF(VLOOKUP(D208,ProductsRangeMkt,3,FALSE)="Special Offer",SpecialOfferm(D208,1,"FY-1"),MIN(D87,D102*capacity)) ->  | E210: =IF(VLOOKUP(E208,ProductsRangeMkt,3,FALSE)="Special Offer",SpecialOfferm(E208,1,"FY-1"),MIN(E87,E102*capacity)) ->  | F210: =IF(VLOOKUP(F208,ProductsRangeMkt,3,FALSE)="Special Offer",SpecialOfferm(F208,1,"FY-1"),MIN(F87,F102*capacity)) ->  | G210: =IF(VLOOKUP(G208,ProductsRangeMkt,3,FALSE)="Special Offer",SpecialOfferm(G208,1,"FY-1"),MIN(G87,G102*capacity)) ->  | H210: =IF(VLOOKUP(H208,ProductsRangeMkt,3,FALSE)="Special Offer",SpecialOfferm(H208,1,"FY-1"),MIN(H87,H102*capacity)) ->  | I210: =IF(VLOOKUP(I208,ProductsRangeMkt,3,FALSE)="Special Offer",SpecialOfferm(I208,1,"FY-1"),MIN(I87,I102*capacity)) ->  | J210: =IF(VLOOKUP(J208,ProductsRangeMkt,3,FALSE)="Special Offer",SpecialOfferm(J208,1,"FY-1"),MIN(J87,J102*capacity)) ->  | K210: =IF(VLOOKUP(K208,ProductsRangeMkt,3,FALSE)="Special Offer",SpecialOfferm(K208,1,"FY-1"),MIN(K87,K102*capacity)) ->  | L210: =IF(VLOOKUP(L208,ProductsRangeMkt,3,FALSE)="Special Offer",SpecialOfferm(L208,1,"FY-1"),MIN(L87,L102*capacity)) -> 
B211: FY-1 | C211: Feb | D211: =IF(VLOOKUP(D208,ProductsRangeMkt,3,FALSE)="Special Offer",SpecialOfferm(D208,7,"FY-1"),MIN(D88,D103*capacity)) ->  | E211: =IF(VLOOKUP(E208,ProductsRangeMkt,3,FALSE)="Special Offer",SpecialOfferm(E208,7,"FY-1"),MIN(E88,E103*capacity)) ->  | F211: =IF(VLOOKUP(F208,ProductsRangeMkt,3,FALSE)="Special Offer",SpecialOfferm(F208,7,"FY-1"),MIN(F88,F103*capacity)) ->  | G211: =IF(VLOOKUP(G208,ProductsRangeMkt,3,FALSE)="Special Offer",SpecialOfferm(G208,7,"FY-1"),MIN(G88,G103*capacity)) ->  | H211: =IF(VLOOKUP(H208,ProductsRangeMkt,3,FALSE)="Special Offer",SpecialOfferm(H208,7,"FY-1"),MIN(H88,H103*capacity)) ->  | I211: =IF(VLOOKUP(I208,ProductsRangeMkt,3,FALSE)="Special Offer",SpecialOfferm(I208,7,"FY-1"),MIN(I88,I103*capacity)) ->  | J211: =IF(VLOOKUP(J208,ProductsRangeMkt,3,FALSE)="Special Offer",SpecialOfferm(J208,7,"FY-1"),MIN(J88,J103*capacity)) ->  | K211: =IF(VLOOKUP(K208,ProductsRangeMkt,3,FALSE)="Special Offer",SpecialOfferm(K208,7,"FY-1"),MIN(K88,K103*capacity)) ->  | L211: =IF(VLOOKUP(L208,ProductsRangeMkt,3,FALSE)="Special Offer",SpecialOfferm(L208,7,"FY-1"),MIN(L88,L103*capacity)) -> 
B212: FY-1 | C212: Mar | D212: =IF(VLOOKUP(D208,ProductsRangeMkt,3,FALSE)="Special Offer",SpecialOfferm(D208,3,"FY-1"),MIN(D89,D104*capacity)) ->  | E212: =IF(VLOOKUP(E208,ProductsRangeMkt,3,FALSE)="Special Offer",SpecialOfferm(E208,3,"FY-1"),MIN(E89,E104*capacity)) ->  | F212: =IF(VLOOKUP(F208,ProductsRangeMkt,3,FALSE)="Special Offer",SpecialOfferm(F208,3,"FY-1"),MIN(F89,F104*capacity)) ->  | G212: =IF(VLOOKUP(G208,ProductsRangeMkt,3,FALSE)="Special Offer",SpecialOfferm(G208,3,"FY-1"),MIN(G89,G104*capacity)) ->  | H212: =IF(VLOOKUP(H208,ProductsRangeMkt,3,FALSE)="Special Offer",SpecialOfferm(H208,3,"FY-1"),MIN(H89,H104*capacity)) ->  | I212: =IF(VLOOKUP(I208,ProductsRangeMkt,3,FALSE)="Special Offer",SpecialOfferm(I208,3,"FY-1"),MIN(I89,I104*capacity)) ->  | J212: =IF(VLOOKUP(J208,ProductsRangeMkt,3,FALSE)="Special Offer",SpecialOfferm(J208,3,"FY-1"),MIN(J89,J104*capacity)) ->  | K212: =IF(VLOOKUP(K208,ProductsRangeMkt,3,FALSE)="Special Offer",SpecialOfferm(K208,3,"FY-1"),MIN(K89,K104*capacity)) ->  | L212: =IF(VLOOKUP(L208,ProductsRangeMkt,3,FALSE)="Special Offer",SpecialOfferm(L208,3,"FY-1"),MIN(L89,L104*capacity)) -> 
B213: FY-1 | C213: Apr | D213: =IF(VLOOKUP(D208,ProductsRangeMkt,3,FALSE)="Special Offer",SpecialOfferm(D208,4,"FY-1"),MIN(D90,D105*capacity)) ->  | E213: =IF(VLOOKUP(E208,ProductsRangeMkt,3,FALSE)="Special Offer",SpecialOfferm(E208,4,"FY-1"),MIN(E90,E105*capacity)) ->  | F213: =IF(VLOOKUP(F208,ProductsRangeMkt,3,FALSE)="Special Offer",SpecialOfferm(F208,4,"FY-1"),MIN(F90,F105*capacity)) ->  | G213: =IF(VLOOKUP(G208,ProductsRangeMkt,3,FALSE)="Special Offer",SpecialOfferm(G208,4,"FY-1"),MIN(G90,G105*capacity)) ->  | H213: =IF(VLOOKUP(H208,ProductsRangeMkt,3,FALSE)="Special Offer",SpecialOfferm(H208,4,"FY-1"),MIN(H90,H105*capacity)) ->  | I213: =IF(VLOOKUP(I208,ProductsRangeMkt,3,FALSE)="Special Offer",SpecialOfferm(I208,4,"FY-1"),MIN(I90,I105*capacity)) ->  | J213: =IF(VLOOKUP(J208,ProductsRangeMkt,3,FALSE)="Special Offer",SpecialOfferm(J208,4,"FY-1"),MIN(J90,J105*capacity)) ->  | K213: =IF(VLOOKUP(K208,ProductsRangeMkt,3,FALSE)="Special Offer",SpecialOfferm(K208,4,"FY-1"),MIN(K90,K105*capacity)) ->  | L213: =IF(VLOOKUP(L208,ProductsRangeMkt,3,FALSE)="Special Offer",SpecialOfferm(L208,4,"FY-1"),MIN(L90,L105*capacity)) -> 
B214: FY-1 | C214: May | D214: =IF(VLOOKUP(D208,ProductsRangeMkt,3,FALSE)="Special Offer",SpecialOfferm(D208,5,"FY-1"),MIN(D91,D106*capacity)) ->  | E214: =IF(VLOOKUP(E208,ProductsRangeMkt,3,FALSE)="Special Offer",SpecialOfferm(E208,5,"FY-1"),MIN(E91,E106*capacity)) ->  | F214: =IF(VLOOKUP(F208,ProductsRangeMkt,3,FALSE)="Special Offer",SpecialOfferm(F208,5,"FY-1"),MIN(F91,F106*capacity)) ->  | G214: =IF(VLOOKUP(G208,ProductsRangeMkt,3,FALSE)="Special Offer",SpecialOfferm(G208,5,"FY-1"),MIN(G91,G106*capacity)) ->  | H214: =IF(VLOOKUP(H208,ProductsRangeMkt,3,FALSE)="Special Offer",SpecialOfferm(H208,5,"FY-1"),MIN(H91,H106*capacity)) ->  | I214: =IF(VLOOKUP(I208,ProductsRangeMkt,3,FALSE)="Special Offer",SpecialOfferm(I208,5,"FY-1"),MIN(I91,I106*capacity)) ->  | J214: =IF(VLOOKUP(J208,ProductsRangeMkt,3,FALSE)="Special Offer",SpecialOfferm(J208,5,"FY-1"),MIN(J91,J106*capacity)) ->  | K214: =IF(VLOOKUP(K208,ProductsRangeMkt,3,FALSE)="Special Offer",SpecialOfferm(K208,5,"FY-1"),MIN(K91,K106*capacity)) ->  | L214: =IF(VLOOKUP(L208,ProductsRangeMkt,3,FALSE)="Special Offer",SpecialOfferm(L208,5,"FY-1"),MIN(L91,L106*capacity)) -> 
B215: FY-1 | C215: Jun | D215: =IF(VLOOKUP(D208,ProductsRangeMkt,3,FALSE)="Special Offer",SpecialOfferm(D208,6,"FY-1"),MIN(D92,D107*capacity)) ->  | E215: =IF(VLOOKUP(E208,ProductsRangeMkt,3,FALSE)="Special Offer",SpecialOfferm(E208,6,"FY-1"),MIN(E92,E107*capacity)) ->  | F215: =IF(VLOOKUP(F208,ProductsRangeMkt,3,FALSE)="Special Offer",SpecialOfferm(F208,6,"FY-1"),MIN(F92,F107*capacity)) ->  | G215: =IF(VLOOKUP(G208,ProductsRangeMkt,3,FALSE)="Special Offer",SpecialOfferm(G208,6,"FY-1"),MIN(G92,G107*capacity)) ->  | H215: =IF(VLOOKUP(H208,ProductsRangeMkt,3,FALSE)="Special Offer",SpecialOfferm(H208,6,"FY-1"),MIN(H92,H107*capacity)) ->  | I215: =IF(VLOOKUP(I208,ProductsRangeMkt,3,FALSE)="Special Offer",SpecialOfferm(I208,6,"FY-1"),MIN(I92,I107*capacity)) ->  | J215: =IF(VLOOKUP(J208,ProductsRangeMkt,3,FALSE)="Special Offer",SpecialOfferm(J208,6,"FY-1"),MIN(J92,J107*capacity)) ->  | K215: =IF(VLOOKUP(K208,ProductsRangeMkt,3,FALSE)="Special Offer",SpecialOfferm(K208,6,"FY-1"),MIN(K92,K107*capacity)) ->  | L215: =IF(VLOOKUP(L208,ProductsRangeMkt,3,FALSE)="Special Offer",SpecialOfferm(L208,6,"FY-1"),MIN(L92,L107*capacity)) -> 
B216: FY-1 | C216: Jul | D216: =IF(VLOOKUP(D208,ProductsRangeMkt,3,FALSE)="Special Offer",SpecialOfferm(D208,7,"FY-1"),MIN(D93,D108*capacity)) ->  | E216: =IF(VLOOKUP(E208,ProductsRangeMkt,3,FALSE)="Special Offer",SpecialOfferm(E208,7,"FY-1"),MIN(E93,E108*capacity)) ->  | F216: =IF(VLOOKUP(F208,ProductsRangeMkt,3,FALSE)="Special Offer",SpecialOfferm(F208,7,"FY-1"),MIN(F93,F108*capacity)) ->  | G216: =IF(VLOOKUP(G208,ProductsRangeMkt,3,FALSE)="Special Offer",SpecialOfferm(G208,7,"FY-1"),MIN(G93,G108*capacity)) ->  | H216: =IF(VLOOKUP(H208,ProductsRangeMkt,3,FALSE)="Special Offer",SpecialOfferm(H208,7,"FY-1"),MIN(H93,H108*capacity)) ->  | I216: =IF(VLOOKUP(I208,ProductsRangeMkt,3,FALSE)="Special Offer",SpecialOfferm(I208,7,"FY-1"),MIN(I93,I108*capacity)) ->  | J216: =IF(VLOOKUP(J208,ProductsRangeMkt,3,FALSE)="Special Offer",SpecialOfferm(J208,7,"FY-1"),MIN(J93,J108*capacity)) ->  | K216: =IF(VLOOKUP(K208,ProductsRangeMkt,3,FALSE)="Special Offer",SpecialOfferm(K208,7,"FY-1"),MIN(K93,K108*capacity)) ->  | L216: =IF(VLOOKUP(L208,ProductsRangeMkt,3,FALSE)="Special Offer",SpecialOfferm(L208,7,"FY-1"),MIN(L93,L108*capacity)) -> 
B217: FY-1 | C217: Aug | D217: =IF(VLOOKUP(D208,ProductsRangeMkt,3,FALSE)="Special Offer",SpecialOfferm(D208,8,"FY-1"),MIN(D94,D109*capacity)) ->  | E217: =IF(VLOOKUP(E208,ProductsRangeMkt,3,FALSE)="Special Offer",SpecialOfferm(E208,8,"FY-1"),MIN(E94,E109*capacity)) ->  | F217: =IF(VLOOKUP(F208,ProductsRangeMkt,3,FALSE)="Special Offer",SpecialOfferm(F208,8,"FY-1"),MIN(F94,F109*capacity)) ->  | G217: =IF(VLOOKUP(G208,ProductsRangeMkt,3,FALSE)="Special Offer",SpecialOfferm(G208,8,"FY-1"),MIN(G94,G109*capacity)) ->  | H217: =IF(VLOOKUP(H208,ProductsRangeMkt,3,FALSE)="Special Offer",SpecialOfferm(H208,8,"FY-1"),MIN(H94,H109*capacity)) ->  | I217: =IF(VLOOKUP(I208,ProductsRangeMkt,3,FALSE)="Special Offer",SpecialOfferm(I208,8,"FY-1"),MIN(I94,I109*capacity)) ->  | J217: =IF(VLOOKUP(J208,ProductsRangeMkt,3,FALSE)="Special Offer",SpecialOfferm(J208,8,"FY-1"),MIN(J94,J109*capacity)) ->  | K217: =IF(VLOOKUP(K208,ProductsRangeMkt,3,FALSE)="Special Offer",SpecialOfferm(K208,8,"FY-1"),MIN(K94,K109*capacity)) ->  | L217: =IF(VLOOKUP(L208,ProductsRangeMkt,3,FALSE)="Special Offer",SpecialOfferm(L208,8,"FY-1"),MIN(L94,L109*capacity)) -> 
... 28 more rows

Sheet Inn-Mgt
A6: 1 | B6: Product Name & Description
E7: Variable Costs
E8: Material | F8: Labor | G8: Others | H8: Price | I8: Units | J8: Cut off point | K8: Weight | L8: Weight | M8: Height | N8: Diameter
B9: Product ID | C9: Distribution | D9: Name | E9: (per unit) | F9: (per unit) | G9: (per unit) | H9: (per unit) | I9: (Pints) | K9: (lb) | L9: (full) (lb) | M9: (inches) | N9: (inches)
B10: BR01-01 | C10: [retail] | D10: Pilsner | E10: 0.36 | F10: 0.2 | G10: 0.26 | H10: 5 | I10: 1 | J10: 0.8 | K10: 1.05 | L10: 1.3 | M10: 0 | N10: 0
B11: BR01-02 | C11: [retail] | D11: Bavarian Lager | E11: 0.36 | F11: 0.2 | G11: 0.26 | H11: 5 | I11: 1 | J11: 0.8 | K11: 1.05 | L11: 1.3 | M11: 0 | N11: 0
B12: BR01-03 | C12: [retail] | D12: Light Wheat | E12: 0.36 | F12: 0.2 | G12: 0.26 | H12: 5 | I12: 1 | J12: 0.8 | K12: 1.05 | L12: 1.3 | M12: 0 | N12: 0
B13: BR01-04 | C13: [retail] | D13: Red Wheat | E13: 0.36 | F13: 0.2 | G13: 0.26 | H13: 5 | I13: 1 | J13: 0.8 | K13: 1.05 | L13: 1.3 | M13: 0 | N13: 0
B14: BR01-05 | C14: [retail] | D14: Pale Ale | E14: 0.36 | F14: 0.2 | G14: 0.26 | H14: 5 | I14: 1 | J14: 0.8 | K14: 1.05 | L14: 1.3 | M14: 0 | N14: 0
B15: BR01-06 | C15: [retail] | D15: Bock Dark | E15: 0.36 | F15: 0.2 | G15: 0.26 | H15: 5 | I15: 1 | J15: 0.8 | K15: 1.05 | L15: 1.3 | M15: 0 | N15: 0
B16: BR01-07 | C16: [wholesale] | D16: Pilsner | E16: 0.36 | F16: 0.2 | G16: 0.26 | H16: 1.3 | I16: 124 | J16: 0.8 | K16: 130.8 | L16: 160.5 | M16: 23,3 | N16: 16
B17: BR01-08 | C17: [wholesale] | D17: Bavarian Lager | E17: 0.36 | F17: 0.2 | G17: 0.26 | H17: 1.3 | I17: 124 | J17: 0.8 | K17: 130.8 | L17: 160.5 | M17: 23.3 | N17: 16
B18: BR01-09 | C18: [retail] | D18: Special Offer | E18: 0.36 | F18: 0.2 | G18: 0.26 | H18: 3 | I18: 1 | J18: 1 | K18: 1.05 | L18: 1.3 | M18: 0 | N18: 0

Sheet Oper-Mgt
A6: 1 | B6: Forecast for the next three years
E8: Variable Costs
E9: Material | F9: Labor | G9: Others | H9: Price | I9: Units | J9: Cut off point | K9: Weight | L9: Weight | M9: Height | N9: Diameter
B10: Product ID | C10: Distribution | D10: Name | E10: (per unit) | F10: (per unit) | G10: (per unit) | H10: (per unit) | I10: (Pints) | K10: (lb) | L10: (full) (lb) | M10: (inches) | N10: (inches)
B11: BR01-01 | C11: [retail] | D11: Pilsner | E11: 0.36 | F11: 0.2 | G11: 0.26 | H11: 5 | I11: 1 | J11: 0.8 | K11: 1.05 | L11: 1.3 | M11: 0 | N11: 0
B12: BR01-02 | C12: [retail] | D12: Bavarian Lager | E12: 0.36 | F12: 0.2 | G12: 0.26 | H12: 5 | I12: 1 | J12: 0.8 | K12: 1.05 | L12: 1.3 | M12: 0 | N12: 0
B13: BR01-03 | C13: [retail] | D13: Light Wheat | E13: 0.36 | F13: 0.2 | G13: 0.26 | H13: 5 | I13: 1 | J13: 0.6 | K13: 1.05 | L13: 1.3 | M13: 0 | N13: 0
B14: BR01-04 | C14: [retail] | D14: Red Wheat | E14: 0.36 | F14: 0.2 | G14: 0.26 | H14: 5 | I14: 1 | J14: 0.6 | K14: 1.05 | L14: 1.3 | M14: 0 | N14: 0
B15: BR01-05 | C15: [retail] | D15: Pale Ale | E15: 0.36 | F15: 0.2 | G15: 0.26 | H15: 5 | I15: 1 | J15: 0.6 | K15: 1.05 | L15: 1.3 | M15: 0 | N15: 0
B16: BR01-06 | C16: [retail] | D16: Bock Dark | E16: 0.36 | F16: 0.2 | G16: 0.26 | H16: 5 | I16: 1 | J16: 0.8 | K16: 1.05 | L16: 1.3 | M16: 0 | N16: 0
B17: BR01-07 | C17: [wholesale] | D17: Pilsner | E17: 0.36 | F17: 0.2 | G17: 0.26 | H17: 1.3 | I17: 124 | J17: 0.8 | K17: 130.8 | L17: 160.5 | M17: 23,3 | N17: 16
B18: BR01-08 | C18: [wholesale] | D18: Bavarian Lager | E18: 0.36 | F18: 0.2 | G18: 0.26 | H18: 1.3 | I18: 124 | J18: 0.8 | K18: 130.8 | L18: 160.5 | M18: 23.3 | N18: 16
B19: BR01-09 | C19: [retail] | D19: Special Offer | E19: 0.36 | F19: 0.2 | G19: 0.26 | H19: 3 | I19: 1 | J19: 0.6 | K19: 1.05 | L19: 1.3 | M19: 0 | N19: 0
A21: 2 | B21: Targeted Market Size (per product and FY)
E22: FY-1 | I22: FY-2 | M22: FY-3
C23: [retail] | D23: =SUM(D26:D36) -> 1 | E23: 94111.95512 | H23: =SUM(H26:H36) -> 1 | I23: 103559.4873 | L23: =SUM(L26:L36) -> 1 | M23: 116277.3191
C24: [wholesale] | F24: =SUM(F26:F36) -> 1 | G24: 242002.1703 | J24: =SUM(J26:J36) -> 1 | K24: 241638.8037 | N24: =SUM(N26:N36) -> 1 | O24: 247089.303
B25: Product ID | C25: Distribution
B26: =B11 -> BR01-01 | C26: =C11 -> [retail] | D26: 0.2 | E26: =IF(C26="[retail]",VLOOKUP(C26, retail_wholesale_oper,3,FALSE)*D26,"") -> 18822.39102 | G26: =IF(C26="[wholesale]",F26*VLOOKUP(C26,retail_wholesale_oper,5,FALSE),"") ->  | H26: 0.2 | I26: =IF(C26="[retail]",VLOOKUP(C26,retail_wholesale_oper,7,FALSE)*H26,"") -> 20711.89746 | K26: =IF(C26="[wholesale]",VLOOKUP(C26,retail_wholesale_oper,9,FALSE)*J26,"") ->  | L26: 0.2 | M26: =IF(C26="[retail]",VLOOKUP(C26,retail_wholesale_oper,11,FALSE)*L26,"") -> 23255.46381 | O26: =IF(C26="[wholesale]",VLOOKUP(C26,retail_wholesale_oper,13,FALSE)*N26,"") -> 
B27: =B12 -> BR01-02 | C27: [retail] | D27: 0.2 | E27: 18822.39102 | H27: 0.2 | I27: 20711.89746 | L27: 0.2 | M27: 23255.46381
B28: BR01-03 | C28: [retail] | D28: 0.14 | E28: 13175.67372 | H28: 0.14 | I28: 14498.32822 | L28: 0.14 | M28: 16278.82467
B29: BR01-04 | C29: [retail] | D29: 0.14 | E29: 13175.67372 | H29: 0.14 | I29: 14498.32822 | L29: 0.14 | M29: 16278.82467
B30: BR01-05 | C30: [retail] | D30: 0.14 | E30: 13175.67372 | H30: 0.14 | I30: 14498.32822 | L30: 0.14 | M30: 16278.82467
B31: BR01-06 | C31: [retail] | D31: 0.18 | E31: 16940.15192 | H31: 0.18 | I31: 18640.70771 | L31: 0.18 | M31: 20929.91743
B32: BR01-07 | C32: [wholesale] | F32: 0.45 | G32: 108900.9766 | J32: 0.48 | K32: 115986.6258 | N32: 0.5 | O32: 123544.6515
B33: BR01-08 | C33: [wholesale] | F33: 0.55 | G33: 133101.1937 | J33: 0.52 | K33: 125652.1779 | N33: 0.5 | O33: 123544.6515
B34: BR01-09 | C34: =C19 -> [retail] | D34: 0 | E34: 0 | H34: 0 | I34: 0 | L34: 0 | M34: 0
A37: 3 | B37: Sales Projections (business unit: next 36 months of operations)
B39: Year/Month | D39: =B11 -> BR01-01 | E39: =IF(B12="","",B12) -> BR01-02 | F39: =IF(B13="","",B13) -> BR01-03 | G39: =IF(B14="","",B14) -> BR01-04 | H39: =IF(B15="","",B15) -> BR01-05 | I39: =IF(B16="","",B16) -> BR01-06 | J39: =IF(B17="","",B17) -> BR01-07 | K39: =IF(B18="","",B18) -> BR01-08 | L39: =IF(B19="","",B19) -> BR01-09
D40: =C11 -> [retail] | E40: =C12 -> [retail] | F40: =C13 -> [retail] | G40: =C14 -> [retail] | H40: =C15 -> [retail] | I40: =C16 -> [retail] | J40: =C17 -> [wholesale] | K40: =C18 -> [wholesale] | L40: =C19 -> [retail]
B41: FY-1 | D41: Percent Monthly Demand by Year
B42: Jan | D42: 0.06 | E42: 0.03 | F42: 0.02 | G42: 0.04 | H42: 0.18 | I42: 0.08 | J42: 0.15 | K42: 0
B43: Feb | D43: 0.09 | E43: 0.05 | F43: 0.02 | G43: 0.07 | H43: 0.18 | I43: 0.1 | J43: 0.18 | K43: 0
B44: Mar | D44: 0.07 | E44: 0.08 | F44: 0.12 | G44: 0.11 | H44: 0.05 | I44: 0.13 | J44: 0.08 | K44: 0
B45: Apr | D45: 0.07 | E45: 0.1 | F45: 0.15 | G45: 0.12 | H45: 0.04 | I45: 0.18 | J45: 0.06 | K45: 0
B46: May | D46: 0.09 | E46: 0.12 | F46: 0.15 | G46: 0.13 | H46: 0.03 | I46: 0.15 | J46: 0.05 | K46: 0.15
B47: Jun | D47: 0.1 | E47: 0.15 | F47: 0.12 | G47: 0.08 | H47: 0.02 | I47: 0.05 | J47: 0.02 | K47: 0.17
B48: Jul | D48: 0.1 | E48: 0.15 | F48: 0.12 | G48: 0.09 | H48: 0.02 | I48: 0.04 | J48: 0.02 | K48: 0.17
B49: Aug | D49: 0.1 | E49: 0.15 | F49: 0.12 | G49: 0.1 | H49: 0.02 | I49: 0.03 | J49: 0.02 | K49: 0.17
B50: Sep | D50: 0.09 | E50: 0.05 | F50: 0.1 | G50: 0.08 | H50: 0.08 | I50: 0.05 | J50: 0.12 | K50: 0.17
B51: Oct | D51: 0.08 | E51: 0.05 | F51: 0.03 | G51: 0.08 | H51: 0.1 | I51: 0.06 | J51: 0.08 | K51: 0.17
B52: Nov | D52: 0.08 | E52: 0.05 | F52: 0.03 | G52: 0.06 | H52: 0.13 | I52: 0.06 | J52: 0.1 | K52: 0
B53: Dec | D53: 0.07 | E53: 0.02 | F53: 0.02 | G53: 0.04 | H53: 0.15 | I53: 0.07 | J53: 0.12 | K53: 0
B54: Tot | D54: =SUM(D42:D53) -> 1 | E54: 1 | F54: 1 | G54: 1 | H54: 1 | I54: 1 | J54: 1 | K54: 1 | L54: 0
D55: Demanded Quantity per Month
B56: Jan | D56: =D68*D42 -> 1129.343461 | E56: 564.6717307 | F56: 263.5134743 | G56: 527.0269487 | H56: 2371.621269 | I56: 1355.212154 | J56: 16335.1465 | K56: 0 | L56: 0
B57: Feb | D57: =D68*D43 -> 1694.015192 | E57: 941.1195512 | F57: 263.5134743 | G57: 922.2971602 | H57: 2371.621269 | I57: 1694.015192 | J57: 19602.17579 | K57: 0 | L57: 0
B58: Mar | D58: =D68*D44 -> 1317.567372 | E58: 1505.791282 | F58: 1581.080846 | G58: 1449.324109 | H58: 658.7836858 | I58: 2202.21975 | J58: 8712.078131 | K58: 0 | L58: 0
B59: Apr | D59: =D68*D45 -> 1317.567372 | E59: 1882.239102 | F59: 1976.351057 | G59: 1581.080846 | H59: 527.0269487 | I59: 3049.227346 | J59: 6534.058598 | K59: 0 | L59: 0
B60: May | D60: =D68*D46 -> 1694.015192 | E60: 2258.686923 | F60: 1976.351057 | G60: 1712.837583 | H60: 395.2702115 | I60: 2541.022788 | J60: 5445.048832 | K60: 19965.17905 | L60: 0
B61: Jun | D61: =D68*D47 -> 1882.239102 | E61: 2823.358654 | F61: 1581.080846 | G61: 1054.053897 | H61: 263.5134743 | I61: 847.0075961 | J61: 2178.019533 | K61: 22627.20292 | L61: 0
B62: Jul | D62: =D68*D48 -> 1882.239102 | E62: 2823.358654 | F62: 1581.080846 | G62: 1185.810634 | H62: 263.5134743 | I62: 677.6060769 | J62: 2178.019533 | K62: 22627.20292 | L62: 0
B63: Aug | D63: =D68*D49 -> 1882.239102 | E63: 2823.358654 | F63: 1581.080846 | G63: 1317.567372 | H63: 263.5134743 | I63: 508.2045576 | J63: 2178.019533 | K63: 22627.20292 | L63: 0
B64: Sep | D64: =D68*D50 -> 1694.015192 | E64: 941.1195512 | F64: 1317.567372 | G64: 1054.053897 | H64: 1054.053897 | I64: 847.0075961 | J64: 13068.1172 | K64: 22627.20292 | L64: 0
B65: Oct | D65: =D68*D51 -> 1505.791282 | E65: 941.1195512 | F65: 395.2702115 | G65: 1054.053897 | H65: 1317.567372 | I65: 1016.409115 | J65: 8712.078131 | K65: 22627.20292 | L65: 0
B66: Nov | D66: =D68*D52 -> 1505.791282 | E66: 941.1195512 | F66: 395.2702115 | G66: 790.540423 | H66: 1712.837583 | I66: 1016.409115 | J66: 10890.09766 | K66: 0 | L66: 0
B67: Dec | D67: =D68*D53 -> 1317.567372 | E67: 376.4478205 | F67: 263.5134743 | G67: 527.0269487 | H67: 1976.351057 | I67: 1185.810634 | J67: 13068.1172 | K67: 0 | L67: 0
B68: Tot | D68: =VLOOKUP(D39,TargetedMSo,IF(D40="[retail]",4,6),FALSE) -> 18822.39102 | E68: 18822.39102 | F68: 13175.67372 | G68: 13175.67372 | H68: 13175.67372 | I68: 16940.15192 | J68: 108900.9766 | K68: 133101.1937 | L68: 0
B69: [kegs] | D69: =IF(D40="[wholesale]",D68/capacity,"") ->  | J69: 87.82336826 | K69: 107.3396723
C70: Total | D70: Number of Tanks to Produce and Serve
B71: Jan | C71: =SUM(D71:Z71) ->  | D71: =ProductionFY1o(1,D39,VLOOKUP(D39,ProductsRangeOper,3,FALSE),D56) -> 
B72: Feb | C72: =SUM(D72:Z72) ->  | D72: =ProductionFY1o(2,D39,VLOOKUP(D39,ProductsRangeOper,3,FALSE),D57) -> 
B73: Mar | D73: =ProductionFY1o(3,D39,VLOOKUP(D39,ProductsRangeOper,3,FALSE),D58) -> 
B74: Apr | D74: =ProductionFY1o(4,D39,VLOOKUP(D39,ProductsRangeOper,3,FALSE),D59) -> 
B75: May | D75: =ProductionFY1o(5,D39,VLOOKUP(D39,ProductsRangeOper,3,FALSE),D60) -> 
B76: Jun | D76: =ProductionFY1o(6,D39,VLOOKUP(D39,ProductsRangeOper,3,FALSE),D61) -> 
B77: Jul | D77: =ProductionFY1o(7,D39,VLOOKUP(D39,ProductsRangeOper,3,FALSE),D62) -> 
B78: Aug | D78: =ProductionFY1o(8,D39,VLOOKUP(D39,ProductsRangeOper,3,FALSE),D63) -> 
B79: Sep | D79: =ProductionFY1o(9,D39,VLOOKUP(D39,ProductsRangeOper,3,FALSE),D64) -> 
B80: Oct | D80: =ProductionFY1o(10,D39,VLOOKUP(D39,ProductsRangeOper,3,FALSE),D65) -> 
B81: Nov | D81: =ProductionFY1o(11,D39,VLOOKUP(D39,ProductsRangeOper,3,FALSE),D66) -> 
B82: Dec | D82: =ProductionFY1o(12,D39,VLOOKUP(D39,ProductsRangeOper,3,FALSE),D67) -> 
A83: Total Demand | C83: [units] | D83: =SUM(D56:D67) -> 18822.39102 | E83: 18822.39102 | F83: 13175.67372 | G83: 13175.67372 | H83: 13175.67372 | I83: 16940.15192 | J83: =J68 -> 108900.9766 | K83: =K68 -> 133101.1937 | L83: =L68 -> 0
A84: Total Supply | C84: [units] | D84: =SUM(D71:D82)*capacity -> 
A85: Excess Demand | C85: [units] | D85: =D83-D84 -> 
B86: FY-2 | D86: Percent Monthly Demand by Year
B87: Jan | D87: 0.06 | E87: 0.03 | F87: 0.02 | G87: 0.04 | H87: 0.18 | I87: 0.08 | J87: 0.15 | K87: 0
B88: Feb | D88: 0.09 | E88: 0.05 | F88: 0.02 | G88: 0.07 | H88: 0.18 | I88: 0.1 | J88: 0.18 | K88: 0
B89: Mar | D89: 0.07 | E89: 0.08 | F89: 0.12 | G89: 0.11 | H89: 0.05 | I89: 0.13 | J89: 0.08 | K89: 0
B90: Apr | D90: 0.07 | E90: 0.1 | F90: 0.15 | G90: 0.12 | H90: 0.04 | I90: 0.18 | J90: 0.06 | K90: 0
B91: May | D91: 0.09 | E91: 0.12 | F91: 0.15 | G91: 0.13 | H91: 0.03 | I91: 0.15 | J91: 0.05 | K91: 0.15
B92: Jun | D92: 0.1 | E92: 0.15 | F92: 0.12 | G92: 0.08 | H92: 0.02 | I92: 0.05 | J92: 0.02 | K92: 0.17
B93: Jul | D93: 0.1 | E93: 0.15 | F93: 0.12 | G93: 0.09 | H93: 0.02 | I93: 0.04 | J93: 0.02 | K93: 0.17
B94: Aug | D94: 0.1 | E94: 0.15 | F94: 0.12 | G94: 0.1 | H94: 0.02 | I94: 0.03 | J94: 0.02 | K94: 0.17
B95: Sep | D95: 0.09 | E95: 0.05 | F95: 0.1 | G95: 0.08 | H95: 0.08 | I95: 0.05 | J95: 0.12 | K95: 0.17
B96: Oct | D96: 0.08 | E96: 0.05 | F96: 0.03 | G96: 0.08 | H96: 0.1 | I96: 0.06 | J96: 0.08 | K96: 0.17
B97: Nov | D97: 0.08 | E97: 0.05 | F97: 0.03 | G97: 0.06 | H97: 0.13 | I97: 0.06 | J97: 0.1 | K97: 0
B98: Dec | D98: 0.07 | E98: 0.02 | F98: 0.02 | G98: 0.04 | H98: 0.15 | I98: 0.07 | J98: 0.12 | K98: 0
B99: Tot | D99: =SUM(D87:D98) -> 1 | E99: 1 | F99: 1 | G99: 1 | H99: 1 | I99: 1 | J99: 1 | K99: 1 | L99: 0
D100: Demanded Quantity per Month
B101: Jan | D101: =D87*D113 -> 1242.713848 | E101: 621.3569238 | F101: 289.9665644 | G101: 579.9331288 | H101: 2609.69908 | I101: 1491.256617 | J101: 17397.99387 | K101: 0 | L101: 0
B102: Feb | D102: =D88*D113 -> 1864.070771 | E102: 1035.594873 | F102: 289.9665644 | G102: 1014.882975 | H102: 2609.69908 | I102: 1864.070771 | J102: 20877.59264 | K102: 0 | L102: 0
B103: Mar | D103: =D89*D113 -> 1449.832822 | E103: 1656.951797 | F103: 1739.799387 | G103: 1594.816104 | H103: 724.916411 | I103: 2423.292003 | J103: 9278.930061 | K103: 0 | L103: 0
B104: Apr | D104: =D90*D113 -> 1449.832822 | E104: 2071.189746 | F104: 2174.749233 | G104: 1739.799387 | H104: 579.9331288 | I104: 3355.327388 | J104: 6959.197546 | K104: 0 | L104: 0
B105: May | D105: =D91*D113 -> 1864.070771 | E105: 2485.427695 | F105: 2174.749233 | G105: 1884.782669 | H105: 434.9498466 | I105: 2796.106157 | J105: 5799.331288 | K105: 18847.82669 | L105: 0
B106: Jun | D106: =D92*D113 -> 2071.189746 | E106: 3106.784619 | F106: 1739.799387 | G106: 1159.866258 | H106: 289.9665644 | I106: 932.0353856 | J106: 2319.732515 | K106: 21360.87025 | L106: 0
B107: Jul | D107: =D93*D113 -> 2071.189746 | E107: 3106.784619 | F107: 1739.799387 | G107: 1304.84954 | H107: 289.9665644 | I107: 745.6283085 | J107: 2319.732515 | K107: 21360.87025 | L107: 0
B108: Aug | D108: =D94*D113 -> 2071.189746 | E108: 3106.784619 | F108: 1739.799387 | G108: 1449.832822 | H108: 289.9665644 | I108: 559.2212314 | J108: 2319.732515 | K108: 21360.87025 | L108: 0
B109: Sep | D109: =D95*D113 -> 1864.070771 | E109: 1035.594873 | F109: 1449.832822 | G109: 1159.866258 | H109: 1159.866258 | I109: 932.0353856 | J109: 13918.39509 | K109: 21360.87025 | L109: 0
B110: Oct | D110: =D96*D113 -> 1656.951797 | E110: 1035.594873 | F110: 434.9498466 | G110: 1159.866258 | H110: 1449.832822 | I110: 1118.442463 | J110: 9278.930061 | K110: 21360.87025 | L110: 0
B111: Nov | D111: =D97*D113 -> 1656.951797 | E111: 1035.594873 | F111: 434.9498466 | G111: 869.8996933 | H111: 1884.782669 | I111: 1118.442463 | J111: 11598.66258 | K111: 0 | L111: 0
B112: Dec | D112: =D98*D113 -> 1449.832822 | E112: 414.2379492 | F112: 289.9665644 | G112: 579.9331288 | H112: 2174.749233 | I112: 1304.84954 | J112: 13918.39509 | K112: 0 | L112: 0
B113: Tot | D113: =VLOOKUP(D39,TargetedMSo,IF(D40="[retail]",8,10),FALSE) -> 20711.89746 | E113: 20711.89746 | F113: 14498.32822 | G113: 14498.32822 | H113: 14498.32822 | I113: 18640.70771 | J113: 115986.6258 | K113: 125652.1779 | L113: 0
B114: [kegs] | D114: =IF(D40="[wholesale]",D113/capacity,"") ->  | J114: 93.53760143 | K114: 101.3324015
C115: Total | D115: Number of Tanks to Produce and Serve
B116: Jan | C116: =SUM(D116:Z116) ->  | D116: =ProductionFY2o(1,D39,VLOOKUP(D39,ProductsRangeOper,3,FALSE),D101) -> 
B117: Feb | D117: =ProductionFY2o(2,D39,VLOOKUP(D39,ProductsRangeOper,3,FALSE),D102) -> 
B118: Mar | D118: =ProductionFY2o(3,D39,VLOOKUP(D39,ProductsRangeOper,3,FALSE),D103) -> 
B119: Apr | D119: =ProductionFY2o(4,D39,VLOOKUP(D39,ProductsRangeOper,3,FALSE),D104) -> 
B120: May | D120: =ProductionFY2o(5,D39,VLOOKUP(D39,ProductsRangeOper,3,FALSE),D105) -> 
B121: Jun | D121: =ProductionFY2o(6,D39,VLOOKUP(D39,ProductsRangeOper,3,FALSE),D106) -> 
B122: Jul | D122: =ProductionFY2o(7,D39,VLOOKUP(D39,ProductsRangeOper,3,FALSE),D107) -> 
B123: Aug | D123: =ProductionFY2o(8,D39,VLOOKUP(D39,ProductsRangeOper,3,FALSE),D108) -> 
B124: Sep | D124: =ProductionFY2o(9,D39,VLOOKUP(D39,ProductsRangeOper,3,FALSE),D109) -> 
B125: Oct | D125: =ProductionFY2o(10,D39,VLOOKUP(D39,ProductsRangeOper,3,FALSE),D110) -> 
B126: Nov | D126: =ProductionFY2o(11,D39,VLOOKUP(D39,ProductsRangeOper,3,FALSE),D111) -> 
B127: Dec | D127: =ProductionFY2o(12,D39,VLOOKUP(D39,ProductsRangeOper,3,FALSE),D112) -> 
A128: Total Demand | C128: [units] | D128: =SUM(D101:D112) -> 20711.89746 | E128: 20711.89746 | F128: 14498.32822 | G128: 14498.32822 | H128: 14498.32822 | I128: 18640.70771 | J128: =J113 -> 115986.6258 | K128: =K113 -> 125652.1779 | L128: =L113 -> 0
A129: Total Supply | C129: [units] | D129: =SUM(D116:D127)*capacity -> 
A130: Excess Demand | C130: [units] | D130: =D128-D129 -> 
B131: FY-3 | D131: Percent Monthly Demand by Year
B132: Jan | D132: 0.06 | E132: 0.03 | F132: 0.02 | G132: 0.04 | H132: 0.18 | I132: 0.08 | J132: 0.15 | K132: 0
B133: Feb | D133: 0.09 | E133: 0.05 | F133: 0.02 | G133: 0.07 | H133: 0.18 | I133: 0.1 | J133: 0.18 | K133: 0
B134: Mar | D134: 0.07 | E134: 0.08 | F134: 0.12 | G134: 0.11 | H134: 0.05 | I134: 0.13 | J134: 0.08 | K134: 0
B135: Apr | D135: 0.07 | E135: 0.1 | F135: 0.15 | G135: 0.12 | H135: 0.04 | I135: 0.18 | J135: 0.06 | K135: 0
B136: May | D136: 0.09 | E136: 0.12 | F136: 0.15 | G136: 0.13 | H136: 0.03 | I136: 0.15 | J136: 0.05 | K136: 0.15
B137: Jun | D137: 0.1 | E137: 0.15 | F137: 0.12 | G137: 0.08 | H137: 0.02 | I137: 0.05 | J137: 0.02 | K137: 0.17
B138: Jul | D138: 0.1 | E138: 0.15 | F138: 0.12 | G138: 0.09 | H138: 0.02 | I138: 0.04 | J138: 0.02 | K138: 0.17
B139: Aug | D139: 0.1 | E139: 0.15 | F139: 0.12 | G139: 0.1 | H139: 0.02 | I139: 0.03 | J139: 0.02 | K139: 0.17
B140: Sep | D140: 0.09 | E140: 0.05 | F140: 0.1 | G140: 0.08 | H140: 0.08 | I140: 0.05 | J140: 0.12 | K140: 0.17
B141: Oct | D141: 0.08 | E141: 0.05 | F141: 0.03 | G141: 0.08 | H141: 0.1 | I141: 0.06 | J141: 0.08 | K141: 0.17
B142: Nov | D142: 0.08 | E142: 0.05 | F142: 0.03 | G142: 0.06 | H142: 0.13 | I142: 0.06 | J142: 0.1 | K142: 0
B143: Dec | D143: 0.07 | E143: 0.02 | F143: 0.02 | G143: 0.04 | H143: 0.15 | I143: 0.07 | J143: 0.12 | K143: 0
B144: Tot | D144: =SUM(D132:D143) -> 1 | E144: 1 | F144: 1 | G144: 1 | H144: 1 | I144: 1 | J144: 1 | K144: 1 | L144: 0
D145: Demanded Quantity per Month
B146: Jan | D146: =D158*D132 -> 1395.327829 | E146: 697.6639144 | F146: 325.5764934 | G146: 651.1529868 | H146: 2930.18844 | I146: 1674.393395 | J146: 18531.69773 | K146: 0 | L146: 0
B147: Feb | D147: =D158*D133 -> 2092.991743 | E147: 1162.773191 | F147: 325.5764934 | G147: 1139.517727 | H147: 2930.18844 | I147: 2092.991743 | J147: 22238.03727 | K147: 0 | L147: 0
B148: Mar | D148: =D158*D134 -> 1627.882467 | E148: 1860.437105 | F148: 1953.45896 | G148: 1790.670714 | H148: 813.9412335 | I148: 2720.889266 | J148: 9883.572121 | K148: 0 | L148: 0
B149: Apr | D149: =D158*D135 -> 1627.882467 | E149: 2325.546381 | F149: 2441.8237 | G149: 1953.45896 | H149: 651.1529868 | I149: 3767.385138 | J149: 7412.67909 | K149: 0 | L149: 0
B150: May | D150: =D158*D136 -> 2092.991743 | E150: 2790.655658 | F150: 2441.8237 | G150: 2116.247207 | H150: 488.3647401 | I150: 3139.487615 | J150: 6177.232575 | K150: 18531.69773 | L150: 0
B151: Jun | D151: =D158*D137 -> 2325.546381 | E151: 3488.319572 | F151: 1953.45896 | G151: 1302.305974 | H151: 325.5764934 | I151: 1046.495872 | J151: 2470.89303 | K151: 21002.59076 | L151: 0
B152: Jul | D152: =D158*D138 -> 2325.546381 | E152: 3488.319572 | F152: 1953.45896 | G152: 1465.09422 | H152: 325.5764934 | I152: 837.1966973 | J152: 2470.89303 | K152: 21002.59076 | L152: 0
B153: Aug | D153: =D158*D139 -> 2325.546381 | E153: 3488.319572 | F153: 1953.45896 | G153: 1627.882467 | H153: 325.5764934 | I153: 627.897523 | J153: 2470.89303 | K153: 21002.59076 | L153: 0
B154: Sep | D154: =D158*D140 -> 2092.991743 | E154: 1162.773191 | F154: 1627.882467 | G154: 1302.305974 | H154: 1302.305974 | I154: 1046.495872 | J154: 14825.35818 | K154: 21002.59076 | L154: 0
B155: Oct | D155: =D158*D141 -> 1860.437105 | E155: 1162.773191 | F155: 488.3647401 | G155: 1302.305974 | H155: 1627.882467 | I155: 1255.795046 | J155: 9883.572121 | K155: 21002.59076 | L155: 0
B156: Nov | D156: =D158*D142 -> 1860.437105 | E156: 1162.773191 | F156: 488.3647401 | G156: 976.7294802 | H156: 2116.247207 | I156: 1255.795046 | J156: 12354.46515 | K156: 0 | L156: 0
B157: Dec | D157: =D158*D143 -> 1627.882467 | E157: 465.1092763 | F157: 325.5764934 | G157: 651.1529868 | H157: 2441.8237 | I157: 1465.09422 | J157: 14825.35818 | K157: 0 | L157: 0
B158: Tot | D158: =VLOOKUP(D39,TargetedMSo,IF(D40="[retail]",12,14),FALSE) -> 23255.46381 | E158: 23255.46381 | F158: 16278.82467 | G158: 16278.82467 | H158: 16278.82467 | I158: 20929.91743 | J158: 123544.6515 | K158: 123544.6515 | L158: 0
B159: [kegs] | D159: =IF(D40="[wholesale]",D158/capacity,"") ->  | J159: 99.63278347 | K159: 99.63278347
C160: Total | D160: Number of Tanks to Produce and Serve
B161: Jan | C161: =SUM(D161:Z161) ->  | D161: =ProductionFY3o(1,D39,VLOOKUP(D39,ProductsRangeOper,3,FALSE),D146) -> 
B162: Feb | D162: =ProductionFY3o(2,D39,VLOOKUP(D39,ProductsRangeOper,3,FALSE),D147) -> 
B163: Mar | D163: =ProductionFY3o(3,D39,VLOOKUP(D39,ProductsRangeOper,3,FALSE),D148) -> 
B164: Apr | D164: =ProductionFY3o(4,D39,VLOOKUP(D39,ProductsRangeOper,3,FALSE),D149) -> 
B165: May | D165: =ProductionFY3o(5,D39,VLOOKUP(D39,ProductsRangeOper,3,FALSE),D150) -> 
B166: Jun | D166: =ProductionFY3o(6,D39,VLOOKUP(D39,ProductsRangeOper,3,FALSE),D151) -> 
B167: Jul | D167: =ProductionFY3o(7,D39,VLOOKUP(D39,ProductsRangeOper,3,FALSE),D152) -> 
B168: Aug | D168: =ProductionFY3o(8,D39,VLOOKUP(D39,ProductsRangeOper,3,FALSE),D153) -> 
B169: Sep | D169: =ProductionFY3o(9,D39,VLOOKUP(D39,ProductsRangeOper,3,FALSE),D154) -> 
B170: Oct | D170: =ProductionFY3o(10,D39,VLOOKUP(D39,ProductsRangeOper,3,FALSE),D155) -> 
B171: Nov | D171: =ProductionFY3o(11,D39,VLOOKUP(D39,ProductsRangeOper,3,FALSE),D156) -> 
B172: Dec | D172: =ProductionFY3o(12,D39,VLOOKUP(D39,ProductsRangeOper,3,FALSE),D157) -> 
A173: Total Demand | C173: [units] | D173: =SUM(D146:D157) -> 23255.46381 | E173: 23255.46381 | F173: 16278.82467 | G173: 16278.82467 | H173: 16278.82467 | I173: 20929.91743 | J173: =J158 -> 123544.6515 | K173: =K158 -> 123544.6515 | L173: =L158 -> 0
A174: Total Supply | C174: [units] | D174: =SUM(D161:D172)*capacity -> 
A175: Excess Demand | C175: [units] | D175: =D173-D174 -> 
D177: =IF(B11="","",B11) -> BR01-01 | E177: =IF(B12="","",B12) -> BR01-02 | F177: =IF(B13="","",B13) -> BR01-03 | G177: =IF(B14="","",B14) -> BR01-04 | H177: =IF(B15="","",B15) -> BR01-05 | I177: =IF(B16="","",B16) -> BR01-06 | J177: =IF(B17="","",B17) -> BR01-07 | K177: =IF(B18="","",B18) -> BR01-08 | L177: =IF(B19="","",B19) -> BR01-09
D178: =C11 -> [retail] | E178: =C12 -> [retail] | F178: =C13 -> [retail] | G178: =C14 -> [retail] | H178: =C15 -> [retail] | I178: =C16 -> [retail] | J178: =C17 -> [wholesale] | K178: =C18 -> [wholesale] | L178: =C19 -> [retail]
B179: FY-1 | C179: Jan | D179: =IF(VLOOKUP(D177,ProductsRangeOper,3,FALSE)="Special Offer",SpecialOffero(D177,1,"FY-1"),MIN(D56,D71*capacity)) ->  | E179: =IF(VLOOKUP(E177,ProductsRangeOper,3,FALSE)="Special Offer",SpecialOffero(E177,1,"FY-1"),MIN(E56,E71*capacity)) ->  | F179: =IF(VLOOKUP(F177,ProductsRangeOper,3,FALSE)="Special Offer",SpecialOffero(F177,1,"FY-1"),MIN(F56,F71*capacity)) ->  | G179: =IF(VLOOKUP(G177,ProductsRangeOper,3,FALSE)="Special Offer",SpecialOffero(G177,1,"FY-1"),MIN(G56,G71*capacity)) ->  | H179: =IF(VLOOKUP(H177,ProductsRangeOper,3,FALSE)="Special Offer",SpecialOffero(H177,1,"FY-1"),MIN(H56,H71*capacity)) ->  | I179: =IF(VLOOKUP(I177,ProductsRangeOper,3,FALSE)="Special Offer",SpecialOffero(I177,1,"FY-1"),MIN(I56,I71*capacity)) ->  | J179: =IF(VLOOKUP(J177,ProductsRangeOper,3,FALSE)="Special Offer",SpecialOffero(J177,1,"FY-1"),MIN(J56,J71*capacity)) ->  | K179: =IF(VLOOKUP(K177,ProductsRangeOper,3,FALSE)="Special Offer",SpecialOffero(K177,1,"FY-1"),MIN(K56,K71*capacity)) ->  | L179: =IF(VLOOKUP(L177,ProductsRangeOper,3,FALSE)="Special Offer",SpecialOffero(L177,1,"FY-1"),MIN(L56,L71*capacity)) -> 
B180: FY-1 | C180: Feb | D180: =IF(VLOOKUP(D177,ProductsRangeOper,3,FALSE)="Special Offer",SpecialOffero(D177,7,"FY-1"),MIN(D57,D72*capacity)) ->  | E180: =IF(VLOOKUP(E177,ProductsRangeOper,3,FALSE)="Special Offer",SpecialOffero(E177,7,"FY-1"),MIN(E57,E72*capacity)) ->  | F180: =IF(VLOOKUP(F177,ProductsRangeOper,3,FALSE)="Special Offer",SpecialOffero(F177,7,"FY-1"),MIN(F57,F72*capacity)) ->  | G180: =IF(VLOOKUP(G177,ProductsRangeOper,3,FALSE)="Special Offer",SpecialOffero(G177,7,"FY-1"),MIN(G57,G72*capacity)) ->  | H180: =IF(VLOOKUP(H177,ProductsRangeOper,3,FALSE)="Special Offer",SpecialOffero(H177,7,"FY-1"),MIN(H57,H72*capacity)) ->  | I180: =IF(VLOOKUP(I177,ProductsRangeOper,3,FALSE)="Special Offer",SpecialOffero(I177,7,"FY-1"),MIN(I57,I72*capacity)) ->  | J180: =IF(VLOOKUP(J177,ProductsRangeOper,3,FALSE)="Special Offer",SpecialOffero(J177,7,"FY-1"),MIN(J57,J72*capacity)) ->  | K180: =IF(VLOOKUP(K177,ProductsRangeOper,3,FALSE)="Special Offer",SpecialOffero(K177,7,"FY-1"),MIN(K57,K72*capacity)) ->  | L180: =IF(VLOOKUP(L177,ProductsRangeOper,3,FALSE)="Special Offer",SpecialOffero(L177,7,"FY-1"),MIN(L57,L72*capacity)) -> 
B181: FY-1 | C181: Mar | D181: =IF(VLOOKUP(D177,ProductsRangeOper,3,FALSE)="Special Offer",SpecialOffero(D177,3,"FY-1"),MIN(D58,D73*capacity)) ->  | E181: =IF(VLOOKUP(E177,ProductsRangeOper,3,FALSE)="Special Offer",SpecialOffero(E177,3,"FY-1"),MIN(E58,E73*capacity)) ->  | F181: =IF(VLOOKUP(F177,ProductsRangeOper,3,FALSE)="Special Offer",SpecialOffero(F177,3,"FY-1"),MIN(F58,F73*capacity)) ->  | G181: =IF(VLOOKUP(G177,ProductsRangeOper,3,FALSE)="Special Offer",SpecialOffero(G177,3,"FY-1"),MIN(G58,G73*capacity)) ->  | H181: =IF(VLOOKUP(H177,ProductsRangeOper,3,FALSE)="Special Offer",SpecialOffero(H177,3,"FY-1"),MIN(H58,H73*capacity)) ->  | I181: =IF(VLOOKUP(I177,ProductsRangeOper,3,FALSE)="Special Offer",SpecialOffero(I177,3,"FY-1"),MIN(I58,I73*capacity)) ->  | J181: =IF(VLOOKUP(J177,ProductsRangeOper,3,FALSE)="Special Offer",SpecialOffero(J177,3,"FY-1"),MIN(J58,J73*capacity)) ->  | K181: =IF(VLOOKUP(K177,ProductsRangeOper,3,FALSE)="Special Offer",SpecialOffero(K177,3,"FY-1"),MIN(K58,K73*capacity)) ->  | L181: =IF(VLOOKUP(L177,ProductsRangeOper,3,FALSE)="Special Offer",SpecialOffero(L177,3,"FY-1"),MIN(L58,L73*capacity)) -> 
B182: FY-1 | C182: Apr | D182: =IF(VLOOKUP(D177,ProductsRangeOper,3,FALSE)="Special Offer",SpecialOffero(D177,4,"FY-1"),MIN(D59,D74*capacity)) ->  | E182: =IF(VLOOKUP(E177,ProductsRangeOper,3,FALSE)="Special Offer",SpecialOffero(E177,4,"FY-1"),MIN(E59,E74*capacity)) ->  | F182: =IF(VLOOKUP(F177,ProductsRangeOper,3,FALSE)="Special Offer",SpecialOffero(F177,4,"FY-1"),MIN(F59,F74*capacity)) ->  | G182: =IF(VLOOKUP(G177,ProductsRangeOper,3,FALSE)="Special Offer",SpecialOffero(G177,4,"FY-1"),MIN(G59,G74*capacity)) ->  | H182: =IF(VLOOKUP(H177,ProductsRangeOper,3,FALSE)="Special Offer",SpecialOffero(H177,4,"FY-1"),MIN(H59,H74*capacity)) ->  | I182: =IF(VLOOKUP(I177,ProductsRangeOper,3,FALSE)="Special Offer",SpecialOffero(I177,4,"FY-1"),MIN(I59,I74*capacity)) ->  | J182: =IF(VLOOKUP(J177,ProductsRangeOper,3,FALSE)="Special Offer",SpecialOffero(J177,4,"FY-1"),MIN(J59,J74*capacity)) ->  | K182: =IF(VLOOKUP(K177,ProductsRangeOper,3,FALSE)="Special Offer",SpecialOffero(K177,4,"FY-1"),MIN(K59,K74*capacity)) ->  | L182: =IF(VLOOKUP(L177,ProductsRangeOper,3,FALSE)="Special Offer",SpecialOffero(L177,4,"FY-1"),MIN(L59,L74*capacity)) -> 
B183: FY-1 | C183: May | D183: =IF(VLOOKUP(D177,ProductsRangeOper,3,FALSE)="Special Offer",SpecialOffero(D177,5,"FY-1"),MIN(D60,D75*capacity)) ->  | E183: =IF(VLOOKUP(E177,ProductsRangeOper,3,FALSE)="Special Offer",SpecialOffero(E177,5,"FY-1"),MIN(E60,E75*capacity)) ->  | F183: =IF(VLOOKUP(F177,ProductsRangeOper,3,FALSE)="Special Offer",SpecialOffero(F177,5,"FY-1"),MIN(F60,F75*capacity)) ->  | G183: =IF(VLOOKUP(G177,ProductsRangeOper,3,FALSE)="Special Offer",SpecialOffero(G177,5,"FY-1"),MIN(G60,G75*capacity)) ->  | H183: =IF(VLOOKUP(H177,ProductsRangeOper,3,FALSE)="Special Offer",SpecialOffero(H177,5,"FY-1"),MIN(H60,H75*capacity)) ->  | I183: =IF(VLOOKUP(I177,ProductsRangeOper,3,FALSE)="Special Offer",SpecialOffero(I177,5,"FY-1"),MIN(I60,I75*capacity)) ->  | J183: =IF(VLOOKUP(J177,ProductsRangeOper,3,FALSE)="Special Offer",SpecialOffero(J177,5,"FY-1"),MIN(J60,J75*capacity)) ->  | K183: =IF(VLOOKUP(K177,ProductsRangeOper,3,FALSE)="Special Offer",SpecialOffero(K177,5,"FY-1"),MIN(K60,K75*capacity)) ->  | L183: =IF(VLOOKUP(L177,ProductsRangeOper,3,FALSE)="Special Offer",SpecialOffero(L177,5,"FY-1"),MIN(L60,L75*capacity)) -> 
B184: FY-1 | C184: Jun | D184: =IF(VLOOKUP(D177,ProductsRangeOper,3,FALSE)="Special Offer",SpecialOffero(D177,6,"FY-1"),MIN(D61,D76*capacity)) ->  | E184: =IF(VLOOKUP(E177,ProductsRangeOper,3,FALSE)="Special Offer",SpecialOffero(E177,6,"FY-1"),MIN(E61,E76*capacity)) ->  | F184: =IF(VLOOKUP(F177,ProductsRangeOper,3,FALSE)="Special Offer",SpecialOffero(F177,6,"FY-1"),MIN(F61,F76*capacity)) ->  | G184: =IF(VLOOKUP(G177,ProductsRangeOper,3,FALSE)="Special Offer",SpecialOffero(G177,6,"FY-1"),MIN(G61,G76*capacity)) ->  | H184: =IF(VLOOKUP(H177,ProductsRangeOper,3,FALSE)="Special Offer",SpecialOffero(H177,6,"FY-1"),MIN(H61,H76*capacity)) ->  | I184: =IF(VLOOKUP(I177,ProductsRangeOper,3,FALSE)="Special Offer",SpecialOffero(I177,6,"FY-1"),MIN(I61,I76*capacity)) ->  | J184: =IF(VLOOKUP(J177,ProductsRangeOper,3,FALSE)="Special Offer",SpecialOffero(J177,6,"FY-1"),MIN(J61,J76*capacity)) ->  | K184: =IF(VLOOKUP(K177,ProductsRangeOper,3,FALSE)="Special Offer",SpecialOffero(K177,6,"FY-1"),MIN(K61,K76*capacity)) ->  | L184: =IF(VLOOKUP(L177,ProductsRangeOper,3,FALSE)="Special Offer",SpecialOffero(L177,6,"FY-1"),MIN(L61,L76*capacity)) -> 
B185: FY-1 | C185: Jul | D185: =IF(VLOOKUP(D177,ProductsRangeOper,3,FALSE)="Special Offer",SpecialOffero(D177,7,"FY-1"),MIN(D62,D77*capacity)) ->  | E185: =IF(VLOOKUP(E177,ProductsRangeOper,3,FALSE)="Special Offer",SpecialOffero(E177,7,"FY-1"),MIN(E62,E77*capacity)) ->  | F185: =IF(VLOOKUP(F177,ProductsRangeOper,3,FALSE)="Special Offer",SpecialOffero(F177,7,"FY-1"),MIN(F62,F77*capacity)) ->  | G185: =IF(VLOOKUP(G177,ProductsRangeOper,3,FALSE)="Special Offer",SpecialOffero(G177,7,"FY-1"),MIN(G62,G77*capacity)) ->  | H185: =IF(VLOOKUP(H177,ProductsRangeOper,3,FALSE)="Special Offer",SpecialOffero(H177,7,"FY-1"),MIN(H62,H77*capacity)) ->  | I185: =IF(VLOOKUP(I177,ProductsRangeOper,3,FALSE)="Special Offer",SpecialOffero(I177,7,"FY-1"),MIN(I62,I77*capacity)) ->  | J185: =IF(VLOOKUP(J177,ProductsRangeOper,3,FALSE)="Special Offer",SpecialOffero(J177,7,"FY-1"),MIN(J62,J77*capacity)) ->  | K185: =IF(VLOOKUP(K177,ProductsRangeOper,3,FALSE)="Special Offer",SpecialOffero(K177,7,"FY-1"),MIN(K62,K77*capacity)) ->  | L185: =IF(VLOOKUP(L177,ProductsRangeOper,3,FALSE)="Special Offer",SpecialOffero(L177,7,"FY-1"),MIN(L62,L77*capacity)) -> 
B186: FY-1 | C186: Aug | D186: =IF(VLOOKUP(D177,ProductsRangeOper,3,FALSE)="Special Offer",SpecialOffero(D177,8,"FY-1"),MIN(D63,D78*capacity)) ->  | E186: =IF(VLOOKUP(E177,ProductsRangeOper,3,FALSE)="Special Offer",SpecialOffero(E177,8,"FY-1"),MIN(E63,E78*capacity)) ->  | F186: =IF(VLOOKUP(F177,ProductsRangeOper,3,FALSE)="Special Offer",SpecialOffero(F177,8,"FY-1"),MIN(F63,F78*capacity)) ->  | G186: =IF(VLOOKUP(G177,ProductsRangeOper,3,FALSE)="Special Offer",SpecialOffero(G177,8,"FY-1"),MIN(G63,G78*capacity)) ->  | H186: =IF(VLOOKUP(H177,ProductsRangeOper,3,FALSE)="Special Offer",SpecialOffero(H177,8,"FY-1"),MIN(H63,H78*capacity)) ->  | I186: =IF(VLOOKUP(I177,ProductsRangeOper,3,FALSE)="Special Offer",SpecialOffero(I177,8,"FY-1"),MIN(I63,I78*capacity)) ->  | J186: =IF(VLOOKUP(J177,ProductsRangeOper,3,FALSE)="Special Offer",SpecialOffero(J177,8,"FY-1"),MIN(J63,J78*capacity)) ->  | K186: =IF(VLOOKUP(K177,ProductsRangeOper,3,FALSE)="Special Offer",SpecialOffero(K177,8,"FY-1"),MIN(K63,K78*capacity)) ->  | L186: =IF(VLOOKUP(L177,ProductsRangeOper,3,FALSE)="Special Offer",SpecialOffero(L177,8,"FY-1"),MIN(L63,L78*capacity)) -> 
B187: FY-1 | C187: Sep | D187: =IF(VLOOKUP(D177,ProductsRangeOper,3,FALSE)="Special Offer",SpecialOffero(D177,9,"FY-1"),MIN(D64,D79*capacity)) ->  | E187: =IF(VLOOKUP(E177,ProductsRangeOper,3,FALSE)="Special Offer",SpecialOffero(E177,9,"FY-1"),MIN(E64,E79*capacity)) ->  | F187: =IF(VLOOKUP(F177,ProductsRangeOper,3,FALSE)="Special Offer",SpecialOffero(F177,9,"FY-1"),MIN(F64,F79*capacity)) ->  | G187: =IF(VLOOKUP(G177,ProductsRangeOper,3,FALSE)="Special Offer",SpecialOffero(G177,9,"FY-1"),MIN(G64,G79*capacity)) ->  | H187: =IF(VLOOKUP(H177,ProductsRangeOper,3,FALSE)="Special Offer",SpecialOffero(H177,9,"FY-1"),MIN(H64,H79*capacity)) ->  | I187: =IF(VLOOKUP(I177,ProductsRangeOper,3,FALSE)="Special Offer",SpecialOffero(I177,9,"FY-1"),MIN(I64,I79*capacity)) ->  | J187: =IF(VLOOKUP(J177,ProductsRangeOper,3,FALSE)="Special Offer",SpecialOffero(J177,9,"FY-1"),MIN(J64,J79*capacity)) ->  | K187: =IF(VLOOKUP(K177,ProductsRangeOper,3,FALSE)="Special Offer",SpecialOffero(K177,9,"FY-1"),MIN(K64,K79*capacity)) ->  | L187: =IF(VLOOKUP(L177,ProductsRangeOper,3,FALSE)="Special Offer",SpecialOffero(L177,9,"FY-1"),MIN(L64,L79*capacity)) -> 
B188: FY-1 | C188: Oct | D188: =IF(VLOOKUP(D177,ProductsRangeOper,3,FALSE)="Special Offer",SpecialOffero(D177,10,"FY-1"),MIN(D65,D80*capacity)) ->  | E188: =IF(VLOOKUP(E177,ProductsRangeOper,3,FALSE)="Special Offer",SpecialOffero(E177,10,"FY-1"),MIN(E65,E80*capacity)) ->  | F188: =IF(VLOOKUP(F177,ProductsRangeOper,3,FALSE)="Special Offer",SpecialOffero(F177,10,"FY-1"),MIN(F65,F80*capacity)) ->  | G188: =IF(VLOOKUP(G177,ProductsRangeOper,3,FALSE)="Special Offer",SpecialOffero(G177,10,"FY-1"),MIN(G65,G80*capacity)) ->  | H188: =IF(VLOOKUP(H177,ProductsRangeOper,3,FALSE)="Special Offer",SpecialOffero(H177,10,"FY-1"),MIN(H65,H80*capacity)) ->  | I188: =IF(VLOOKUP(I177,ProductsRangeOper,3,FALSE)="Special Offer",SpecialOffero(I177,10,"FY-1"),MIN(I65,I80*capacity)) ->  | J188: =IF(VLOOKUP(J177,ProductsRangeOper,3,FALSE)="Special Offer",SpecialOffero(J177,10,"FY-1"),MIN(J65,J80*capacity)) ->  | K188: =IF(VLOOKUP(K177,ProductsRangeOper,3,FALSE)="Special Offer",SpecialOffero(K177,10,"FY-1"),MIN(K65,K80*capacity)) ->  | L188: =IF(VLOOKUP(L177,ProductsRangeOper,3,FALSE)="Special Offer",SpecialOffero(L177,10,"FY-1"),MIN(L65,L80*capacity)) -> 
B189: FY-1 | C189: Nov | D189: =IF(VLOOKUP(D177,ProductsRangeOper,3,FALSE)="Special Offer",SpecialOffero(D177,11,"FY-1"),MIN(D66,D81*capacity)) ->  | E189: =IF(VLOOKUP(E177,ProductsRangeOper,3,FALSE)="Special Offer",SpecialOffero(E177,11,"FY-1"),MIN(E66,E81*capacity)) ->  | F189: =IF(VLOOKUP(F177,ProductsRangeOper,3,FALSE)="Special Offer",SpecialOffero(F177,11,"FY-1"),MIN(F66,F81*capacity)) ->  | G189: =IF(VLOOKUP(G177,ProductsRangeOper,3,FALSE)="Special Offer",SpecialOffero(G177,11,"FY-1"),MIN(G66,G81*capacity)) ->  | H189: =IF(VLOOKUP(H177,ProductsRangeOper,3,FALSE)="Special Offer",SpecialOffero(H177,11,"FY-1"),MIN(H66,H81*capacity)) ->  | I189: =IF(VLOOKUP(I177,ProductsRangeOper,3,FALSE)="Special Offer",SpecialOffero(I177,11,"FY-1"),MIN(I66,I81*capacity)) ->  | J189: =IF(VLOOKUP(J177,ProductsRangeOper,3,FALSE)="Special Offer",SpecialOffero(J177,11,"FY-1"),MIN(J66,J81*capacity)) ->  | K189: =IF(VLOOKUP(K177,ProductsRangeOper,3,FALSE)="Special Offer",SpecialOffero(K177,11,"FY-1"),MIN(K66,K81*capacity)) ->  | L189: =IF(VLOOKUP(L177,ProductsRangeOper,3,FALSE)="Special Offer",SpecialOffero(L177,11,"FY-1"),MIN(L66,L81*capacity)) -> 
B190: FY-1 | C190: Dec | D190: =IF(VLOOKUP(D177,ProductsRangeOper,3,FALSE)="Special Offer",SpecialOffero(D177,12,"FY-1"),MIN(D67,D82*capacity)) ->  | E190: =IF(VLOOKUP(E177,ProductsRangeOper,3,FALSE)="Special Offer",SpecialOffero(E177,12,"FY-1"),MIN(E67,E82*capacity)) ->  | F190: =IF(VLOOKUP(F177,ProductsRangeOper,3,FALSE)="Special Offer",SpecialOffero(F177,12,"FY-1"),MIN(F67,F82*capacity)) ->  | G190: =IF(VLOOKUP(G177,ProductsRangeOper,3,FALSE)="Special Offer",SpecialOffero(G177,12,"FY-1"),MIN(G67,G82*capacity)) ->  | H190: =IF(VLOOKUP(H177,ProductsRangeOper,3,FALSE)="Special Offer",SpecialOffero(H177,12,"FY-1"),MIN(H67,H82*capacity)) ->  | I190: =IF(VLOOKUP(I177,ProductsRangeOper,3,FALSE)="Special Offer",SpecialOffero(I177,12,"FY-1"),MIN(I67,I82*capacity)) ->  | J190: =IF(VLOOKUP(J177,ProductsRangeOper,3,FALSE)="Special Offer",SpecialOffero(J177,12,"FY-1"),MIN(J67,J82*capacity)) ->  | K190: =IF(VLOOKUP(K177,ProductsRangeOper,3,FALSE)="Special Offer",SpecialOffero(K177,12,"FY-1"),MIN(K67,K82*capacity)) ->  | L190: =IF(VLOOKUP(L177,ProductsRangeOper,3,FALSE)="Special Offer",SpecialOffero(L177,12,"FY-1"),MIN(L67,L82*capacity)) -> 
B191: FY-2 | C191: Jan | D191: =IF(VLOOKUP(D177,ProductsRangeOper,3,FALSE)="Special Offer",SpecialOffero(D177,1,"FY-2"),MIN(D101,D116*capacity)) ->  | E191: =IF(VLOOKUP(E177,ProductsRangeOper,3,FALSE)="Special Offer",SpecialOffero(E177,1,"FY-2"),MIN(E101,E116*capacity)) ->  | F191: =IF(VLOOKUP(F177,ProductsRangeOper,3,FALSE)="Special Offer",SpecialOffero(F177,1,"FY-2"),MIN(F101,F116*capacity)) ->  | G191: =IF(VLOOKUP(G177,ProductsRangeOper,3,FALSE)="Special Offer",SpecialOffero(G177,1,"FY-2"),MIN(G101,G116*capacity)) ->  | H191: =IF(VLOOKUP(H177,ProductsRangeOper,3,FALSE)="Special Offer",SpecialOffero(H177,1,"FY-2"),MIN(H101,H116*capacity)) ->  | I191: =IF(VLOOKUP(I177,ProductsRangeOper,3,FALSE)="Special Offer",SpecialOffero(I177,1,"FY-2"),MIN(I101,I116*capacity)) ->  | J191: =IF(VLOOKUP(J177,ProductsRangeOper,3,FALSE)="Special Offer",SpecialOffero(J177,1,"FY-2"),MIN(J101,J116*capacity)) ->  | K191: =IF(VLOOKUP(K177,ProductsRangeOper,3,FALSE)="Special Offer",SpecialOffero(K177,1,"FY-2"),MIN(K101,K116*capacity)) ->  | L191: =IF(VLOOKUP(L177,ProductsRangeOper,3,FALSE)="Special Offer",SpecialOffero(L177,1,"FY-2"),MIN(L101,L116*capacity)) -> 
B192: FY-2 | C192: Feb | D192: =IF(VLOOKUP(D177,ProductsRangeOper,3,FALSE)="Special Offer",SpecialOffero(D177,2,"FY-2"),MIN(D102,D117*capacity)) ->  | E192: =IF(VLOOKUP(E177,ProductsRangeOper,3,FALSE)="Special Offer",SpecialOffero(E177,2,"FY-2"),MIN(E102,E117*capacity)) ->  | F192: =IF(VLOOKUP(F177,ProductsRangeOper,3,FALSE)="Special Offer",SpecialOffero(F177,2,"FY-2"),MIN(F102,F117*capacity)) ->  | G192: =IF(VLOOKUP(G177,ProductsRangeOper,3,FALSE)="Special Offer",SpecialOffero(G177,2,"FY-2"),MIN(G102,G117*capacity)) ->  | H192: =IF(VLOOKUP(H177,ProductsRangeOper,3,FALSE)="Special Offer",SpecialOffero(H177,2,"FY-2"),MIN(H102,H117*capacity)) ->  | I192: =IF(VLOOKUP(I177,ProductsRangeOper,3,FALSE)="Special Offer",SpecialOffero(I177,2,"FY-2"),MIN(I102,I117*capacity)) ->  | J192: =IF(VLOOKUP(J177,ProductsRangeOper,3,FALSE)="Special Offer",SpecialOffero(J177,2,"FY-2"),MIN(J102,J117*capacity)) ->  | K192: =IF(VLOOKUP(K177,ProductsRangeOper,3,FALSE)="Special Offer",SpecialOffero(K177,2,"FY-2"),MIN(K102,K117*capacity)) ->  | L192: =IF(VLOOKUP(L177,ProductsRangeOper,3,FALSE)="Special Offer",SpecialOffero(L177,2,"FY-2"),MIN(L102,L117*capacity)) -> 
B193: FY-2 | C193: Mar | D193: =IF(VLOOKUP(D177,ProductsRangeOper,3,FALSE)="Special Offer",SpecialOffero(D177,3,"FY-2"),MIN(D103,D118*capacity)) ->  | E193: =IF(VLOOKUP(E177,ProductsRangeOper,3,FALSE)="Special Offer",SpecialOffero(E177,3,"FY-2"),MIN(E103,E118*capacity)) ->  | F193: =IF(VLOOKUP(F177,ProductsRangeOper,3,FALSE)="Special Offer",SpecialOffero(F177,3,"FY-2"),MIN(F103,F118*capacity)) ->  | G193: =IF(VLOOKUP(G177,ProductsRangeOper,3,FALSE)="Special Offer",SpecialOffero(G177,3,"FY-2"),MIN(G103,G118*capacity)) ->  | H193: =IF(VLOOKUP(H177,ProductsRangeOper,3,FALSE)="Special Offer",SpecialOffero(H177,3,"FY-2"),MIN(H103,H118*capacity)) ->  | I193: =IF(VLOOKUP(I177,ProductsRangeOper,3,FALSE)="Special Offer",SpecialOffero(I177,3,"FY-2"),MIN(I103,I118*capacity)) ->  | J193: =IF(VLOOKUP(J177,ProductsRangeOper,3,FALSE)="Special Offer",SpecialOffero(J177,3,"FY-2"),MIN(J103,J118*capacity)) ->  | K193: =IF(VLOOKUP(K177,ProductsRangeOper,3,FALSE)="Special Offer",SpecialOffero(K177,3,"FY-2"),MIN(K103,K118*capacity)) ->  | L193: =IF(VLOOKUP(L177,ProductsRangeOper,3,FALSE)="Special Offer",SpecialOffero(L177,3,"FY-2"),MIN(L103,L118*capacity)) -> 
B194: FY-2 | C194: Apr | D194: =IF(VLOOKUP(D177,ProductsRangeOper,3,FALSE)="Special Offer",SpecialOffero(D177,4,"FY-2"),MIN(D104,D119*capacity)) ->  | E194: =IF(VLOOKUP(E177,ProductsRangeOper,3,FALSE)="Special Offer",SpecialOffero(E177,4,"FY-2"),MIN(E104,E119*capacity)) ->  | F194: =IF(VLOOKUP(F177,ProductsRangeOper,3,FALSE)="Special Offer",SpecialOffero(F177,4,"FY-2"),MIN(F104,F119*capacity)) ->  | G194: =IF(VLOOKUP(G177,ProductsRangeOper,3,FALSE)="Special Offer",SpecialOffero(G177,4,"FY-2"),MIN(G104,G119*capacity)) ->  | H194: =IF(VLOOKUP(H177,ProductsRangeOper,3,FALSE)="Special Offer",SpecialOffero(H177,4,"FY-2"),MIN(H104,H119*capacity)) ->  | I194: =IF(VLOOKUP(I177,ProductsRangeOper,3,FALSE)="Special Offer",SpecialOffero(I177,4,"FY-2"),MIN(I104,I119*capacity)) ->  | J194: =IF(VLOOKUP(J177,ProductsRangeOper,3,FALSE)="Special Offer",SpecialOffero(J177,4,"FY-2"),MIN(J104,J119*capacity)) ->  | K194: =IF(VLOOKUP(K177,ProductsRangeOper,3,FALSE)="Special Offer",SpecialOffero(K177,4,"FY-2"),MIN(K104,K119*capacity)) ->  | L194: =IF(VLOOKUP(L177,ProductsRangeOper,3,FALSE)="Special Offer",SpecialOffero(L177,4,"FY-2"),MIN(L104,L119*capacity)) -> 
B195: FY-2 | C195: May | D195: =IF(VLOOKUP(D177,ProductsRangeOper,3,FALSE)="Special Offer",SpecialOffero(D177,5,"FY-2"),MIN(D105,D120*capacity)) ->  | E195: =IF(VLOOKUP(E177,ProductsRangeOper,3,FALSE)="Special Offer",SpecialOffero(E177,5,"FY-2"),MIN(E105,E120*capacity)) ->  | F195: =IF(VLOOKUP(F177,ProductsRangeOper,3,FALSE)="Special Offer",SpecialOffero(F177,5,"FY-2"),MIN(F105,F120*capacity)) ->  | G195: =IF(VLOOKUP(G177,ProductsRangeOper,3,FALSE)="Special Offer",SpecialOffero(G177,5,"FY-2"),MIN(G105,G120*capacity)) ->  | H195: =IF(VLOOKUP(H177,ProductsRangeOper,3,FALSE)="Special Offer",SpecialOffero(H177,5,"FY-2"),MIN(H105,H120*capacity)) ->  | I195: =IF(VLOOKUP(I177,ProductsRangeOper,3,FALSE)="Special Offer",SpecialOffero(I177,5,"FY-2"),MIN(I105,I120*capacity)) ->  | J195: =IF(VLOOKUP(J177,ProductsRangeOper,3,FALSE)="Special Offer",SpecialOffero(J177,5,"FY-2"),MIN(J105,J120*capacity)) ->  | K195: =IF(VLOOKUP(K177,ProductsRangeOper,3,FALSE)="Special Offer",SpecialOffero(K177,5,"FY-2"),MIN(K105,K120*capacity)) ->  | L195: =IF(VLOOKUP(L177,ProductsRangeOper,3,FALSE)="Special Offer",SpecialOffero(L177,5,"FY-2"),MIN(L105,L120*capacity)) -> 
B196: FY-2 | C196: Jun | D196: =IF(VLOOKUP(D177,ProductsRangeOper,3,FALSE)="Special Offer",SpecialOffero(D177,6,"FY-2"),MIN(D106,D121*capacity)) ->  | E196: =IF(VLOOKUP(E177,ProductsRangeOper,3,FALSE)="Special Offer",SpecialOffero(E177,6,"FY-2"),MIN(E106,E121*capacity)) ->  | F196: =IF(VLOOKUP(F177,ProductsRangeOper,3,FALSE)="Special Offer",SpecialOffero(F177,6,"FY-2"),MIN(F106,F121*capacity)) ->  | G196: =IF(VLOOKUP(G177,ProductsRangeOper,3,FALSE)="Special Offer",SpecialOffero(G177,6,"FY-2"),MIN(G106,G121*capacity)) ->  | H196: =IF(VLOOKUP(H177,ProductsRangeOper,3,FALSE)="Special Offer",SpecialOffero(H177,6,"FY-2"),MIN(H106,H121*capacity)) ->  | I196: =IF(VLOOKUP(I177,ProductsRangeOper,3,FALSE)="Special Offer",SpecialOffero(I177,6,"FY-2"),MIN(I106,I121*capacity)) ->  | J196: =IF(VLOOKUP(J177,ProductsRangeOper,3,FALSE)="Special Offer",SpecialOffero(J177,6,"FY-2"),MIN(J106,J121*capacity)) ->  | K196: =IF(VLOOKUP(K177,ProductsRangeOper,3,FALSE)="Special Offer",SpecialOffero(K177,6,"FY-2"),MIN(K106,K121*capacity)) ->  | L196: =IF(VLOOKUP(L177,ProductsRangeOper,3,FALSE)="Special Offer",SpecialOffero(L177,6,"FY-2"),MIN(L106,L121*capacity)) -> 
B197: FY-2 | C197: Jul | D197: =IF(VLOOKUP(D177,ProductsRangeOper,3,FALSE)="Special Offer",SpecialOffero(D177,7,"FY-2"),MIN(D107,D122*capacity)) ->  | E197: =IF(VLOOKUP(E177,ProductsRangeOper,3,FALSE)="Special Offer",SpecialOffero(E177,7,"FY-2"),MIN(E107,E122*capacity)) ->  | F197: =IF(VLOOKUP(F177,ProductsRangeOper,3,FALSE)="Special Offer",SpecialOffero(F177,7,"FY-2"),MIN(F107,F122*capacity)) ->  | G197: =IF(VLOOKUP(G177,ProductsRangeOper,3,FALSE)="Special Offer",SpecialOffero(G177,7,"FY-2"),MIN(G107,G122*capacity)) ->  | H197: =IF(VLOOKUP(H177,ProductsRangeOper,3,FALSE)="Special Offer",SpecialOffero(H177,7,"FY-2"),MIN(H107,H122*capacity)) ->  | I197: =IF(VLOOKUP(I177,ProductsRangeOper,3,FALSE)="Special Offer",SpecialOffero(I177,7,"FY-2"),MIN(I107,I122*capacity)) ->  | J197: =IF(VLOOKUP(J177,ProductsRangeOper,3,FALSE)="Special Offer",SpecialOffero(J177,7,"FY-2"),MIN(J107,J122*capacity)) ->  | K197: =IF(VLOOKUP(K177,ProductsRangeOper,3,FALSE)="Special Offer",SpecialOffero(K177,7,"FY-2"),MIN(K107,K122*capacity)) ->  | L197: =IF(VLOOKUP(L177,ProductsRangeOper,3,FALSE)="Special Offer",SpecialOffero(L177,7,"FY-2"),MIN(L107,L122*capacity)) -> 
B198: FY-2 | C198: Aug | D198: =IF(VLOOKUP(D177,ProductsRangeOper,3,FALSE)="Special Offer",SpecialOffero(D177,8,"FY-2"),MIN(D108,D123*capacity)) ->  | E198: =IF(VLOOKUP(E177,ProductsRangeOper,3,FALSE)="Special Offer",SpecialOffero(E177,8,"FY-2"),MIN(E108,E123*capacity)) ->  | F198: =IF(VLOOKUP(F177,ProductsRangeOper,3,FALSE)="Special Offer",SpecialOffero(F177,8,"FY-2"),MIN(F108,F123*capacity)) ->  | G198: =IF(VLOOKUP(G177,ProductsRangeOper,3,FALSE)="Special Offer",SpecialOffero(G177,8,"FY-2"),MIN(G108,G123*capacity)) ->  | H198: =IF(VLOOKUP(H177,ProductsRangeOper,3,FALSE)="Special Offer",SpecialOffero(H177,8,"FY-2"),MIN(H108,H123*capacity)) ->  | I198: =IF(VLOOKUP(I177,ProductsRangeOper,3,FALSE)="Special Offer",SpecialOffero(I177,8,"FY-2"),MIN(I108,I123*capacity)) ->  | J198: =IF(VLOOKUP(J177,ProductsRangeOper,3,FALSE)="Special Offer",SpecialOffero(J177,8,"FY-2"),MIN(J108,J123*capacity)) ->  | K198: =IF(VLOOKUP(K177,ProductsRangeOper,3,FALSE)="Special Offer",SpecialOffero(K177,8,"FY-2"),MIN(K108,K123*capacity)) ->  | L198: =IF(VLOOKUP(L177,ProductsRangeOper,3,FALSE)="Special Offer",SpecialOffero(L177,8,"FY-2"),MIN(L108,L123*capacity)) -> 
B199: FY-2 | C199: Sep | D199: =IF(VLOOKUP(D177,ProductsRangeOper,3,FALSE)="Special Offer",SpecialOffero(D177,9,"FY-2"),MIN(D109,D124*capacity)) ->  | E199: =IF(VLOOKUP(E177,ProductsRangeOper,3,FALSE)="Special Offer",SpecialOffero(E177,9,"FY-2"),MIN(E109,E124*capacity)) ->  | F199: =IF(VLOOKUP(F177,ProductsRangeOper,3,FALSE)="Special Offer",SpecialOffero(F177,9,"FY-2"),MIN(F109,F124*capacity)) ->  | G199: =IF(VLOOKUP(G177,ProductsRangeOper,3,FALSE)="Special Offer",SpecialOffero(G177,9,"FY-2"),MIN(G109,G124*capacity)) ->  | H199: =IF(VLOOKUP(H177,ProductsRangeOper,3,FALSE)="Special Offer",SpecialOffero(H177,9,"FY-2"),MIN(H109,H124*capacity)) ->  | I199: =IF(VLOOKUP(I177,ProductsRangeOper,3,FALSE)="Special Offer",SpecialOffero(I177,9,"FY-2"),MIN(I109,I124*capacity)) ->  | J199: =IF(VLOOKUP(J177,ProductsRangeOper,3,FALSE)="Special Offer",SpecialOffero(J177,9,"FY-2"),MIN(J109,J124*capacity)) ->  | K199: =IF(VLOOKUP(K177,ProductsRangeOper,3,FALSE)="Special Offer",SpecialOffero(K177,9,"FY-2"),MIN(K109,K124*capacity)) ->  | L199: =IF(VLOOKUP(L177,ProductsRangeOper,3,FALSE)="Special Offer",SpecialOffero(L177,9,"FY-2"),MIN(L109,L124*capacity)) -> 
B200: FY-2 | C200: Oct | D200: =IF(VLOOKUP(D177,ProductsRangeOper,3,FALSE)="Special Offer",SpecialOffero(D177,10,"FY-2"),MIN(D110,D125*capacity)) ->  | E200: =IF(VLOOKUP(E177,ProductsRangeOper,3,FALSE)="Special Offer",SpecialOffero(E177,10,"FY-2"),MIN(E110,E125*capacity)) ->  | F200: =IF(VLOOKUP(F177,ProductsRangeOper,3,FALSE)="Special Offer",SpecialOffero(F177,10,"FY-2"),MIN(F110,F125*capacity)) ->  | G200: =IF(VLOOKUP(G177,ProductsRangeOper,3,FALSE)="Special Offer",SpecialOffero(G177,10,"FY-2"),MIN(G110,G125*capacity)) ->  | H200: =IF(VLOOKUP(H177,ProductsRangeOper,3,FALSE)="Special Offer",SpecialOffero(H177,10,"FY-2"),MIN(H110,H125*capacity)) ->  | I200: =IF(VLOOKUP(I177,ProductsRangeOper,3,FALSE)="Special Offer",SpecialOffero(I177,10,"FY-2"),MIN(I110,I125*capacity)) ->  | J200: =IF(VLOOKUP(J177,ProductsRangeOper,3,FALSE)="Special Offer",SpecialOffero(J177,10,"FY-2"),MIN(J110,J125*capacity)) ->  | K200: =IF(VLOOKUP(K177,ProductsRangeOper,3,FALSE)="Special Offer",SpecialOffero(K177,10,"FY-2"),MIN(K110,K125*capacity)) ->  | L200: =IF(VLOOKUP(L177,ProductsRangeOper,3,FALSE)="Special Offer",SpecialOffero(L177,10,"FY-2"),MIN(L110,L125*capacity)) -> 
B201: FY-2 | C201: Nov | D201: =IF(VLOOKUP(D177,ProductsRangeOper,3,FALSE)="Special Offer",SpecialOffero(D177,11,"FY-2"),MIN(D111,D126*capacity)) ->  | E201: =IF(VLOOKUP(E177,ProductsRangeOper,3,FALSE)="Special Offer",SpecialOffero(E177,11,"FY-2"),MIN(E111,E126*capacity)) ->  | F201: =IF(VLOOKUP(F177,ProductsRangeOper,3,FALSE)="Special Offer",SpecialOffero(F177,11,"FY-2"),MIN(F111,F126*capacity)) ->  | G201: =IF(VLOOKUP(G177,ProductsRangeOper,3,FALSE)="Special Offer",SpecialOffero(G177,11,"FY-2"),MIN(G111,G126*capacity)) ->  | H201: =IF(VLOOKUP(H177,ProductsRangeOper,3,FALSE)="Special Offer",SpecialOffero(H177,11,"FY-2"),MIN(H111,H126*capacity)) ->  | I201: =IF(VLOOKUP(I177,ProductsRangeOper,3,FALSE)="Special Offer",SpecialOffero(I177,11,"FY-2"),MIN(I111,I126*capacity)) ->  | J201: =IF(VLOOKUP(J177,ProductsRangeOper,3,FALSE)="Special Offer",SpecialOffero(J177,11,"FY-2"),MIN(J111,J126*capacity)) ->  | K201: =IF(VLOOKUP(K177,ProductsRangeOper,3,FALSE)="Special Offer",SpecialOffero(K177,11,"FY-2"),MIN(K111,K126*capacity)) ->  | L201: =IF(VLOOKUP(L177,ProductsRangeOper,3,FALSE)="Special Offer",SpecialOffero(L177,11,"FY-2"),MIN(L111,L126*capacity)) -> 
B202: FY-2 | C202: Dec | D202: =IF(VLOOKUP(D177,ProductsRangeOper,3,FALSE)="Special Offer",SpecialOffero(D177,12,"FY-2"),MIN(D112,D127*capacity)) ->  | E202: =IF(VLOOKUP(E177,ProductsRangeOper,3,FALSE)="Special Offer",SpecialOffero(E177,12,"FY-2"),MIN(E112,E127*capacity)) ->  | F202: =IF(VLOOKUP(F177,ProductsRangeOper,3,FALSE)="Special Offer",SpecialOffero(F177,12,"FY-2"),MIN(F112,F127*capacity)) ->  | G202: =IF(VLOOKUP(G177,ProductsRangeOper,3,FALSE)="Special Offer",SpecialOffero(G177,12,"FY-2"),MIN(G112,G127*capacity)) ->  | H202: =IF(VLOOKUP(H177,ProductsRangeOper,3,FALSE)="Special Offer",SpecialOffero(H177,12,"FY-2"),MIN(H112,H127*capacity)) ->  | I202: =IF(VLOOKUP(I177,ProductsRangeOper,3,FALSE)="Special Offer",SpecialOffero(I177,12,"FY-2"),MIN(I112,I127*capacity)) ->  | J202: =IF(VLOOKUP(J177,ProductsRangeOper,3,FALSE)="Special Offer",SpecialOffero(J177,12,"FY-2"),MIN(J112,J127*capacity)) ->  | K202: =IF(VLOOKUP(K177,ProductsRangeOper,3,FALSE)="Special Offer",SpecialOffero(K177,12,"FY-2"),MIN(K112,K127*capacity)) ->  | L202: =IF(VLOOKUP(L177,ProductsRangeOper,3,FALSE)="Special Offer",SpecialOffero(L177,12,"FY-2"),MIN(L112,L127*capacity)) -> 
B203: FY-3 | C203: Jan | D203: =IF(VLOOKUP(D177,ProductsRangeOper,3,FALSE)="Special Offer",SpecialOffero(D177,1,"FY-3"),MIN(D146,D161*capacity)) ->  | E203: =IF(VLOOKUP(E177,ProductsRangeOper,3,FALSE)="Special Offer",SpecialOffero(E177,1,"FY-3"),MIN(E146,E161*capacity)) ->  | F203: =IF(VLOOKUP(F177,ProductsRangeOper,3,FALSE)="Special Offer",SpecialOffero(F177,1,"FY-3"),MIN(F146,F161*capacity)) ->  | G203: =IF(VLOOKUP(G177,ProductsRangeOper,3,FALSE)="Special Offer",SpecialOffero(G177,1,"FY-3"),MIN(G146,G161*capacity)) ->  | H203: =IF(VLOOKUP(H177,ProductsRangeOper,3,FALSE)="Special Offer",SpecialOffero(H177,1,"FY-3"),MIN(H146,H161*capacity)) ->  | I203: =IF(VLOOKUP(I177,ProductsRangeOper,3,FALSE)="Special Offer",SpecialOffero(I177,1,"FY-3"),MIN(I146,I161*capacity)) ->  | J203: =IF(VLOOKUP(J177,ProductsRangeOper,3,FALSE)="Special Offer",SpecialOffero(J177,1,"FY-3"),MIN(J146,J161*capacity)) ->  | K203: =IF(VLOOKUP(K177,ProductsRangeOper,3,FALSE)="Special Offer",SpecialOffero(K177,1,"FY-3"),MIN(K146,K161*capacity)) ->  | L203: =IF(VLOOKUP(L177,ProductsRangeOper,3,FALSE)="Special Offer",SpecialOffero(L177,1,"FY-3"),MIN(L146,L161*capacity)) -> 
B204: FY-3 | C204: Feb | D204: =IF(VLOOKUP(D177,ProductsRangeOper,3,FALSE)="Special Offer",SpecialOffero(D177,2,"FY-3"),MIN(D147,D162*capacity)) ->  | E204: =IF(VLOOKUP(E177,ProductsRangeOper,3,FALSE)="Special Offer",SpecialOffero(E177,2,"FY-3"),MIN(E147,E162*capacity)) ->  | F204: =IF(VLOOKUP(F177,ProductsRangeOper,3,FALSE)="Special Offer",SpecialOffero(F177,2,"FY-3"),MIN(F147,F162*capacity)) ->  | G204: =IF(VLOOKUP(G177,ProductsRangeOper,3,FALSE)="Special Offer",SpecialOffero(G177,2,"FY-3"),MIN(G147,G162*capacity)) ->  | H204: =IF(VLOOKUP(H177,ProductsRangeOper,3,FALSE)="Special Offer",SpecialOffero(H177,2,"FY-3"),MIN(H147,H162*capacity)) ->  | I204: =IF(VLOOKUP(I177,ProductsRangeOper,3,FALSE)="Special Offer",SpecialOffero(I177,2,"FY-3"),MIN(I147,I162*capacity)) ->  | J204: =IF(VLOOKUP(J177,ProductsRangeOper,3,FALSE)="Special Offer",SpecialOffero(J177,2,"FY-3"),MIN(J147,J162*capacity)) ->  | K204: =IF(VLOOKUP(K177,ProductsRangeOper,3,FALSE)="Special Offer",SpecialOffero(K177,2,"FY-3"),MIN(K147,K162*capacity)) ->  | L204: =IF(VLOOKUP(L177,ProductsRangeOper,3,FALSE)="Special Offer",SpecialOffero(L177,2,"FY-3"),MIN(L147,L162*capacity)) -> 
B205: FY-3 | C205: Mar | D205: =IF(VLOOKUP(D177,ProductsRangeOper,3,FALSE)="Special Offer",SpecialOffero(D177,3,"FY-3"),MIN(D148,D163*capacity)) ->  | E205: =IF(VLOOKUP(E177,ProductsRangeOper,3,FALSE)="Special Offer",SpecialOffero(E177,3,"FY-3"),MIN(E148,E163*capacity)) ->  | F205: =IF(VLOOKUP(F177,ProductsRangeOper,3,FALSE)="Special Offer",SpecialOffero(F177,3,"FY-3"),MIN(F148,F163*capacity)) ->  | G205: =IF(VLOOKUP(G177,ProductsRangeOper,3,FALSE)="Special Offer",SpecialOffero(G177,3,"FY-3"),MIN(G148,G163*capacity)) ->  | H205: =IF(VLOOKUP(H177,ProductsRangeOper,3,FALSE)="Special Offer",SpecialOffero(H177,3,"FY-3"),MIN(H148,H163*capacity)) ->  | I205: =IF(VLOOKUP(I177,ProductsRangeOper,3,FALSE)="Special Offer",SpecialOffero(I177,3,"FY-3"),MIN(I148,I163*capacity)) ->  | J205: =IF(VLOOKUP(J177,ProductsRangeOper,3,FALSE)="Special Offer",SpecialOffero(J177,3,"FY-3"),MIN(J148,J163*capacity)) ->  | K205: =IF(VLOOKUP(K177,ProductsRangeOper,3,FALSE)="Special Offer",SpecialOffero(K177,3,"FY-3"),MIN(K148,K163*capacity)) ->  | L205: =IF(VLOOKUP(L177,ProductsRangeOper,3,FALSE)="Special Offer",SpecialOffero(L177,3,"FY-3"),MIN(L148,L163*capacity)) -> 
B206: FY-3 | C206: Apr | D206: =IF(VLOOKUP(D177,ProductsRangeOper,3,FALSE)="Special Offer",SpecialOffero(D177,4,"FY-3"),MIN(D149,D164*capacity)) ->  | E206: =IF(VLOOKUP(E177,ProductsRangeOper,3,FALSE)="Special Offer",SpecialOffero(E177,4,"FY-3"),MIN(E149,E164*capacity)) ->  | F206: =IF(VLOOKUP(F177,ProductsRangeOper,3,FALSE)="Special Offer",SpecialOffero(F177,4,"FY-3"),MIN(F149,F164*capacity)) ->  | G206: =IF(VLOOKUP(G177,ProductsRangeOper,3,FALSE)="Special Offer",SpecialOffero(G177,4,"FY-3"),MIN(G149,G164*capacity)) ->  | H206: =IF(VLOOKUP(H177,ProductsRangeOper,3,FALSE)="Special Offer",SpecialOffero(H177,4,"FY-3"),MIN(H149,H164*capacity)) ->  | I206: =IF(VLOOKUP(I177,ProductsRangeOper,3,FALSE)="Special Offer",SpecialOffero(I177,4,"FY-3"),MIN(I149,I164*capacity)) ->  | J206: =IF(VLOOKUP(J177,ProductsRangeOper,3,FALSE)="Special Offer",SpecialOffero(J177,4,"FY-3"),MIN(J149,J164*capacity)) ->  | K206: =IF(VLOOKUP(K177,ProductsRangeOper,3,FALSE)="Special Offer",SpecialOffero(K177,4,"FY-3"),MIN(K149,K164*capacity)) ->  | L206: =IF(VLOOKUP(L177,ProductsRangeOper,3,FALSE)="Special Offer",SpecialOffero(L177,4,"FY-3"),MIN(L149,L164*capacity)) -> 
B207: FY-3 | C207: May | D207: =IF(VLOOKUP(D177,ProductsRangeOper,3,FALSE)="Special Offer",SpecialOffero(D177,5,"FY-3"),MIN(D150,D165*capacity)) ->  | E207: =IF(VLOOKUP(E177,ProductsRangeOper,3,FALSE)="Special Offer",SpecialOffero(E177,5,"FY-3"),MIN(E150,E165*capacity)) ->  | F207: =IF(VLOOKUP(F177,ProductsRangeOper,3,FALSE)="Special Offer",SpecialOffero(F177,5,"FY-3"),MIN(F150,F165*capacity)) ->  | G207: =IF(VLOOKUP(G177,ProductsRangeOper,3,FALSE)="Special Offer",SpecialOffero(G177,5,"FY-3"),MIN(G150,G165*capacity)) ->  | H207: =IF(VLOOKUP(H177,ProductsRangeOper,3,FALSE)="Special Offer",SpecialOffero(H177,5,"FY-3"),MIN(H150,H165*capacity)) ->  | I207: =IF(VLOOKUP(I177,ProductsRangeOper,3,FALSE)="Special Offer",SpecialOffero(I177,5,"FY-3"),MIN(I150,I165*capacity)) ->  | J207: =IF(VLOOKUP(J177,ProductsRangeOper,3,FALSE)="Special Offer",SpecialOffero(J177,5,"FY-3"),MIN(J150,J165*capacity)) ->  | K207: =IF(VLOOKUP(K177,ProductsRangeOper,3,FALSE)="Special Offer",SpecialOffero(K177,5,"FY-3"),MIN(K150,K165*capacity)) ->  | L207: =IF(VLOOKUP(L177,ProductsRangeOper,3,FALSE)="Special Offer",SpecialOffero(L177,5,"FY-3"),MIN(L150,L165*capacity)) -> 
B208: FY-3 | C208: Jun | D208: =IF(VLOOKUP(D177,ProductsRangeOper,3,FALSE)="Special Offer",SpecialOffero(D177,6,"FY-3"),MIN(D151,D166*capacity)) ->  | E208: =IF(VLOOKUP(E177,ProductsRangeOper,3,FALSE)="Special Offer",SpecialOffero(E177,6,"FY-3"),MIN(E151,E166*capacity)) ->  | F208: =IF(VLOOKUP(F177,ProductsRangeOper,3,FALSE)="Special Offer",SpecialOffero(F177,6,"FY-3"),MIN(F151,F166*capacity)) ->  | G208: =IF(VLOOKUP(G177,ProductsRangeOper,3,FALSE)="Special Offer",SpecialOffero(G177,6,"FY-3"),MIN(G151,G166*capacity)) ->  | H208: =IF(VLOOKUP(H177,ProductsRangeOper,3,FALSE)="Special Offer",SpecialOffero(H177,6,"FY-3"),MIN(H151,H166*capacity)) ->  | I208: =IF(VLOOKUP(I177,ProductsRangeOper,3,FALSE)="Special Offer",SpecialOffero(I177,6,"FY-3"),MIN(I151,I166*capacity)) ->  | J208: =IF(VLOOKUP(J177,ProductsRangeOper,3,FALSE)="Special Offer",SpecialOffero(J177,6,"FY-3"),MIN(J151,J166*capacity)) ->  | K208: =IF(VLOOKUP(K177,ProductsRangeOper,3,FALSE)="Special Offer",SpecialOffero(K177,6,"FY-3"),MIN(K151,K166*capacity)) ->  | L208: =IF(VLOOKUP(L177,ProductsRangeOper,3,FALSE)="Special Offer",SpecialOffero(L177,6,"FY-3"),MIN(L151,L166*capacity)) -> 
B209: FY-3 | C209: Jul | D209: =IF(VLOOKUP(D177,ProductsRangeOper,3,FALSE)="Special Offer",SpecialOffero(D177,7,"FY-3"),MIN(D152,D167*capacity)) ->  | E209: =IF(VLOOKUP(E177,ProductsRangeOper,3,FALSE)="Special Offer",SpecialOffero(E177,7,"FY-3"),MIN(E152,E167*capacity)) ->  | F209: =IF(VLOOKUP(F177,ProductsRangeOper,3,FALSE)="Special Offer",SpecialOffero(F177,7,"FY-3"),MIN(F152,F167*capacity)) ->  | G209: =IF(VLOOKUP(G177,ProductsRangeOper,3,FALSE)="Special Offer",SpecialOffero(G177,7,"FY-3"),MIN(G152,G167*capacity)) ->  | H209: =IF(VLOOKUP(H177,ProductsRangeOper,3,FALSE)="Special Offer",SpecialOffero(H177,7,"FY-3"),MIN(H152,H167*capacity)) ->  | I209: =IF(VLOOKUP(I177,ProductsRangeOper,3,FALSE)="Special Offer",SpecialOffero(I177,7,"FY-3"),MIN(I152,I167*capacity)) ->  | J209: =IF(VLOOKUP(J177,ProductsRangeOper,3,FALSE)="Special Offer",SpecialOffero(J177,7,"FY-3"),MIN(J152,J167*capacity)) ->  | K209: =IF(VLOOKUP(K177,ProductsRangeOper,3,FALSE)="Special Offer",SpecialOffero(K177,7,"FY-3"),MIN(K152,K167*capacity)) ->  | L209: =IF(VLOOKUP(L177,ProductsRangeOper,3,FALSE)="Special Offer",SpecialOffero(L177,7,"FY-3"),MIN(L152,L167*capacity)) -> 
B210: FY-3 | C210: Aug | D210: =IF(VLOOKUP(D177,ProductsRangeOper,3,FALSE)="Special Offer",SpecialOffero(D177,8,"FY-3"),MIN(D153,D168*capacity)) ->  | E210: =IF(VLOOKUP(E177,ProductsRangeOper,3,FALSE)="Special Offer",SpecialOffero(E177,8,"FY-3"),MIN(E153,E168*capacity)) ->  | F210: =IF(VLOOKUP(F177,ProductsRangeOper,3,FALSE)="Special Offer",SpecialOffero(F177,8,"FY-3"),MIN(F153,F168*capacity)) ->  | G210: =IF(VLOOKUP(G177,ProductsRangeOper,3,FALSE)="Special Offer",SpecialOffero(G177,8,"FY-3"),MIN(G153,G168*capacity)) ->  | H210: =IF(VLOOKUP(H177,ProductsRangeOper,3,FALSE)="Special Offer",SpecialOffero(H177,8,"FY-3"),MIN(H153,H168*capacity)) ->  | I210: =IF(VLOOKUP(I177,ProductsRangeOper,3,FALSE)="Special Offer",SpecialOffero(I177,8,"FY-3"),MIN(I153,I168*capacity)) ->  | J210: =IF(VLOOKUP(J177,ProductsRangeOper,3,FALSE)="Special Offer",SpecialOffero(J177,8,"FY-3"),MIN(J153,J168*capacity)) ->  | K210: =IF(VLOOKUP(K177,ProductsRangeOper,3,FALSE)="Special Offer",SpecialOffero(K177,8,"FY-3"),MIN(K153,K168*capacity)) ->  | L210: =IF(VLOOKUP(L177,ProductsRangeOper,3,FALSE)="Special Offer",SpecialOffero(L177,8,"FY-3"),MIN(L153,L168*capacity)) -> 
B211: FY-3 | C211: Sep | D211: =IF(VLOOKUP(D177,ProductsRangeOper,3,FALSE)="Special Offer",SpecialOffero(D177,9,"FY-3"),MIN(D154,D169*capacity)) ->  | E211: =IF(VLOOKUP(E177,ProductsRangeOper,3,FALSE)="Special Offer",SpecialOffero(E177,9,"FY-3"),MIN(E154,E169*capacity)) ->  | F211: =IF(VLOOKUP(F177,ProductsRangeOper,3,FALSE)="Special Offer",SpecialOffero(F177,9,"FY-3"),MIN(F154,F169*capacity)) ->  | G211: =IF(VLOOKUP(G177,ProductsRangeOper,3,FALSE)="Special Offer",SpecialOffero(G177,9,"FY-3"),MIN(G154,G169*capacity)) ->  | H211: =IF(VLOOKUP(H177,ProductsRangeOper,3,FALSE)="Special Offer",SpecialOffero(H177,9,"FY-3"),MIN(H154,H169*capacity)) ->  | I211: =IF(VLOOKUP(I177,ProductsRangeOper,3,FALSE)="Special Offer",SpecialOffero(I177,9,"FY-3"),MIN(I154,I169*capacity)) ->  | J211: =IF(VLOOKUP(J177,ProductsRangeOper,3,FALSE)="Special Offer",SpecialOffero(J177,9,"FY-3"),MIN(J154,J169*capacity)) ->  | K211: =IF(VLOOKUP(K177,ProductsRangeOper,3,FALSE)="Special Offer",SpecialOffero(K177,9,"FY-3"),MIN(K154,K169*capacity)) ->  | L211: =IF(VLOOKUP(L177,ProductsRangeOper,3,FALSE)="Special Offer",SpecialOffero(L177,9,"FY-3"),MIN(L154,L169*capacity)) -> 
... 3 more rows

Sheet Fin-Mgt
A6: 1 | B6: Employees
F7: Salary increase
B8: Position | D8: Budget | E8: Number | F8: FY-2 | G8: FY-3
B9: Office Assistants | D9: 15000 | E9: 0.5 | F9: 1.05 | G9: 1.05
B10: Salesmen | D10: 80000 | E10: 2 | F10: 1.1 | G10: 1.1
B11: Executive Salaries | D11: 15000 | E11: 0.25 | F11: 1.1 | G11: 1.1
B12: Miscellaneous (Consultants) | D12: 5000 | F12: 1.1 | G12: 1.1
D14: FY-1 | E14: FY-2 | F14: FY-3
B15: Total | D15: =SUM(D9:D13) -> 115000 | E15: =SUMPRODUCT(D9:D13,F9:F13) -> 125750 | F15: =SUMPRODUCT(D9:D13,G9:G13,F9:F13) -> 137537.5
A18: 2 | B18: Utilities, Supplies and other
D19: Payment | E19: Payment increase
D20: FY-1 | E20: FY-2 | F20: FY-3
B21: Leasing of cars, computers, etc | D21: 8000 | E21: 1.1 | F21: 1.2
B22: Office Supply | D22: 2000 | E22: 0.8 | F22: 0.6
B23: Heat, Light, Phone | D23: 7000 | E23: 1 | F23: 1
B24: Insurance | D24: 7000 | E24: 1 | F24: 1
B25: Depreciation | D25: 7500 | E25: 1.9 | F25: 0.9
D27: FY-1 | E27: FY-2 | F27: FY-3
B28: Total | D28: =SUM(D21:D26) -> 31500 | E28: =SUMPRODUCT(D21:D26,E21:E26) -> 38650 | F28: =SUMPRODUCT(E21:E26,F21:F26,D21:D26) -> 38345
A31: 3 | B31: Marketing costs
D32: Payment | E32: Payment increase
D33: FY-1 | E33: FY-2 | F33: FY-3
B34: Local Advertising | D34: 35000 | E34: 1.11 | F34: 1.2
B35: Trade Shows | D35: 18000 | E35: 1.11 | F35: 1.2
B36: social media | D36: 10000 | E36: 1 | F36: 1
B37: online advertising | D37: 10000 | E37: 0.5 | F37: 0.5
B38: customer relationship | D38: 10000 | E38: 1 | F38: 1
B40: Total | D40: =SUM(D34:D39) -> 83000 | E40: =SUMPRODUCT(D34:D39,E34:E39) -> 83830 | F40: =SUMPRODUCT(D34:D39,E34:E39,F34:F39) -> 93096
A43: 4 | B43: Rent
F44: Payment increase
D45: Payment | E45: Space (ft^2) | F45: FY-2 | G45: FY-3
B46: Office | D46: 22000 | E46: 200 | F46: 1.1 | G46: 1.2
D48: FY-1 | E48: FY-2 | F48: FY-3
B49: Total | D49: =SUM(D46:D47) -> 22000 | E49: =SUMPRODUCT(D46:D47,F46:F47) -> 24200 | F49: =SUMPRODUCT(D46:D47,G46:G47,F46:F47) -> 29040
A52: 5 | B52: Debt
D53: FY-1 | E53: FY-2 | F53: FY-3
B54: Loan | D54: Amount | E54: Interest rate | F54: length (months) | G54: payments/year | H54: Date start
B55: Bank of America | D55: 40000 | E55: 0.05 | F55: 36 | G55: 12 | H55: FY-1 Jan
B57: Total Debt | D57: =SUM(D55:D55) -> 40000
B58: Payment | D58: =debtAnnualPaymentsFY1(DebtRangeFin) ->  | E58: =debtAnnualPaymentsFY2(DebtRangeFin) ->  | F58: =debtAnnualPaymentsFY3(DebtRangeFin) -> 
B59: Private Investment | D59: 150000
A62: 6 | B62: Taxes
B63: Taxes type | D63: Percentage
B64: Profit | D64: 0.19
A67: 7 | B67: Fees
B68: Type | D68: Ammount
B71: Total | D71: =IF(SUM(D69:D70)=0,"",SUM(D69:D70)) -> 
A72: 7 | B72: Financial Market Indicators
E74: Percentage
B75: Expected Return on Investment | E75: 0.05
B76: Risk-Free Interest rate | E76: 0.01

Sheet Org-Mgt
A5: Human Resources
A6: 1 | B6: Employees
F7: Salary increase
B8: Position | D8: Budget | E8: Number | F8: FY-2 | G8: FY-3
B9: Office Assistants | D9: 15000 | E9: 0.5 | F9: 1.05 | G9: 1.05
B10: Salesmen | D10: 80000 | E10: 2 | F10: 1.1 | G10: 1.1
B11: Executive Salaries | D11: 15000 | E11: 0.25 | F11: 1.1 | G11: 1.1
B12: Miscellaneous (Consultants) | D12: 5000 | F12: 1.1 | G12: 1.1
D14: FY-1 | E14: FY-2 | F14: FY-3
B15: Total | D15: =SUM(D9:D13) -> 115000 | E15: =SUMPRODUCT(D9:D13,F9:F13) -> 125750 | F15: =SUMPRODUCT(D9:D13,G9:G13,F9:F13) -> 137537.5
A19: Miscellaneous
A20: 2 | B20: Utilities, Supplies and other
D21: Payment | E21: Payment increase
D22: FY-1 | E22: FY-2 | F22: FY-3
B23: Leasing of cars, computers, etc | D23: 8000 | E23: 1.11 | F23: 1.2
B24: Office Supply | D24: 4000 | E24: 1.11 | F24: 1.2
B25: Heat, Light, Phone | D25: 7000 | E25: 1.11 | F25: 1.2
B26: Insurance | D26: 7000 | E26: 1.11 | F26: 1.2
B27: Depreciation | D27: 12000 | E27: 1.11 | F27: 1.2
D29: FY-1 | E29: FY-2 | F29: FY-3
B30: Total | D30: =SUM(D23:D28) -> 38000 | E30: =SUMPRODUCT(D23:D28,E23:E28) -> 42180 | F30: =SUMPRODUCT(E23:E28,F23:F28,D23:D28) -> 50616
A33: 3 | B33: Rent
F34: Payment increase
D35: Payment | E35: Space (ft^2) | F35: FY-2 | G35: FY-3
B36: Office | D36: 5000 | E36: 200 | F36: 1.11 | G36: 1.2
D38: FY-1 | E38: FY-2 | F38: FY-3
B39: Total | D39: =SUM(D36:D37) -> 5000 | E39: =SUMPRODUCT(D36:D37,F36:F37) -> 5550 | F39: =SUMPRODUCT(D36:D37,G36:G37,F36:F37) -> 6660
A46: 2 | B46: Employees' Compensation
D48: market research | E48: salary increase in % | G48: FY-1 | I48: FY-2 | K48: FY-3
D49: FY-1 | E49: FY-2 | F49: FY-3 | G49: # people hired | H49: budget | I49: # people hired | J49: budget | K49: # people hired | L49: budget
B50: Critical Salesmen | C50: min | D50: 26000
C51: base | D51: 30000 | E51: 0.02 | F51: 0.01 | G51: 1 | H51: =employcompcsalesfy1*D51 -> 30000 | I51: 1 | J51: =employcompcsalesfy2*(1+E51)*D51 -> 30600 | K51: 2 | L51: =employcompcsalesfy3*(1+E51)*(1+F51)*D51 -> 61812
C52: market research | D52: 28000
C53: max | D53: 32000
B55: Salesmen | C55: min | D55: 23000
C56: base | D56: 24000 | E56: 0.01 | F56: 0.015 | G56: 1 | H56: =G56*D56 -> 24000 | I56: 1.5 | J56: =I56*D56*(1+E56) -> 36360 | K56: 1.5 | L56: =K56*D56*(1+E56)*(F56+1) -> 36905.4
C57: market research | D57: 25000
C58: max | D58: 27000
E59: Total sum | G59: =SUM(G50:G58) -> 2 | H59: 54000 | I59: 2.5 | J59: 66960 | K59: 3.5 | L59: 98717.4
G60: =SalesmensNumber("EmployeesRangeOrg") ->  | H60: =SalesmenBudget("EmployeesRangeOrg",1) ->  | J60: =SalesmenBudget("EmployeesRangeOrg",2) ->  | L60: =SalesmenBudget("EmployeesRangeOrg",3) -> 
E61: Surplus | G61: =G60-G59 ->  | H61: =H60-H59 ->  | J61: =J60-J59 ->  | L61: =L60-L59 -> 
A62: 3 | B62: Workers' Compensation
D63: market research | E63: salary increase in % | G63: FY-1 | I63: FY-2 | K63: FY-3
D64: FY-1 | E64: FY-2 | F64: FY-3 | G64: # people hired | H64: budget | I64: # people hired | J64: budget | K64: # people hired | L64: budget
B65: Critical Workers | C65: min | D65: 25000
C66: base | D66: 30000 | E66: 0.01 | F66: 0.02 | G66: 1 | H66: =employcompcworkfy1*D66 -> 30000 | I66: 1 | J66: =employcompcworkfy2*(1+E66)*D66 -> 30300 | K66: 1 | L66: =employcompcworkfy3*(1+E66)*D66*(1+F66) -> 30906
C67: market research | D67: 29000
C68: max | D68: 32000
B70: Workers | C70: min | D70: 15000
C71: base | D71: 20000 | E71: 0.015 | F71: 0.01 | G71: 1.5 | H71: =G71*D71 -> 30000 | I71: 1 | J71: =I71*D71*(1+E71) -> 20300 | K71: 2 | L71: =D71*(E71+1)*(F71+1)*K71 -> 41006
C72: market research | D72: 20000
C73: max | D73: 22000
E74: Total sum | G74: =SUM(G65:G73) -> 2.5 | H74: 60000 | I74: 2 | J74: 50600 | K74: 3 | L74: 71912
E75: Cost of labor | H75: =SumsLabor("Labor","FY-1") ->  | J75: =SumsLabor("Labor","FY-2") ->  | L75: =SumsLabor("Labor","FY-3") -> 
E76: Surplus | H76: =H75-H74 ->  | J76: =J75-J74 ->  | L76: =L75-L74 -> 

Sheet Impl-Plan
B3: IMPLEMENTATION PLAN: recommended steps for the next nine months (an example)
C5: Task Name | D5: Duration | E5: Start | F5: Finish | G5: Predecessors
B6: 1 | C6: Prepare Mission, Value, Vision (MVV) statements | D6: 5 days | E6: 2015-01-05T08:00:00 | F6: 2015-01-09T17:00:00
B7: 1.1 | C7: Mission Statement | D7: 5 days | E7: 2015-01-05T08:00:00 | F7: 2015-01-09T17:00:00
B8: 1.2 | C8: Value Statement | D8: 5 days | E8: 2015-01-05T08:00:00 | F8: 2015-01-09T17:00:00
B9: 1.3 | C9: Vision Statement | D9: 5 days | E9: 2015-01-05T08:00:00 | F9: 2015-01-09T17:00:00
B10: 2 | C10: Define Goals and Objectives | D10: 2 days | E10: 2015-01-12T08:00:00 | F10: 2015-01-13T17:00:00 | G10: 1
B11: 2.1 | C11: Financial | D11: 2 days | E11: 2015-01-12T08:00:00 | F11: 2015-01-13T17:00:00
B12: 2.2 | C12: Non-Financial | D12: 2 days | E12: 2015-01-12T08:00:00 | F12: 2015-01-13T17:00:00
B13: 3 | C13: Define INTERNAL Strategy-Shaping Factors | D13: 5 days | E13: 2015-01-14T08:00:00 | F13: 2015-01-20T17:00:00 | G13: 5
B14: 4 | C14: Define EXTERNAL Strategy-Shaping Factors | D14: 5 days | E14: 2015-01-21T08:00:00 | F14: 2015-01-27T17:00:00 | G14: 8
B15: 5 | C15: Select a BUSINESS STRATEGY of the company | D15: 5 days | E15: 2015-01-27T17:00:00 | F15: 2015-02-03T17:00:00 | G15: 9
C16: (Work with 'Project-Start') | D16: 0 days | E16: 2015-01-27T17:00:00 | F16: 2015-01-27T17:00:00
B17: 5.1 | C17: Prepare different scenario developments | D17: 1 day | E17: 2015-01-28T08:00:00 | F17: 2015-01-28T17:00:00
B18: 5.2 | C18: Identify and Evaluate STRATEGY ALTERNATIVES | D18: 2 days | E18: 2015-01-29T08:00:00 | F18: 2015-01-30T17:00:00 | G18: 12
B19: 5.2.1 | C19: Resources for alternative 1 | D19: 0 days | E19: 2015-01-30T17:00:00 | F19: 2015-01-30T17:00:00 | G19: 13
B20: 5.2.2 | C20: Resources for alternative 2 | D20: 0 days | E20: 2015-01-30T17:00:00 | F20: 2015-01-30T17:00:00 | G20: 13
B21: 5.2.3 | C21: Resources for alternative 3 | D21: 0 days | E21: 2015-01-30T17:00:00 | F21: 2015-01-30T17:00:00 | G21: 13
B22: 5.3 | C22: Define criteria for comparison/evaluation | D22: 1 day | E22: 2015-02-02T08:00:00 | F22: 2015-02-02T17:00:00 | G22: 14,15,16
B23: 5.4 | C23: Select a BUSINESS STRATEGY of the company | D23: 1 day | E23: 2015-02-03T08:00:00 | F23: 2015-02-03T17:00:00 | G23: 17
B24: 6 | C24: Prepare functional Strategy MARKETING | D24: 5 days | E24: 2015-02-04T08:00:00 | F24: 2015-02-10T17:00:00 | G24: 10
B25: 6.1 | C25: Work with 'Mktg-Mgt' | D25: 2 days | E25: 2015-02-04T08:00:00 | F25: 2015-02-05T17:00:00
B26: 6.2 | C26: Analyze the outputs | D26: 2 days | E26: 2015-02-06T08:00:00 | F26: 2015-02-09T17:00:00 | G26: 20
B27: 6.3 | C27: ('36-Mo-Fin-Pr'; 'Performance'; 'D-Analysis') | D27: 0 days | E27: 2015-02-09T17:00:00 | F27: 2015-02-09T17:00:00 | G27: 21
B28: 6.4 | C28: Apply other Decision Support Tools | D28: 1 day | E28: 2015-02-10T08:00:00 | F28: 2015-02-10T17:00:00 | G28: 21
B29: 6.5 | C29: (Optimization Analysis, Sensitivity Analysis, others) | D29: 0 days | E29: 2015-02-10T17:00:00 | F29: 2015-02-10T17:00:00 | G29: 23
B30: 7 | C30: Prepare functional Strategy INNOVATION | D30: 5 days | E30: 2015-02-03T17:00:00 | F30: 2015-02-10T17:00:00 | G30: 10
B31: 7.1 | C31: Work with 'Inn-Mgt' | D31: 2 days | E31: 2015-02-05T08:00:00 | F31: 2015-02-06T17:00:00
B32: 7.2 | C32: Analyze the outputs | D32: 2 days | E32: 2015-02-09T08:00:00 | F32: 2015-02-10T17:00:00 | G32: 26
B33: 7.3 | C33: ('36-Mo-Fin-Pr'; 'Performance'; 'D-Analysis') | D33: 0 days | E33: 2015-02-04T17:00:00 | F33: 2015-02-04T17:00:00
B34: 7.4 | C34: Apply other Decision Support Tools | D34: 1 day | E34: 2015-02-11T08:00:00 | F34: 2015-02-11T17:00:00 | G34: 27
B35: 7.5 | C35: (Optimization Analysis, Sensitivity Analysis, others) | D35: 0 days | E35: 2015-02-04T17:00:00 | F35: 2015-02-04T17:00:00
B36: 8 | C36: Prepare functional Strategy OPERATIONS | D36: 5 days | E36: 2015-02-04T17:00:00 | F36: 2015-02-11T17:00:00 | G36: 10
B37: 8.1 | C37: Work with 'Oper-Mgt' | D37: 2 days | E37: 2015-02-05T08:00:00 | F37: 2015-02-06T17:00:00
B38: 8.2 | C38: Analyze the outputs | D38: 2 days | E38: 2015-02-09T08:00:00 | F38: 2015-02-10T17:00:00 | G38: 32
B39: 8.3 | C39: ('36-Mo-Fin-Pr'; 'Performance'; 'D-Analysis') | D39: 0 days | E39: 2015-02-04T17:00:00 | F39: 2015-02-04T17:00:00
B40: 8.4 | C40: Apply other Decision Support Tools | D40: 1 day | E40: 2015-02-11T08:00:00 | F40: 2015-02-11T17:00:00 | G40: 33
B41: 8.5 | C41: (Optimization Analysis, Sensitivity Analysis, Risk Analysis, others) | D41: 0 days | E41: 2015-02-04T17:00:00 | F41: 2015-02-04T17:00:00
B42: 9 | C42: Prepare functional Strategy Finance | D42: 5 days | E42: 2015-02-04T17:00:00 | F42: 2015-02-11T17:00:00 | G42: 10
B43: 9.1 | C43: Work with 'Fin-Mgt' | D43: 2 days | E43: 2015-02-05T08:00:00 | F43: 2015-02-06T17:00:00
B44: 9.2 | C44: Analyze the outputs | D44: 2 days | E44: 2015-02-09T08:00:00 | F44: 2015-02-10T17:00:00 | G44: 38
B45: 9.3 | C45: ('36-Mo-Fin-Pr'; 'Performance'; 'D-Analysis') | D45: 0 days | E45: 2015-02-04T17:00:00 | F45: 2015-02-04T17:00:00
B46: 9.4 | C46: Apply other Decision Support Tools | D46: 1 day | E46: 2015-02-11T08:00:00 | F46: 2015-02-11T17:00:00 | G46: 39
B47: 9.5 | C47: (Optimization Analysis, Sensitivity Analysis, Risk Analysis, others) | D47: 0 days | E47: 2015-02-04T17:00:00 | F47: 2015-02-04T17:00:00
B48: 10 | C48: Prepare functional Strategy HR & ORGANIZATIONAL | D48: 5 days | E48: 2015-02-04T17:00:00 | F48: 2015-02-11T17:00:00 | G48: 10
B49: 10.1 | C49: Work with 'Org-Mgt' | D49: 2 days | E49: 2015-02-05T08:00:00 | F49: 2015-02-06T17:00:00
B50: 10.2 | C50: Analyze the outputs | D50: 2 days | E50: 2015-02-09T08:00:00 | F50: 2015-02-10T17:00:00 | G50: 44
B51: 10.3 | C51: ('36-Mo-Fin-Pr'; 'Performance'; 'D-Analysis') | D51: 0 days | E51: 2015-02-04T17:00:00 | F51: 2015-02-04T17:00:00
B52: 10.4 | C52: Apply other Decision Support Tools | D52: 1 day | E52: 2015-02-11T08:00:00 | F52: 2015-02-11T17:00:00 | G52: 45
B53: 10.5 | C53: (Optimization Analysis, Sensitivity Analysis, Risk Analysis, others) | D53: 0 days | E53: 2015-02-04T17:00:00 | F53: 2015-02-04T17:00:00
B54: 11 | C54: Action Plan | D54: 155 days | E54: 2015-02-12T08:00:00 | F54: 2015-09-16T17:00:00 | G54: 43,19,25,31,37
B55: 11.1 | C55: Prepare a Business Plan for the New Project & related | D55: 10 days | E55: 2015-02-12T08:00:00 | F55: 2015-02-25T17:00:00
B56: 11.1.1 | C56: Prepare a first draft of the Business Plan for the New Project | D56: 2 days | E56: 2015-02-12T08:00:00 | F56: 2015-02-13T17:00:00
B57: 11.1.2 | C57: Discuss the first draft internally (in your company) | D57: 2 days | E57: 2015-02-16T08:00:00 | F57: 2015-02-17T17:00:00 | G57: 51
B58: 11.1.3 | C58: Discuss the first draft with potential investors (fin-institutions) | D58: 2 days | E58: 2015-02-18T08:00:00 | F58: 2015-02-19T17:00:00 | G58: 52
B59: 11.2 | C59: Modify the initial Request for Quotation | D59: 1 day | E59: 2015-02-20T08:00:00 | F59: 2015-02-20T17:00:00 | G59: 53
B60: 11.2.1 | C60: Negotiate changes with the seller (if needed) | D60: 2 days | E60: 2015-02-23T08:00:00 | F60: 2015-02-24T17:00:00 | G60: 54
B61: 11.3 | C61: Contact your financial institution (bank, private investor) | D61: 7 days | E61: 2015-02-12T08:00:00 | F61: 2015-02-20T17:00:00
B62: 11.3.1 | C62: Negotiate final conditions for the financing of the project | D62: 2 days | E62: 2015-02-23T08:00:00 | F62: 2015-02-24T17:00:00 | G62: 56
B63: 11.3.2 | C63: Prepare all additional/requested documents | D63: 2 days | E63: 2015-02-23T08:00:00 | F63: 2015-02-24T17:00:00 | G63: 56
B64: 11.4 | C64: Prepare and send a Purchase Order to the Seller | D64: 1 day | E64: 2015-02-25T08:00:00 | F64: 2015-02-25T17:00:00 | G64: 58
B65: 11.4.1 | C65: Receive confirmation from seller | D65: 5 days | E65: 2015-02-26T08:00:00 | F65: 2015-03-04T17:00:00 | G65: 59
B66: 11.5 | C66: Sign a commercial contract with the Seller | D66: 1 day | E66: 2015-03-05T08:00:00 | F66: 2015-03-05T17:00:00 | G66: 60
B67: 11.6 | C67: Make a payment to the Seller (for the new technology) | D67: 1 day | E67: 2015-03-05T08:00:00 | F67: 2015-03-05T17:00:00 | G67: 60
B68: 11.7 | C68: Prepare the site for the installation of the new technology | D68: 30 days | E68: 2015-03-06T08:00:00 | F68: 2015-04-16T17:00:00 | G68: 62,61
B69: 11.8 | C69: Instalation of the technology (by the Seller) | D69: 10 days | E69: 2015-04-17T08:00:00 | F69: 2015-04-30T17:00:00 | G69: 63
B70: 11.9 | C70: Hiring of new personnel | D70: 30 days | E70: 2015-03-06T08:00:00 | F70: 2015-04-16T17:00:00 | G70: 62,61
B71: 11.9.1 | C71: Training of the new personnel | D71: 10 days | E71: 2015-04-17T08:00:00 | F71: 2015-04-30T17:00:00 | G71: 65
B72: 11.1 | C72: Contracts with wholesale buyers of the new products (kegs) | D72: 40 days | E72: 2015-03-06T08:00:00 | F72: 2015-04-30T17:00:00 | G72: 62,61
B73: 11.11 | C73: Advertising Campaign | D73: 90 days | E73: 2015-03-06T08:00:00 | F73: 2015-07-09T17:00:00 | G73: 61
B74: 11.11.1 | C74: Design | D74: 10 days | E74: 2015-03-06T08:00:00 | F74: 2015-03-19T17:00:00 | G74: 62,61
B75: 11.11.2 | C75: Execution | D75: 80 days | E75: 2015-03-20T08:00:00 | F75: 2015-07-09T17:00:00 | G75: 69
B76: 11.12 | C76: Launch the BrewPub | D76: 0 days | E76: 2015-05-01T08:00:00 | F76: 2015-05-01T08:00:00 | G76: 64,66
B77: 11.12.1 | C77: First month of operation | D77: 30 days | E77: 2015-05-01T08:00:00 | F77: 2015-06-11T17:00:00 | G77: 71
B78: 11.12.2 | C78: Second month of operation | D78: 30 days | E78: 2015-06-12T08:00:00 | F78: 2015-07-23T17:00:00 | G78: 72
B79: 11.12.3 | C79: Third month of operation | D79: 30 days | E79: 2015-07-24T08:00:00 | F79: 2015-09-03T17:00:00 | G79: 73
B80: 11.12.4 | C80: Evaluation of the results: First Quarter of Operation | D80: 2 days | E80: 2015-09-04T08:00:00 | F80: 2015-09-07T17:00:00 | G80: 74
B81: 11.12.5 | C81: Evaluation of the Compatitive Advantages | D81: 2 days | E81: 2015-09-08T08:00:00 | F81: 2015-09-09T17:00:00 | G81: 75
B82: 11.12.6 | C82: Plans for the next 12 months of operations | D82: 5 days | E82: 2015-09-10T08:00:00 | F82: 2015-09-16T17:00:00 | G82: 76
